{"text_format":"3","workbook":"xlsx","n_sheets":15,"sheets":["Ako používať túto šablónu","Zoznam študentov","August","September","Október","November","December","Január","Február","Marec","Apríl","Máj","Jún","Júl","Správa o dochádzke študenta"],"not_rendered":{"defined_names":16},"read":"whole","date_system":"1900"}

{"sheet":"Ako používať túto šablónu","index":0,"n_rows":25,"n_cols":5,"rows_kept":25,"merged":[[3,2,3,12],[4,4,4,12],[5,4,5,12],[6,4,6,12],[7,4,7,12],[8,4,8,7],[11,2,11,12],[12,4,12,12],[13,4,13,12],[14,4,14,12],[17,2,17,12],[18,4,18,12],[19,4,19,12],[20,4,20,12],[21,4,21,12],[24,2,24,12]]}
["POUŽÍVANIE TEJTO ŠABLÓNY"]
[]
[null,"KDE ZAČAŤ?"]
[null,null,"Pred tým, ako začnete sledovať dochádzku študentov, je nutné vykonať nasledujúce kroky:"]
[{"$nulls":3},"1.","Pridanie študentov: V hárku Zoznam študentov zadajte údaje každého študenta, ako meno opatrovníka a kontaktné údaje. Identifikácia študenta je dôležitým údajom, pretože poskytuje jedinečný identifikátor pre každého študenta a využíva sa v celom zošite na zjednodušenie zadávania údajov v rôznych rozbaľovacích zoznamoch identifikácií študentov. Údaje zadané v zozname študentov sa využívajú aj v ďalších hárkoch, ako je Správa o dochádzke študenta, a v záznamoch mesačnej dochádzky."]
[{"$nulls":3},"2.","Zmena školského kalendárneho roka:  V hárku dochádzky za August kliknite na ovládací prvok číselníka v pravom hornom rohu hlavičky a aktualizujte školský kalendárny rok. Touto zmenou sa aktualizujú hlavičky všetkých záznamov mesačnej dochádzky v celom zošite. (Tlačidlo číselníka sa nevytlačí.)"]
[{"$nulls":3},"3.","(Voliteľné) Úprava farieb v celom zošite: Najprv prejdite na posledný hárok, Správa o dochádzke študenta, a na karte Posúdiť kliknite v skupine Zmeny na položku Zrušiť zabezpečenie hárka. Potom na karte Rozloženie strany kliknite v skupine Motívy na položku Farby a z galérie farieb vyberte iné nastavenie farieb motívu. Po zmene farby a ľubovoľných ďalších zmenách motívu sa vráťte na hárok Správa o dochádzke študenta a na karte Posúdiť kliknite v skupine Zmeny na položku  Zabezpečiť hárok a potom kliknite na tlačidlo OK."]
[{"$nulls":4},"Tip: Vytvorte si vlastnú farebnú kombináciu podľa farieb školy. Na karte Rozloženie strany kliknite v skupine Motívy na položku Farby a v dolnej časti galérie farieb kliknite na možnosť Vytvoriť nové farby motívov. Ďalšie informácie o vytváraní vlastných farebných kombinácií nájdete v nasledujúcej téme Pomocníka: "]
[{"$nulls":4},"Prispôsobenie motívu dokumentu."]
[]
[null,"ČO TREBA UROBIŤ PO PRIDANÍ ŠTUDENTOV?"]
[null,null,"Keď ste študentov zadali do hárka Zoznam študentov, môžete začať sledovať ich dochádzku v danom školskom roku pomocou tohto postupu:"]
[{"$nulls":3},"1.","Ak chcete pridať študenta do záznamu dochádzky, kliknite na bunku pod stĺpcom Identifikácia študenta a zo zoznamu vyberte identifikáciu. Po výbere identifikácie sa automaticky zobrazí meno študenta."]
[{"$nulls":4},"Tip: Uložte postup zadávania údajov. Po pridaní študentov pre jeden mesiac vyberte zadané identifikácie študentov, skopírujte ich a prilepte do stĺpca Identifikácia študenta pre zostávajúce mesiace. "]
[{"$nulls":3},"2.","Vytvorte záznam o dochádzke za každý deň mesiaca pomocou typov dochádzky, ktoré poskytuje kľúč farieb. Dochádzka študenta sa automaticky vypočíta podľa typu dochádzky pre každého študenta v stĺpci súčtu. Celková neprítomnosť za každý deň sa automaticky vypočíta v dolnej časti tabuľky v riadku súčtu."]
[]
[null,"AKO PRIDÁM DO ZÁZNAMU MESAČNEJ DOCHÁDZKY VIAC ŠTUDENTOV?"]
[null,null,"Hárky záznamu mesačnej dochádzky a Zoznam študentov sú excelovými tabuľkami. Ak chcete pridať nové riadky do ľubovoľnej excelovej tabuľky, vykonajte jeden z nasledujúcich krokov:"]
[{"$nulls":3},"● ","Ak v tabuľke nie je riadok súčtu, začnite písať pod tabuľku. Tá sa po stlačení klávesu Enter alebo Tab automaticky rozbalí."]
[{"$nulls":3},"● ","Umiestnite ukazovateľ bunky do poslednej bunky nad riadok súčtu, ako je napríklad bunka Dni neprítomnosti, posledného študenta, a potom stlačte kláves Tab."]
[{"$nulls":3},"● ","Kliknite v tabuľke pravým tlačidlom myši, v kontextovej ponuke ukážte na položku Vložiť a potom kliknite na položku Riadky tabuľky nad alebo Riadky tabuľky pod."]
[{"$nulls":3},"● ","Umiestnite myš na rukoväť na zmenu veľkosti v pravom dolnom rohu tabuľky a potiahnite nadol. Zvýši sa tak počet dostupných riadkov tabuľky."]
[]
[null,"MÔŽEM ZOBRAZIŤ DOCHÁDZKU ŠTUDENTA ZA CELÝ ŠKOLSKÝ ROK?"]
[null,null,"Posledný hárok tohto zošita, Správa o dochádzke študenta, sleduje dochádzku v danom roku k danému dňu. Ak chcete zobraziť správu pre konkrétneho študenta, kliknite na bunku pod položkou Identifikácia študenta a z rozbaľovacieho zoznamu vyberte identifikáciu. Informácie, ktoré ste pre vybratého študenta predtým zadali v hárku Zoznam študentov, sa automaticky zobrazia. Všimnite si, že pri prvom použití Správy o dochádzke študenta je potrebné zadať školu, známku, vyučujúceho a miestnosť. Tieto údaje sa nezmenia, ak vyberiete iného študenta. "]

{"sheet":"Zoznam študentov","index":1,"n_rows":8,"n_cols":19,"rows_kept":8}
["ZOZNAM ŠTUDENTOV"]
[]
[null,"Identifikácia študenta","Meno študenta","Priezvisko študenta","Pohlavie","Dátum narodenia","Rodič alebo opatrovník 1","Vzťah k rodičovi alebo opatrovníkovi 1","Číslo do práce rodiča alebo opatrovníka 1","Číslo domov rodiča alebo opatrovníka 1","Rodič alebo opatrovník 2","Vzťah k rodičovi alebo opatrovníkovi 2","Číslo do práce rodiča alebo opatrovníka 2","Číslo domov rodiča alebo opatrovníka 2","Kontakt pre naliehavé prípady","Vzťah k osobe kontaktu pre naliehavé prípady","Číslo do práce osoby kontaktu pre naliehavé prípady ","Číslo domov osoby kontaktu pre naliehavé prípady","Celé meno študenta "]
[null,"S001","Michal","Horváth","M","1997-03-28","Martina Horváthová","Matka",1235550134,2345550134,"Peter Horváth","Otec",1235550134,2345550134,"Tomáš Novák","Starý otec",7895550189,7895550134,{"$f":"ZoznamŠtudentov[[#This Row],[Meno študenta]]&\" \" &ZoznamŠtudentov[[#This Row],[Priezvisko študenta]]","v":"Michal Horváth"}]
[null,"S002","Študent",2,{"$nulls":14},{"$f":"ZoznamŠtudentov[[#This Row],[Meno študenta]]&\" \" &ZoznamŠtudentov[[#This Row],[Priezvisko študenta]]","v":"Študent 2"}]
[null,"S003","Študent",3,{"$nulls":14},{"$f":"ZoznamŠtudentov[[#This Row],[Meno študenta]]&\" \" &ZoznamŠtudentov[[#This Row],[Priezvisko študenta]]","v":"Študent 3"}]
[null,"S004","Študent",4,{"$nulls":14},{"$f":"ZoznamŠtudentov[[#This Row],[Meno študenta]]&\" \" &ZoznamŠtudentov[[#This Row],[Priezvisko študenta]]","v":"Študent 4"}]
[null,"S005","Študent",5,{"$nulls":14},{"$f":"ZoznamŠtudentov[[#This Row],[Meno študenta]]&\" \" &ZoznamŠtudentov[[#This Row],[Priezvisko študenta]]","v":"Študent 5"}]

{"sheet":"August","index":2,"n_rows":12,"n_cols":39,"rows_kept":12,"merged":[[4,34,4,38]]}
["ZÁZNAM DOCHÁDZKY ŠTUDENTA",{"$nulls":36},"Začiatok školského roka:",2012]
[]
[null,null,"KĽÚČ FARIEB","N","Neskorý príchod",null,null,"O","Ospravedlnené",null,null,"Ne","Neospravedlnené",{"$nulls":3},"Na","Na vyučovaní",null,null,"Ž","Žiadne vyučovanie"]
[]
[null,{"$f":"DATE(KalendárnyRok,8,1)","v":"2012-08-01"},null,{"$f":"TEXT(WEEKDAY(DATE(KalendárnyRok,8,1),1),\"aaa\")","v":"st"},{"$f":"TEXT(WEEKDAY(DATE(KalendárnyRok,8,2),1),\"aaa\")","v":"št"},{"$f":"TEXT(WEEKDAY(DATE(KalendárnyRok,8,3),1),\"aaa\")","v":"pi"},{"$f":"TEXT(WEEKDAY(DATE(KalendárnyRok,8,4),1),\"aaa\")","v":"so"},{"$f":"TEXT(WEEKDAY(DATE(KalendárnyRok,8,5),1),\"aaa\")","v":"ne"},{"$f":"TEXT(WEEKDAY(DATE(KalendárnyRok,8,6),1),\"aaa\")","v":"po"},{"$f":"TEXT(WEEKDAY(DATE(KalendárnyRok,8,7),1),\"aaa\")","v":"ut"},{"$f":"TEXT(WEEKDAY(DATE(KalendárnyRok,8,8),1),\"aaa\")","v":"st"},{"$f":"TEXT(WEEKDAY(DATE(KalendárnyRok,8,9),1),\"aaa\")","v":"št"},{"$f":"TEXT(WEEKDAY(DATE(KalendárnyRok,8,10),1),\"aaa\")","v":"pi"},{"$f":"TEXT(WEEKDAY(DATE(KalendárnyRok,8,11),1),\"aaa\")","v":"so"},{"$f":"TEXT(WEEKDAY(DATE(KalendárnyRok,8,12),1),\"aaa\")","v":"ne"},{"$f":"TEXT(WEEKDAY(DATE(KalendárnyRok,8,13),1),\"aaa\")","v":"po"},{"$f":"TEXT(WEEKDAY(DATE(KalendárnyRok,8,14),1),\"aaa\")","v":"ut"},{"$f":"TEXT(WEEKDAY(DATE(KalendárnyRok,8,15),1),\"aaa\")","v":"st"},{"$f":"TEXT(WEEKDAY(DATE(KalendárnyRok,8,16),1),\"aaa\")","v":"št"},{"$f":"TEXT(WEEKDAY(DATE(KalendárnyRok,8,17),1),\"aaa\")","v":"pi"},{"$f":"TEXT(WEEKDAY(DATE(KalendárnyRok,8,18),1),\"aaa\")","v":"so"},{"$f":"TEXT(WEEKDAY(DATE(KalendárnyRok,8,19),1),\"aaa\")","v":"ne"},{"$f":"TEXT(WEEKDAY(DATE(KalendárnyRok,8,20),1),\"aaa\")","v":"po"},{"$f":"TEXT(WEEKDAY(DATE(KalendárnyRok,8,21),1),\"aaa\")","v":"ut"},{"$f":"TEXT(WEEKDAY(DATE(KalendárnyRok,8,22),1),\"aaa\")","v":"st"},{"$f":"TEXT(WEEKDAY(DATE(KalendárnyRok,8,23),1),\"aaa\")","v":"št"},{"$f":"TEXT(WEEKDAY(DATE(KalendárnyRok,8,24),1),\"aaa\")","v":"pi"},{"$f":"TEXT(WEEKDAY(DATE(KalendárnyRok,8,25),1),\"aaa\")","v":"so"},{"$f":"TEXT(WEEKDAY(DATE(KalendárnyRok,8,26),1),\"aaa\")","v":"ne"},{"$f":"TEXT(WEEKDAY(DATE(KalendárnyRok,8,27),1),\"aaa\")","v":"po"},{"$f":"TEXT(WEEKDAY(DATE(KalendárnyRok,8,28),1),\"aaa\")","v":"ut"},{"$f":"TEXT(WEEKDAY(DATE(KalendárnyRok,8,29),1),\"aaa\")","v":"st"},{"$f":"TEXT(WEEKDAY(DATE(KalendárnyRok,8,30),1),\"aaa\")","v":"št"},{"$f":"TEXT(WEEKDAY(DATE(KalendárnyRok,8,31),1),\"aaa\")","v":"pi"},"Súčet"]
[null,"Identifikácia študenta","Meno študenta","1","2","3","4","5","6","7","8","9","10","11","12","13","14","15","16","17","18","19","20","21","22","23","24","25","26","27","28","29","30","31","N","O","Ne","Ž","Dni neprítomnosti"]
[null,"S001",{"$f":"IFERROR(VLOOKUP(DochádzkaVAuguste[[#This Row],[Identifikácia študenta]],ZoznamŠtudentov[],18,FALSE),\"\")","v":"Michal Horváth"},"Na","Na","N","N","Na","Ž","Ž","Na","Na","O","Na","Na","Ž","Ž","Na","Na","Na","Na","Na","Ž","Ž","Na","Na","Na","Na","Na","Ž","Ž","Na","Na","Na",{"$f":"COUNTIF(DochádzkaVAuguste[[#This Row],[1]:[31]],Kód1)","v":2},{"$f":"COUNTIF(DochádzkaVAuguste[[#This Row],[1]:[31]],Kód2)","v":1},{"$f":"COUNTIF(DochádzkaVAuguste[[#This Row],[1]:[31]],Kód3)","v":0},{"$f":"COUNTIF(DochádzkaVAuguste[[#This Row],[1]:[31]],Kód4)","v":20},{"$f":"SUM(DochádzkaVAuguste[[#This Row],[O]:[Ne]])","v":1}]
[null,"S002",{"$f":"IFERROR(VLOOKUP(DochádzkaVAuguste[[#This Row],[Identifikácia študenta]],ZoznamŠtudentov[],18,FALSE),\"\")","v":"Študent 2"},"Na","Ne","Na","Na","Na","Ž","Ž","Na","O","O","O","O","Ž","Ž","Na","Na","Na","Na","Na","Ž","Ž","Na","Na","Na","N","N","Ž","Ž","Na","Na","Na",{"$f":"COUNTIF(DochádzkaVAuguste[[#This Row],[1]:[31]],Kód1)","v":2},{"$f":"COUNTIF(DochádzkaVAuguste[[#This Row],[1]:[31]],Kód2)","v":4},{"$f":"COUNTIF(DochádzkaVAuguste[[#This Row],[1]:[31]],Kód3)","v":1},{"$f":"COUNTIF(DochádzkaVAuguste[[#This Row],[1]:[31]],Kód4)","v":16},{"$f":"SUM(DochádzkaVAuguste[[#This Row],[O]:[Ne]])","v":5}]
[null,"S003",{"$f":"IFERROR(VLOOKUP(DochádzkaVAuguste[[#This Row],[Identifikácia študenta]],ZoznamŠtudentov[],18,FALSE),\"\")","v":"Študent 3"},"Na","O","Na","Na","Na","Ž","Ž","Na","Na","Ne","Na","Na","Ž","Ž","Na","Na","Na","Na","Na","Ž","Ž","Na","Na","O","O","Na","Ž","Ž","Na","Na","Na",{"$f":"COUNTIF(DochádzkaVAuguste[[#This Row],[1]:[31]],Kód1)","v":0},{"$f":"COUNTIF(DochádzkaVAuguste[[#This Row],[1]:[31]],Kód2)","v":3},{"$f":"COUNTIF(DochádzkaVAuguste[[#This Row],[1]:[31]],Kód3)","v":1},{"$f":"COUNTIF(DochádzkaVAuguste[[#This Row],[1]:[31]],Kód4)","v":19},{"$f":"SUM(DochádzkaVAuguste[[#This Row],[O]:[Ne]])","v":4}]
[null,"S004",{"$f":"IFERROR(VLOOKUP(DochádzkaVAuguste[[#This Row],[Identifikácia študenta]],ZoznamŠtudentov[],18,FALSE),\"\")","v":"Študent 4"},"Na","Na","Na","Na","Na","Ž","Ž","Na","Na","Na","Na","Na","Ž","Ž","Na","Na","Na","Na","Na","Ž","Ž","Na","Ne","Na","Na","O","Ž","Ž","Na","O","Na",{"$f":"COUNTIF(DochádzkaVAuguste[[#This Row],[1]:[31]],Kód1)","v":0},{"$f":"COUNTIF(DochádzkaVAuguste[[#This Row],[1]:[31]],Kód2)","v":2},{"$f":"COUNTIF(DochádzkaVAuguste[[#This Row],[1]:[31]],Kód3)","v":1},{"$f":"COUNTIF(DochádzkaVAuguste[[#This Row],[1]:[31]],Kód4)","v":20},{"$f":"SUM(DochádzkaVAuguste[[#This Row],[O]:[Ne]])","v":3}]
[null,"S005",{"$f":"IFERROR(VLOOKUP(DochádzkaVAuguste[[#This Row],[Identifikácia študenta]],ZoznamŠtudentov[],18,FALSE),\"\")","v":"Študent 5"},"Na","Na","Na","Na","Na","Ž","Ž","Na","Na","Na","Na","Na","Ž","Ž","Na","Na","Na","Na","Na","Ž","Ž","Na","Na","Na","Na","Na","Ž","Ž","Na","Na","Na",{"$f":"COUNTIF(DochádzkaVAuguste[[#This Row],[1]:[31]],Kód1)","v":0},{"$f":"COUNTIF(DochádzkaVAuguste[[#This Row],[1]:[31]],Kód2)","v":0},{"$f":"COUNTIF(DochádzkaVAuguste[[#This Row],[1]:[31]],Kód3)","v":0},{"$f":"COUNTIF(DochádzkaVAuguste[[#This Row],[1]:[31]],Kód4)","v":23},{"$f":"SUM(DochádzkaVAuguste[[#This Row],[O]:[Ne]])","v":0}]
[null,null,"Súčet dní neprítomnosti",{"$f":"COUNTIF(DochádzkaVAuguste[1],\"Ne\")+COUNTIF(DochádzkaVAuguste[1],\"O\")","v":0},{"$f":"COUNTIF(DochádzkaVAuguste[2],\"Ne\")+COUNTIF(DochádzkaVAuguste[2],\"O\")","v":2},{"$f":"COUNTIF(DochádzkaVAuguste[3],\"Ne\")+COUNTIF(DochádzkaVAuguste[3],\"O\")","v":0},{"$f":"COUNTIF(DochádzkaVAuguste[4],\"Ne\")+COUNTIF(DochádzkaVAuguste[4],\"O\")","v":0},{"$f":"COUNTIF(DochádzkaVAuguste[5],\"Ne\")+COUNTIF(DochádzkaVAuguste[5],\"O\")","v":0},{"$f":"COUNTIF(DochádzkaVAuguste[6],\"Ne\")+COUNTIF(DochádzkaVAuguste[6],\"O\")","v":0},{"$f":"COUNTIF(DochádzkaVAuguste[7],\"Ne\")+COUNTIF(DochádzkaVAuguste[7],\"O\")","v":0},{"$f":"COUNTIF(DochádzkaVAuguste[8],\"Ne\")+COUNTIF(DochádzkaVAuguste[8],\"O\")","v":0},{"$f":"COUNTIF(DochádzkaVAuguste[9],\"Ne\")+COUNTIF(DochádzkaVAuguste[9],\"O\")","v":1},{"$f":"COUNTIF(DochádzkaVAuguste[10],\"Ne\")+COUNTIF(DochádzkaVAuguste[10],\"O\")","v":3},{"$f":"COUNTIF(DochádzkaVAuguste[11],\"Ne\")+COUNTIF(DochádzkaVAuguste[11],\"O\")","v":1},{"$f":"COUNTIF(DochádzkaVAuguste[12],\"Ne\")+COUNTIF(DochádzkaVAuguste[12],\"O\")","v":1},{"$f":"COUNTIF(DochádzkaVAuguste[13],\"Ne\")+COUNTIF(DochádzkaVAuguste[13],\"O\")","v":0},{"$f":"COUNTIF(DochádzkaVAuguste[14],\"Ne\")+COUNTIF(DochádzkaVAuguste[14],\"O\")","v":0},{"$f":"COUNTIF(DochádzkaVAuguste[15],\"Ne\")+COUNTIF(DochádzkaVAuguste[15],\"O\")","v":0},{"$f":"COUNTIF(DochádzkaVAuguste[16],\"Ne\")+COUNTIF(DochádzkaVAuguste[16],\"O\")","v":0},{"$f":"COUNTIF(DochádzkaVAuguste[17],\"Ne\")+COUNTIF(DochádzkaVAuguste[17],\"O\")","v":0},{"$f":"COUNTIF(DochádzkaVAuguste[18],\"Ne\")+COUNTIF(DochádzkaVAuguste[18],\"O\")","v":0},{"$f":"COUNTIF(DochádzkaVAuguste[19],\"Ne\")+COUNTIF(DochádzkaVAuguste[19],\"O\")","v":0},{"$f":"COUNTIF(DochádzkaVAuguste[20],\"Ne\")+COUNTIF(DochádzkaVAuguste[20],\"O\")","v":0},{"$f":"COUNTIF(DochádzkaVAuguste[21],\"Ne\")+COUNTIF(DochádzkaVAuguste[21],\"O\")","v":0},{"$f":"COUNTIF(DochádzkaVAuguste[22],\"Ne\")+COUNTIF(DochádzkaVAuguste[22],\"O\")","v":0},{"$f":"COUNTIF(DochádzkaVAuguste[23],\"Ne\")+COUNTIF(DochádzkaVAuguste[23],\"O\")","v":1},{"$f":"COUNTIF(DochádzkaVAuguste[24],\"Ne\")+COUNTIF(DochádzkaVAuguste[24],\"O\")","v":1},{"$f":"COUNTIF(DochádzkaVAuguste[25],\"Ne\")+COUNTIF(DochádzkaVAuguste[25],\"O\")","v":1},{"$f":"COUNTIF(DochádzkaVAuguste[26],\"Ne\")+COUNTIF(DochádzkaVAuguste[26],\"O\")","v":1},{"$f":"COUNTIF(DochádzkaVAuguste[27],\"Ne\")+COUNTIF(DochádzkaVAuguste[27],\"O\")","v":0},{"$f":"COUNTIF(DochádzkaVAuguste[28],\"Ne\")+COUNTIF(DochádzkaVAuguste[28],\"O\")","v":0},{"$f":"COUNTIF(DochádzkaVAuguste[29],\"Ne\")+COUNTIF(DochádzkaVAuguste[29],\"O\")","v":0},{"$f":"COUNTIF(DochádzkaVAuguste[30],\"Ne\")+COUNTIF(DochádzkaVAuguste[30],\"O\")","v":1},{"$f":"COUNTIF(DochádzkaVAuguste[31],\"Ne\")+COUNTIF(DochádzkaVAuguste[31],\"O\")","v":0},{"$f":"SUBTOTAL(109,DochádzkaVAuguste[N])","v":4},{"$f":"SUBTOTAL(109,DochádzkaVAuguste[O])","v":10},{"$f":"SUBTOTAL(109,DochádzkaVAuguste[Ne])","v":3},{"$f":"SUBTOTAL(109,DochádzkaVAuguste[Ž])","v":98},{"$f":"SUBTOTAL(109,DochádzkaVAuguste[Dni neprítomnosti])","v":13}]

{"sheet":"September","index":3,"n_rows":12,"n_cols":39,"rows_kept":12,"merged":[[4,34,4,38]]}
["ZÁZNAM DOCHÁDZKY ŠTUDENTA",{"$nulls":36},"Začiatok školského roka:",2012]
[]
[null,null,{"$f":"TextKľúčaFarieb","v":"KĽÚČ FARIEB"},{"$f":"Kód1","v":"N"},{"$f":"TextKódu1","v":"Neskorý príchod"},null,null,{"$f":"Kód2","v":"O"},{"$f":"TextKódu2","v":"Ospravedlnené"},null,null,{"$f":"Kód3","v":"Ne"},{"$f":"TextKódu3","v":"Neospravedlnené"},{"$nulls":3},{"$f":"Kód4","v":"Na"},{"$f":"TextKódu4","v":"Na vyučovaní"},null,null,{"$f":"Kód5","v":"Ž"},{"$f":"TextKódu5","v":"Žiadne vyučovanie"}]
[]
[null,{"$f":"DATE(KalendárnyRok,9,1)","v":"2012-09-01"},null,{"$f":"TEXT(WEEKDAY(DATE(KalendárnyRok,9,1),1),\"aaa\")","v":"so"},{"$f":"TEXT(WEEKDAY(DATE(KalendárnyRok,9,2),1),\"aaa\")","v":"ne"},{"$f":"TEXT(WEEKDAY(DATE(KalendárnyRok,9,3),1),\"aaa\")","v":"po"},{"$f":"TEXT(WEEKDAY(DATE(KalendárnyRok,9,4),1),\"aaa\")","v":"ut"},{"$f":"TEXT(WEEKDAY(DATE(KalendárnyRok,9,5),1),\"aaa\")","v":"st"},{"$f":"TEXT(WEEKDAY(DATE(KalendárnyRok,9,6),1),\"aaa\")","v":"št"},{"$f":"TEXT(WEEKDAY(DATE(KalendárnyRok,9,7),1),\"aaa\")","v":"pi"},{"$f":"TEXT(WEEKDAY(DATE(KalendárnyRok,9,8),1),\"aaa\")","v":"so"},{"$f":"TEXT(WEEKDAY(DATE(KalendárnyRok,9,9),1),\"aaa\")","v":"ne"},{"$f":"TEXT(WEEKDAY(DATE(KalendárnyRok,9,10),1),\"aaa\")","v":"po"},{"$f":"TEXT(WEEKDAY(DATE(KalendárnyRok,9,11),1),\"aaa\")","v":"ut"},{"$f":"TEXT(WEEKDAY(DATE(KalendárnyRok,9,12),1),\"aaa\")","v":"st"},{"$f":"TEXT(WEEKDAY(DATE(KalendárnyRok,9,13),1),\"aaa\")","v":"št"},{"$f":"TEXT(WEEKDAY(DATE(KalendárnyRok,9,14),1),\"aaa\")","v":"pi"},{"$f":"TEXT(WEEKDAY(DATE(KalendárnyRok,9,15),1),\"aaa\")","v":"so"},{"$f":"TEXT(WEEKDAY(DATE(KalendárnyRok,9,16),1),\"aaa\")","v":"ne"},{"$f":"TEXT(WEEKDAY(DATE(KalendárnyRok,9,17),1),\"aaa\")","v":"po"},{"$f":"TEXT(WEEKDAY(DATE(KalendárnyRok,9,18),1),\"aaa\")","v":"ut"},{"$f":"TEXT(WEEKDAY(DATE(KalendárnyRok,9,19),1),\"aaa\")","v":"st"},{"$f":"TEXT(WEEKDAY(DATE(KalendárnyRok,9,20),1),\"aaa\")","v":"št"},{"$f":"TEXT(WEEKDAY(DATE(KalendárnyRok,9,21),1),\"aaa\")","v":"pi"},{"$f":"TEXT(WEEKDAY(DATE(KalendárnyRok,9,22),1),\"aaa\")","v":"so"},{"$f":"TEXT(WEEKDAY(DATE(KalendárnyRok,9,23),1),\"aaa\")","v":"ne"},{"$f":"TEXT(WEEKDAY(DATE(KalendárnyRok,9,24),1),\"aaa\")","v":"po"},{"$f":"TEXT(WEEKDAY(DATE(KalendárnyRok,9,25),1),\"aaa\")","v":"ut"},{"$f":"TEXT(WEEKDAY(DATE(KalendárnyRok,9,26),1),\"aaa\")","v":"st"},{"$f":"TEXT(WEEKDAY(DATE(KalendárnyRok,9,27),1),\"aaa\")","v":"št"},{"$f":"TEXT(WEEKDAY(DATE(KalendárnyRok,9,28),1),\"aaa\")","v":"pi"},{"$f":"TEXT(WEEKDAY(DATE(KalendárnyRok,9,29),1),\"aaa\")","v":"so"},{"$f":"TEXT(WEEKDAY(DATE(KalendárnyRok,9,30),1),\"aaa\")","v":"ne"},null,"Súčet"]
[null,"Identifikácia študenta","Meno študenta","1","2","3","4","5","6","7","8","9","10","11","12","13","14","15","16","17","18","19","20","21","22","23","24","25","26","27","28","29","30","31","N","O","Ne","Ž","Dni neprítomnosti"]
[null,null,{"$f":"IFERROR(VLOOKUP(DochádzkaVSeptembri[[#This Row],[Identifikácia študenta]],ZoznamŠtudentov[],18,FALSE),\"\")","v":""},{"$nulls":31},{"$f":"COUNTIF(DochádzkaVSeptembri[[#This Row],[1]:[31]],Kód1)","v":0},{"$f":"COUNTIF(DochádzkaVSeptembri[[#This Row],[1]:[31]],Kód2)","v":0},{"$f":"COUNTIF(DochádzkaVSeptembri[[#This Row],[1]:[31]],Kód3)","v":0},{"$f":"COUNTIF(DochádzkaVSeptembri[[#This Row],[1]:[31]],Kód4)","v":0},{"$f":"SUM(DochádzkaVSeptembri[[#This Row],[O]:[Ne]])","v":0}]
[null,null,{"$f":"IFERROR(VLOOKUP(DochádzkaVSeptembri[[#This Row],[Identifikácia študenta]],ZoznamŠtudentov[],18,FALSE),\"\")","v":""},{"$nulls":31},{"$f":"COUNTIF(DochádzkaVSeptembri[[#This Row],[1]:[31]],Kód1)","v":0},{"$f":"COUNTIF(DochádzkaVSeptembri[[#This Row],[1]:[31]],Kód2)","v":0},{"$f":"COUNTIF(DochádzkaVSeptembri[[#This Row],[1]:[31]],Kód3)","v":0},{"$f":"COUNTIF(DochádzkaVSeptembri[[#This Row],[1]:[31]],Kód4)","v":0},{"$f":"SUM(DochádzkaVSeptembri[[#This Row],[O]:[Ne]])","v":0}]
[null,null,{"$f":"IFERROR(VLOOKUP(DochádzkaVSeptembri[[#This Row],[Identifikácia študenta]],ZoznamŠtudentov[],18,FALSE),\"\")","v":""},{"$nulls":31},{"$f":"COUNTIF(DochádzkaVSeptembri[[#This Row],[1]:[31]],Kód1)","v":0},{"$f":"COUNTIF(DochádzkaVSeptembri[[#This Row],[1]:[31]],Kód2)","v":0},{"$f":"COUNTIF(DochádzkaVSeptembri[[#This Row],[1]:[31]],Kód3)","v":0},{"$f":"COUNTIF(DochádzkaVSeptembri[[#This Row],[1]:[31]],Kód4)","v":0},{"$f":"SUM(DochádzkaVSeptembri[[#This Row],[O]:[Ne]])","v":0}]
[null,null,{"$f":"IFERROR(VLOOKUP(DochádzkaVSeptembri[[#This Row],[Identifikácia študenta]],ZoznamŠtudentov[],18,FALSE),\"\")","v":""},{"$nulls":31},{"$f":"COUNTIF(DochádzkaVSeptembri[[#This Row],[1]:[31]],Kód1)","v":0},{"$f":"COUNTIF(DochádzkaVSeptembri[[#This Row],[1]:[31]],Kód2)","v":0},{"$f":"COUNTIF(DochádzkaVSeptembri[[#This Row],[1]:[31]],Kód3)","v":0},{"$f":"COUNTIF(DochádzkaVSeptembri[[#This Row],[1]:[31]],Kód4)","v":0},{"$f":"SUM(DochádzkaVSeptembri[[#This Row],[O]:[Ne]])","v":0}]
[null,null,{"$f":"IFERROR(VLOOKUP(DochádzkaVSeptembri[[#This Row],[Identifikácia študenta]],ZoznamŠtudentov[],18,FALSE),\"\")","v":""},{"$nulls":31},{"$f":"COUNTIF(DochádzkaVSeptembri[[#This Row],[1]:[31]],Kód1)","v":0},{"$f":"COUNTIF(DochádzkaVSeptembri[[#This Row],[1]:[31]],Kód2)","v":0},{"$f":"COUNTIF(DochádzkaVSeptembri[[#This Row],[1]:[31]],Kód3)","v":0},{"$f":"COUNTIF(DochádzkaVSeptembri[[#This Row],[1]:[31]],Kód4)","v":0},{"$f":"SUM(DochádzkaVSeptembri[[#This Row],[O]:[Ne]])","v":0}]
[null,null,"Súčet dní neprítomnosti",{"$f":"COUNTIF(DochádzkaVSeptembri[1],\"Ne\")+COUNTIF(DochádzkaVSeptembri[1],\"O\")","v":0},{"$f":"COUNTIF(DochádzkaVSeptembri[2],\"Ne\")+COUNTIF(DochádzkaVSeptembri[2],\"O\")","v":0},{"$f":"COUNTIF(DochádzkaVSeptembri[3],\"Ne\")+COUNTIF(DochádzkaVSeptembri[3],\"O\")","v":0},{"$f":"COUNTIF(DochádzkaVSeptembri[4],\"Ne\")+COUNTIF(DochádzkaVSeptembri[4],\"O\")","v":0},{"$f":"COUNTIF(DochádzkaVSeptembri[5],\"Ne\")+COUNTIF(DochádzkaVSeptembri[5],\"O\")","v":0},{"$f":"COUNTIF(DochádzkaVSeptembri[6],\"Ne\")+COUNTIF(DochádzkaVSeptembri[6],\"O\")","v":0},{"$f":"COUNTIF(DochádzkaVSeptembri[7],\"Ne\")+COUNTIF(DochádzkaVSeptembri[7],\"O\")","v":0},{"$f":"COUNTIF(DochádzkaVSeptembri[8],\"Ne\")+COUNTIF(DochádzkaVSeptembri[8],\"O\")","v":0},{"$f":"COUNTIF(DochádzkaVSeptembri[9],\"Ne\")+COUNTIF(DochádzkaVSeptembri[9],\"O\")","v":0},{"$f":"COUNTIF(DochádzkaVSeptembri[10],\"Ne\")+COUNTIF(DochádzkaVSeptembri[10],\"O\")","v":0},{"$f":"COUNTIF(DochádzkaVSeptembri[11],\"Ne\")+COUNTIF(DochádzkaVSeptembri[11],\"O\")","v":0},{"$f":"COUNTIF(DochádzkaVSeptembri[12],\"Ne\")+COUNTIF(DochádzkaVSeptembri[12],\"O\")","v":0},{"$f":"COUNTIF(DochádzkaVSeptembri[13],\"Ne\")+COUNTIF(DochádzkaVSeptembri[13],\"O\")","v":0},{"$f":"COUNTIF(DochádzkaVSeptembri[14],\"Ne\")+COUNTIF(DochádzkaVSeptembri[14],\"O\")","v":0},{"$f":"COUNTIF(DochádzkaVSeptembri[15],\"Ne\")+COUNTIF(DochádzkaVSeptembri[15],\"O\")","v":0},{"$f":"COUNTIF(DochádzkaVSeptembri[16],\"Ne\")+COUNTIF(DochádzkaVSeptembri[16],\"O\")","v":0},{"$f":"COUNTIF(DochádzkaVSeptembri[17],\"Ne\")+COUNTIF(DochádzkaVSeptembri[17],\"O\")","v":0},{"$f":"COUNTIF(DochádzkaVSeptembri[18],\"Ne\")+COUNTIF(DochádzkaVSeptembri[18],\"O\")","v":0},{"$f":"COUNTIF(DochádzkaVSeptembri[19],\"Ne\")+COUNTIF(DochádzkaVSeptembri[19],\"O\")","v":0},{"$f":"COUNTIF(DochádzkaVSeptembri[20],\"Ne\")+COUNTIF(DochádzkaVSeptembri[20],\"O\")","v":0},{"$f":"COUNTIF(DochádzkaVSeptembri[21],\"Ne\")+COUNTIF(DochádzkaVSeptembri[21],\"O\")","v":0},{"$f":"COUNTIF(DochádzkaVSeptembri[22],\"Ne\")+COUNTIF(DochádzkaVSeptembri[22],\"O\")","v":0},{"$f":"COUNTIF(DochádzkaVSeptembri[23],\"Ne\")+COUNTIF(DochádzkaVSeptembri[23],\"O\")","v":0},{"$f":"COUNTIF(DochádzkaVSeptembri[24],\"Ne\")+COUNTIF(DochádzkaVSeptembri[24],\"O\")","v":0},{"$f":"COUNTIF(DochádzkaVSeptembri[25],\"Ne\")+COUNTIF(DochádzkaVSeptembri[25],\"O\")","v":0},{"$f":"COUNTIF(DochádzkaVSeptembri[26],\"Ne\")+COUNTIF(DochádzkaVSeptembri[26],\"O\")","v":0},{"$f":"COUNTIF(DochádzkaVSeptembri[27],\"Ne\")+COUNTIF(DochádzkaVSeptembri[27],\"O\")","v":0},{"$f":"COUNTIF(DochádzkaVSeptembri[28],\"Ne\")+COUNTIF(DochádzkaVSeptembri[28],\"O\")","v":0},{"$f":"COUNTIF(DochádzkaVSeptembri[29],\"Ne\")+COUNTIF(DochádzkaVSeptembri[29],\"O\")","v":0},{"$f":"COUNTIF(DochádzkaVSeptembri[30],\"Ne\")+COUNTIF(DochádzkaVSeptembri[30],\"O\")","v":0},{"$f":"COUNTIF(DochádzkaVSeptembri[31],\"Ne\")+COUNTIF(DochádzkaVSeptembri[31],\"O\")","v":0},{"$f":"SUBTOTAL(109,DochádzkaVSeptembri[N])","v":0},{"$f":"SUBTOTAL(109,DochádzkaVSeptembri[O])","v":0},{"$f":"SUBTOTAL(109,DochádzkaVSeptembri[Ne])","v":0},{"$f":"SUBTOTAL(109,DochádzkaVSeptembri[Ž])","v":0},{"$f":"SUBTOTAL(109,DochádzkaVSeptembri[Dni neprítomnosti])","v":0}]

{"sheet":"Október","index":4,"n_rows":12,"n_cols":39,"rows_kept":12,"merged":[[4,34,4,38]]}
["ZÁZNAM DOCHÁDZKY ŠTUDENTA",{"$nulls":36},"Začiatok školského roka:",2012]
[]
[null,null,{"$f":"TextKľúčaFarieb","v":"KĽÚČ FARIEB"},{"$f":"Kód1","v":"N"},{"$f":"TextKódu1","v":"Neskorý príchod"},null,null,{"$f":"Kód2","v":"O"},{"$f":"TextKódu2","v":"Ospravedlnené"},null,null,{"$f":"Kód3","v":"Ne"},{"$f":"TextKódu3","v":"Neospravedlnené"},{"$nulls":3},{"$f":"Kód4","v":"Na"},{"$f":"TextKódu4","v":"Na vyučovaní"},null,null,{"$f":"Kód5","v":"Ž"},{"$f":"TextKódu5","v":"Žiadne vyučovanie"}]
[]
[null,{"$f":"DATE(KalendárnyRok,10,1)","v":"2012-10-01"},null,{"$f":"TEXT(WEEKDAY(DATE(KalendárnyRok,10,1),1),\"aaa\")","v":"po"},{"$f":"TEXT(WEEKDAY(DATE(KalendárnyRok,10,2),1),\"aaa\")","v":"ut"},{"$f":"TEXT(WEEKDAY(DATE(KalendárnyRok,10,3),1),\"aaa\")","v":"st"},{"$f":"TEXT(WEEKDAY(DATE(KalendárnyRok,10,4),1),\"aaa\")","v":"št"},{"$f":"TEXT(WEEKDAY(DATE(KalendárnyRok,10,5),1),\"aaa\")","v":"pi"},{"$f":"TEXT(WEEKDAY(DATE(KalendárnyRok,10,6),1),\"aaa\")","v":"so"},{"$f":"TEXT(WEEKDAY(DATE(KalendárnyRok,10,7),1),\"aaa\")","v":"ne"},{"$f":"TEXT(WEEKDAY(DATE(KalendárnyRok,10,8),1),\"aaa\")","v":"po"},{"$f":"TEXT(WEEKDAY(DATE(KalendárnyRok,10,9),1),\"aaa\")","v":"ut"},{"$f":"TEXT(WEEKDAY(DATE(KalendárnyRok,10,10),1),\"aaa\")","v":"st"},{"$f":"TEXT(WEEKDAY(DATE(KalendárnyRok,10,11),1),\"aaa\")","v":"št"},{"$f":"TEXT(WEEKDAY(DATE(KalendárnyRok,10,12),1),\"aaa\")","v":"pi"},{"$f":"TEXT(WEEKDAY(DATE(KalendárnyRok,10,13),1),\"aaa\")","v":"so"},{"$f":"TEXT(WEEKDAY(DATE(KalendárnyRok,10,14),1),\"aaa\")","v":"ne"},{"$f":"TEXT(WEEKDAY(DATE(KalendárnyRok,10,15),1),\"aaa\")","v":"po"},{"$f":"TEXT(WEEKDAY(DATE(KalendárnyRok,10,16),1),\"aaa\")","v":"ut"},{"$f":"TEXT(WEEKDAY(DATE(KalendárnyRok,10,17),1),\"aaa\")","v":"st"},{"$f":"TEXT(WEEKDAY(DATE(KalendárnyRok,10,18),1),\"aaa\")","v":"št"},{"$f":"TEXT(WEEKDAY(DATE(KalendárnyRok,10,19),1),\"aaa\")","v":"pi"},{"$f":"TEXT(WEEKDAY(DATE(KalendárnyRok,10,20),1),\"aaa\")","v":"so"},{"$f":"TEXT(WEEKDAY(DATE(KalendárnyRok,10,21),1),\"aaa\")","v":"ne"},{"$f":"TEXT(WEEKDAY(DATE(KalendárnyRok,10,22),1),\"aaa\")","v":"po"},{"$f":"TEXT(WEEKDAY(DATE(KalendárnyRok,10,23),1),\"aaa\")","v":"ut"},{"$f":"TEXT(WEEKDAY(DATE(KalendárnyRok,10,24),1),\"aaa\")","v":"st"},{"$f":"TEXT(WEEKDAY(DATE(KalendárnyRok,10,25),1),\"aaa\")","v":"št"},{"$f":"TEXT(WEEKDAY(DATE(KalendárnyRok,10,26),1),\"aaa\")","v":"pi"},{"$f":"TEXT(WEEKDAY(DATE(KalendárnyRok,10,27),1),\"aaa\")","v":"so"},{"$f":"TEXT(WEEKDAY(DATE(KalendárnyRok,10,28),1),\"aaa\")","v":"ne"},{"$f":"TEXT(WEEKDAY(DATE(KalendárnyRok,10,29),1),\"aaa\")","v":"po"},{"$f":"TEXT(WEEKDAY(DATE(KalendárnyRok,10,30),1),\"aaa\")","v":"ut"},{"$f":"TEXT(WEEKDAY(DATE(KalendárnyRok,10,31),1),\"aaa\")","v":"st"},"Súčet"]
[null,"Identifikácia študenta","Meno študenta","1","2","3","4","5","6","7","8","9","10","11","12","13","14","15","16","17","18","19","20","21","22","23","24","25","26","27","28","29","30","31","N","O","Ne","Ž","Dni neprítomnosti"]
[null,null,{"$f":"IFERROR(VLOOKUP(DochádzkaVOktóbri[[#This Row],[Identifikácia študenta]],ZoznamŠtudentov[],18,FALSE),\"\")","v":""},{"$nulls":31},{"$f":"COUNTIF(DochádzkaVOktóbri[[#This Row],[1]:[31]],Kód1)","v":0},{"$f":"COUNTIF(DochádzkaVOktóbri[[#This Row],[1]:[31]],Kód2)","v":0},{"$f":"COUNTIF(DochádzkaVOktóbri[[#This Row],[1]:[31]],Kód3)","v":0},{"$f":"COUNTIF(DochádzkaVOktóbri[[#This Row],[1]:[31]],Kód4)","v":0},{"$f":"SUM(DochádzkaVSeptembri[[#This Row],[O]:[Ne]])","v":0}]
[null,null,{"$f":"IFERROR(VLOOKUP(DochádzkaVOktóbri[[#This Row],[Identifikácia študenta]],ZoznamŠtudentov[],18,FALSE),\"\")","v":""},{"$nulls":31},{"$f":"COUNTIF(DochádzkaVOktóbri[[#This Row],[1]:[31]],Kód1)","v":0},{"$f":"COUNTIF(DochádzkaVOktóbri[[#This Row],[1]:[31]],Kód2)","v":0},{"$f":"COUNTIF(DochádzkaVOktóbri[[#This Row],[1]:[31]],Kód3)","v":0},{"$f":"COUNTIF(DochádzkaVOktóbri[[#This Row],[1]:[31]],Kód4)","v":0},{"$f":"SUM(DochádzkaVSeptembri[[#This Row],[O]:[Ne]])","v":0}]
[null,null,{"$f":"IFERROR(VLOOKUP(DochádzkaVOktóbri[[#This Row],[Identifikácia študenta]],ZoznamŠtudentov[],18,FALSE),\"\")","v":""},{"$nulls":31},{"$f":"COUNTIF(DochádzkaVOktóbri[[#This Row],[1]:[31]],Kód1)","v":0},{"$f":"COUNTIF(DochádzkaVOktóbri[[#This Row],[1]:[31]],Kód2)","v":0},{"$f":"COUNTIF(DochádzkaVOktóbri[[#This Row],[1]:[31]],Kód3)","v":0},{"$f":"COUNTIF(DochádzkaVOktóbri[[#This Row],[1]:[31]],Kód4)","v":0},{"$f":"SUM(DochádzkaVSeptembri[[#This Row],[O]:[Ne]])","v":0}]
[null,null,{"$f":"IFERROR(VLOOKUP(DochádzkaVOktóbri[[#This Row],[Identifikácia študenta]],ZoznamŠtudentov[],18,FALSE),\"\")","v":""},{"$nulls":31},{"$f":"COUNTIF(DochádzkaVOktóbri[[#This Row],[1]:[31]],Kód1)","v":0},{"$f":"COUNTIF(DochádzkaVOktóbri[[#This Row],[1]:[31]],Kód2)","v":0},{"$f":"COUNTIF(DochádzkaVOktóbri[[#This Row],[1]:[31]],Kód3)","v":0},{"$f":"COUNTIF(DochádzkaVOktóbri[[#This Row],[1]:[31]],Kód4)","v":0},{"$f":"SUM(DochádzkaVSeptembri[[#This Row],[O]:[Ne]])","v":0}]
[null,null,{"$f":"IFERROR(VLOOKUP(DochádzkaVOktóbri[[#This Row],[Identifikácia študenta]],ZoznamŠtudentov[],18,FALSE),\"\")","v":""},{"$nulls":31},{"$f":"COUNTIF(DochádzkaVOktóbri[[#This Row],[1]:[31]],Kód1)","v":0},{"$f":"COUNTIF(DochádzkaVOktóbri[[#This Row],[1]:[31]],Kód2)","v":0},{"$f":"COUNTIF(DochádzkaVOktóbri[[#This Row],[1]:[31]],Kód3)","v":0},{"$f":"COUNTIF(DochádzkaVOktóbri[[#This Row],[1]:[31]],Kód4)","v":0},{"$f":"SUM(DochádzkaVSeptembri[[#This Row],[O]:[Ne]])","v":0}]
[null,null,"Súčet dní neprítomnosti",{"$f":"COUNTIF(DochádzkaVOktóbri[1],\"Ne\")+COUNTIF(DochádzkaVOktóbri[1],\"O\")","v":0},{"$f":"COUNTIF(DochádzkaVOktóbri[2],\"Ne\")+COUNTIF(DochádzkaVOktóbri[2],\"O\")","v":0},{"$f":"COUNTIF(DochádzkaVOktóbri[3],\"Ne\")+COUNTIF(DochádzkaVOktóbri[3],\"O\")","v":0},{"$f":"COUNTIF(DochádzkaVOktóbri[4],\"Ne\")+COUNTIF(DochádzkaVOktóbri[4],\"O\")","v":0},{"$f":"COUNTIF(DochádzkaVOktóbri[5],\"Ne\")+COUNTIF(DochádzkaVOktóbri[5],\"O\")","v":0},{"$f":"COUNTIF(DochádzkaVOktóbri[6],\"Ne\")+COUNTIF(DochádzkaVOktóbri[6],\"O\")","v":0},{"$f":"COUNTIF(DochádzkaVOktóbri[7],\"Ne\")+COUNTIF(DochádzkaVOktóbri[7],\"O\")","v":0},{"$f":"COUNTIF(DochádzkaVOktóbri[8],\"Ne\")+COUNTIF(DochádzkaVOktóbri[8],\"O\")","v":0},{"$f":"COUNTIF(DochádzkaVOktóbri[9],\"Ne\")+COUNTIF(DochádzkaVOktóbri[9],\"O\")","v":0},{"$f":"COUNTIF(DochádzkaVOktóbri[10],\"Ne\")+COUNTIF(DochádzkaVOktóbri[10],\"O\")","v":0},{"$f":"COUNTIF(DochádzkaVOktóbri[11],\"Ne\")+COUNTIF(DochádzkaVOktóbri[11],\"O\")","v":0},{"$f":"COUNTIF(DochádzkaVOktóbri[12],\"Ne\")+COUNTIF(DochádzkaVOktóbri[12],\"O\")","v":0},{"$f":"COUNTIF(DochádzkaVOktóbri[13],\"Ne\")+COUNTIF(DochádzkaVOktóbri[13],\"O\")","v":0},{"$f":"COUNTIF(DochádzkaVOktóbri[14],\"Ne\")+COUNTIF(DochádzkaVOktóbri[14],\"O\")","v":0},{"$f":"COUNTIF(DochádzkaVOktóbri[15],\"Ne\")+COUNTIF(DochádzkaVOktóbri[15],\"O\")","v":0},{"$f":"COUNTIF(DochádzkaVOktóbri[16],\"Ne\")+COUNTIF(DochádzkaVOktóbri[16],\"O\")","v":0},{"$f":"COUNTIF(DochádzkaVOktóbri[17],\"Ne\")+COUNTIF(DochádzkaVOktóbri[17],\"O\")","v":0},{"$f":"COUNTIF(DochádzkaVOktóbri[18],\"Ne\")+COUNTIF(DochádzkaVOktóbri[18],\"O\")","v":0},{"$f":"COUNTIF(DochádzkaVOktóbri[19],\"Ne\")+COUNTIF(DochádzkaVOktóbri[19],\"O\")","v":0},{"$f":"COUNTIF(DochádzkaVOktóbri[20],\"Ne\")+COUNTIF(DochádzkaVOktóbri[20],\"O\")","v":0},{"$f":"COUNTIF(DochádzkaVOktóbri[21],\"Ne\")+COUNTIF(DochádzkaVOktóbri[21],\"O\")","v":0},{"$f":"COUNTIF(DochádzkaVOktóbri[22],\"Ne\")+COUNTIF(DochádzkaVOktóbri[22],\"O\")","v":0},{"$f":"COUNTIF(DochádzkaVOktóbri[23],\"Ne\")+COUNTIF(DochádzkaVOktóbri[23],\"O\")","v":0},{"$f":"COUNTIF(DochádzkaVOktóbri[24],\"Ne\")+COUNTIF(DochádzkaVOktóbri[24],\"O\")","v":0},{"$f":"COUNTIF(DochádzkaVOktóbri[25],\"Ne\")+COUNTIF(DochádzkaVOktóbri[25],\"O\")","v":0},{"$f":"COUNTIF(DochádzkaVOktóbri[26],\"Ne\")+COUNTIF(DochádzkaVOktóbri[26],\"O\")","v":0},{"$f":"COUNTIF(DochádzkaVOktóbri[27],\"Ne\")+COUNTIF(DochádzkaVOktóbri[27],\"O\")","v":0},{"$f":"COUNTIF(DochádzkaVOktóbri[28],\"Ne\")+COUNTIF(DochádzkaVOktóbri[28],\"O\")","v":0},{"$f":"COUNTIF(DochádzkaVOktóbri[29],\"Ne\")+COUNTIF(DochádzkaVOktóbri[29],\"O\")","v":0},{"$f":"COUNTIF(DochádzkaVOktóbri[30],\"Ne\")+COUNTIF(DochádzkaVOktóbri[30],\"O\")","v":0},{"$f":"COUNTIF(DochádzkaVOktóbri[31],\"Ne\")+COUNTIF(DochádzkaVOktóbri[31],\"O\")","v":0},{"$f":"SUBTOTAL(109,DochádzkaVOktóbri[N])","v":0},{"$f":"SUBTOTAL(109,DochádzkaVOktóbri[O])","v":0},{"$f":"SUBTOTAL(109,DochádzkaVOktóbri[Ne])","v":0},{"$f":"SUBTOTAL(109,DochádzkaVOktóbri[Ž])","v":0},{"$f":"SUBTOTAL(109,DochádzkaVOktóbri[Dni neprítomnosti])","v":0}]

{"sheet":"November","index":5,"n_rows":12,"n_cols":39,"rows_kept":12,"merged":[[4,34,4,38]]}
["ZÁZNAM DOCHÁDZKY ŠTUDENTA",{"$nulls":36},"Začiatok školského roka:",2012]
[]
[null,null,{"$f":"TextKľúčaFarieb","v":"KĽÚČ FARIEB"},{"$f":"Kód1","v":"N"},{"$f":"TextKódu1","v":"Neskorý príchod"},null,null,{"$f":"Kód2","v":"O"},{"$f":"TextKódu2","v":"Ospravedlnené"},null,null,{"$f":"Kód3","v":"Ne"},{"$f":"TextKódu3","v":"Neospravedlnené"},{"$nulls":3},{"$f":"Kód4","v":"Na"},{"$f":"TextKódu4","v":"Na vyučovaní"},null,null,{"$f":"Kód5","v":"Ž"},{"$f":"TextKódu5","v":"Žiadne vyučovanie"}]
[]
[null,{"$f":"DATE(KalendárnyRok,11,1)","v":"2012-11-01"},null,{"$f":"TEXT(WEEKDAY(DATE(KalendárnyRok,11,1),1),\"aaa\")","v":"št"},{"$f":"TEXT(WEEKDAY(DATE(KalendárnyRok,11,2),1),\"aaa\")","v":"pi"},{"$f":"TEXT(WEEKDAY(DATE(KalendárnyRok,11,3),1),\"aaa\")","v":"so"},{"$f":"TEXT(WEEKDAY(DATE(KalendárnyRok,11,4),1),\"aaa\")","v":"ne"},{"$f":"TEXT(WEEKDAY(DATE(KalendárnyRok,11,5),1),\"aaa\")","v":"po"},{"$f":"TEXT(WEEKDAY(DATE(KalendárnyRok,11,6),1),\"aaa\")","v":"ut"},{"$f":"TEXT(WEEKDAY(DATE(KalendárnyRok,11,7),1),\"aaa\")","v":"st"},{"$f":"TEXT(WEEKDAY(DATE(KalendárnyRok,11,8),1),\"aaa\")","v":"št"},{"$f":"TEXT(WEEKDAY(DATE(KalendárnyRok,11,9),1),\"aaa\")","v":"pi"},{"$f":"TEXT(WEEKDAY(DATE(KalendárnyRok,11,10),1),\"aaa\")","v":"so"},{"$f":"TEXT(WEEKDAY(DATE(KalendárnyRok,11,11),1),\"aaa\")","v":"ne"},{"$f":"TEXT(WEEKDAY(DATE(KalendárnyRok,11,12),1),\"aaa\")","v":"po"},{"$f":"TEXT(WEEKDAY(DATE(KalendárnyRok,11,13),1),\"aaa\")","v":"ut"},{"$f":"TEXT(WEEKDAY(DATE(KalendárnyRok,11,14),1),\"aaa\")","v":"st"},{"$f":"TEXT(WEEKDAY(DATE(KalendárnyRok,11,15),1),\"aaa\")","v":"št"},{"$f":"TEXT(WEEKDAY(DATE(KalendárnyRok,11,16),1),\"aaa\")","v":"pi"},{"$f":"TEXT(WEEKDAY(DATE(KalendárnyRok,11,17),1),\"aaa\")","v":"so"},{"$f":"TEXT(WEEKDAY(DATE(KalendárnyRok,11,18),1),\"aaa\")","v":"ne"},{"$f":"TEXT(WEEKDAY(DATE(KalendárnyRok,11,19),1),\"aaa\")","v":"po"},{"$f":"TEXT(WEEKDAY(DATE(KalendárnyRok,11,20),1),\"aaa\")","v":"ut"},{"$f":"TEXT(WEEKDAY(DATE(KalendárnyRok,11,21),1),\"aaa\")","v":"st"},{"$f":"TEXT(WEEKDAY(DATE(KalendárnyRok,11,22),1),\"aaa\")","v":"št"},{"$f":"TEXT(WEEKDAY(DATE(KalendárnyRok,11,23),1),\"aaa\")","v":"pi"},{"$f":"TEXT(WEEKDAY(DATE(KalendárnyRok,11,24),1),\"aaa\")","v":"so"},{"$f":"TEXT(WEEKDAY(DATE(KalendárnyRok,11,25),1),\"aaa\")","v":"ne"},{"$f":"TEXT(WEEKDAY(DATE(KalendárnyRok,11,26),1),\"aaa\")","v":"po"},{"$f":"TEXT(WEEKDAY(DATE(KalendárnyRok,11,27),1),\"aaa\")","v":"ut"},{"$f":"TEXT(WEEKDAY(DATE(KalendárnyRok,11,28),1),\"aaa\")","v":"st"},{"$f":"TEXT(WEEKDAY(DATE(KalendárnyRok,11,29),1),\"aaa\")","v":"št"},{"$f":"TEXT(WEEKDAY(DATE(KalendárnyRok,11,30),1),\"aaa\")","v":"pi"},null,"Súčet"]
[null,"Identifikácia študenta","Meno študenta","1","2","3","4","5","6","7","8","9","10","11","12","13","14","15","16","17","18","19","20","21","22","23","24","25","26","27","28","29","30"," ","N","O","Ne","Ž","Dni neprítomnosti"]
[null,null,{"$f":"IFERROR(VLOOKUP(DochádzkaVNovembri[[#This Row],[Identifikácia študenta]],ZoznamŠtudentov[],18,FALSE),\"\")","v":""},{"$nulls":31},{"$f":"COUNTIF(DochádzkaVNovembri[[#This Row],[1]:[ ]],Kód1)","v":0},{"$f":"COUNTIF(DochádzkaVNovembri[[#This Row],[1]:[ ]],Kód2)","v":0},{"$f":"COUNTIF(DochádzkaVNovembri[[#This Row],[1]:[ ]],Kód3)","v":0},{"$f":"COUNTIF(DochádzkaVNovembri[[#This Row],[1]:[ ]],Kód4)","v":0},{"$f":"SUM(DochádzkaVSeptembri[[#This Row],[O]:[Ne]])","v":0}]
[null,null,{"$f":"IFERROR(VLOOKUP(DochádzkaVNovembri[[#This Row],[Identifikácia študenta]],ZoznamŠtudentov[],18,FALSE),\"\")","v":""},{"$nulls":31},{"$f":"COUNTIF(DochádzkaVNovembri[[#This Row],[1]:[ ]],Kód1)","v":0},{"$f":"COUNTIF(DochádzkaVNovembri[[#This Row],[1]:[ ]],Kód2)","v":0},{"$f":"COUNTIF(DochádzkaVNovembri[[#This Row],[1]:[ ]],Kód3)","v":0},{"$f":"COUNTIF(DochádzkaVNovembri[[#This Row],[1]:[ ]],Kód4)","v":0},{"$f":"SUM(DochádzkaVSeptembri[[#This Row],[O]:[Ne]])","v":0}]
[null,null,{"$f":"IFERROR(VLOOKUP(DochádzkaVNovembri[[#This Row],[Identifikácia študenta]],ZoznamŠtudentov[],18,FALSE),\"\")","v":""},{"$nulls":31},{"$f":"COUNTIF(DochádzkaVNovembri[[#This Row],[1]:[ ]],Kód1)","v":0},{"$f":"COUNTIF(DochádzkaVNovembri[[#This Row],[1]:[ ]],Kód2)","v":0},{"$f":"COUNTIF(DochádzkaVNovembri[[#This Row],[1]:[ ]],Kód3)","v":0},{"$f":"COUNTIF(DochádzkaVNovembri[[#This Row],[1]:[ ]],Kód4)","v":0},{"$f":"SUM(DochádzkaVSeptembri[[#This Row],[O]:[Ne]])","v":0}]
[null,null,{"$f":"IFERROR(VLOOKUP(DochádzkaVNovembri[[#This Row],[Identifikácia študenta]],ZoznamŠtudentov[],18,FALSE),\"\")","v":""},{"$nulls":31},{"$f":"COUNTIF(DochádzkaVNovembri[[#This Row],[1]:[ ]],Kód1)","v":0},{"$f":"COUNTIF(DochádzkaVNovembri[[#This Row],[1]:[ ]],Kód2)","v":0},{"$f":"COUNTIF(DochádzkaVNovembri[[#This Row],[1]:[ ]],Kód3)","v":0},{"$f":"COUNTIF(DochádzkaVNovembri[[#This Row],[1]:[ ]],Kód4)","v":0},{"$f":"SUM(DochádzkaVSeptembri[[#This Row],[O]:[Ne]])","v":0}]
[null,null,{"$f":"IFERROR(VLOOKUP(DochádzkaVNovembri[[#This Row],[Identifikácia študenta]],ZoznamŠtudentov[],18,FALSE),\"\")","v":""},{"$nulls":31},{"$f":"COUNTIF(DochádzkaVNovembri[[#This Row],[1]:[ ]],Kód1)","v":0},{"$f":"COUNTIF(DochádzkaVNovembri[[#This Row],[1]:[ ]],Kód2)","v":0},{"$f":"COUNTIF(DochádzkaVNovembri[[#This Row],[1]:[ ]],Kód3)","v":0},{"$f":"COUNTIF(DochádzkaVNovembri[[#This Row],[1]:[ ]],Kód4)","v":0},{"$f":"SUM(DochádzkaVSeptembri[[#This Row],[O]:[Ne]])","v":0}]
[null,null,"Súčet dní neprítomnosti",{"$f":"COUNTIF(DochádzkaVNovembri[1],\"Ne\")+COUNTIF(DochádzkaVNovembri[1],\"O\")","v":0},{"$f":"COUNTIF(DochádzkaVNovembri[2],\"Ne\")+COUNTIF(DochádzkaVNovembri[2],\"O\")","v":0},{"$f":"COUNTIF(DochádzkaVNovembri[3],\"Ne\")+COUNTIF(DochádzkaVNovembri[3],\"O\")","v":0},{"$f":"COUNTIF(DochádzkaVNovembri[4],\"Ne\")+COUNTIF(DochádzkaVNovembri[4],\"O\")","v":0},{"$f":"COUNTIF(DochádzkaVNovembri[5],\"Ne\")+COUNTIF(DochádzkaVNovembri[5],\"O\")","v":0},{"$f":"COUNTIF(DochádzkaVNovembri[6],\"Ne\")+COUNTIF(DochádzkaVNovembri[6],\"O\")","v":0},{"$f":"COUNTIF(DochádzkaVNovembri[7],\"Ne\")+COUNTIF(DochádzkaVNovembri[7],\"O\")","v":0},{"$f":"COUNTIF(DochádzkaVNovembri[8],\"Ne\")+COUNTIF(DochádzkaVNovembri[8],\"O\")","v":0},{"$f":"COUNTIF(DochádzkaVNovembri[9],\"Ne\")+COUNTIF(DochádzkaVNovembri[9],\"O\")","v":0},{"$f":"COUNTIF(DochádzkaVNovembri[10],\"Ne\")+COUNTIF(DochádzkaVNovembri[10],\"O\")","v":0},{"$f":"COUNTIF(DochádzkaVNovembri[11],\"Ne\")+COUNTIF(DochádzkaVNovembri[11],\"O\")","v":0},{"$f":"COUNTIF(DochádzkaVNovembri[12],\"Ne\")+COUNTIF(DochádzkaVNovembri[12],\"O\")","v":0},{"$f":"COUNTIF(DochádzkaVNovembri[13],\"Ne\")+COUNTIF(DochádzkaVNovembri[13],\"O\")","v":0},{"$f":"COUNTIF(DochádzkaVNovembri[14],\"Ne\")+COUNTIF(DochádzkaVNovembri[14],\"O\")","v":0},{"$f":"COUNTIF(DochádzkaVNovembri[15],\"Ne\")+COUNTIF(DochádzkaVNovembri[15],\"O\")","v":0},{"$f":"COUNTIF(DochádzkaVNovembri[16],\"Ne\")+COUNTIF(DochádzkaVNovembri[16],\"O\")","v":0},{"$f":"COUNTIF(DochádzkaVNovembri[17],\"Ne\")+COUNTIF(DochádzkaVNovembri[17],\"O\")","v":0},{"$f":"COUNTIF(DochádzkaVNovembri[18],\"Ne\")+COUNTIF(DochádzkaVNovembri[18],\"O\")","v":0},{"$f":"COUNTIF(DochádzkaVNovembri[19],\"Ne\")+COUNTIF(DochádzkaVNovembri[19],\"O\")","v":0},{"$f":"COUNTIF(DochádzkaVNovembri[20],\"Ne\")+COUNTIF(DochádzkaVNovembri[20],\"O\")","v":0},{"$f":"COUNTIF(DochádzkaVNovembri[21],\"Ne\")+COUNTIF(DochádzkaVNovembri[21],\"O\")","v":0},{"$f":"COUNTIF(DochádzkaVNovembri[22],\"Ne\")+COUNTIF(DochádzkaVNovembri[22],\"O\")","v":0},{"$f":"COUNTIF(DochádzkaVNovembri[23],\"Ne\")+COUNTIF(DochádzkaVNovembri[23],\"O\")","v":0},{"$f":"COUNTIF(DochádzkaVNovembri[24],\"Ne\")+COUNTIF(DochádzkaVNovembri[24],\"O\")","v":0},{"$f":"COUNTIF(DochádzkaVNovembri[25],\"Ne\")+COUNTIF(DochádzkaVNovembri[25],\"O\")","v":0},{"$f":"COUNTIF(DochádzkaVNovembri[26],\"Ne\")+COUNTIF(DochádzkaVNovembri[26],\"O\")","v":0},{"$f":"COUNTIF(DochádzkaVNovembri[27],\"Ne\")+COUNTIF(DochádzkaVNovembri[27],\"O\")","v":0},{"$f":"COUNTIF(DochádzkaVNovembri[28],\"Ne\")+COUNTIF(DochádzkaVNovembri[28],\"O\")","v":0},{"$f":"COUNTIF(DochádzkaVNovembri[29],\"Ne\")+COUNTIF(DochádzkaVNovembri[29],\"O\")","v":0},{"$f":"COUNTIF(DochádzkaVNovembri[30],\"Ne\")+COUNTIF(DochádzkaVNovembri[30],\"O\")","v":0},{"$f":"COUNTIF(DochádzkaVNovembri[[ ]],\"Ne\")+COUNTIF(DochádzkaVNovembri[[ ]],\"O\")","v":0},{"$f":"SUBTOTAL(109,DochádzkaVNovembri[N])","v":0},{"$f":"SUBTOTAL(109,DochádzkaVNovembri[O])","v":0},{"$f":"SUBTOTAL(109,DochádzkaVNovembri[Ne])","v":0},{"$f":"SUBTOTAL(109,DochádzkaVNovembri[Ž])","v":0},{"$f":"SUBTOTAL(109,DochádzkaVNovembri[Dni neprítomnosti])","v":0}]

{"sheet":"December","index":6,"n_rows":12,"n_cols":39,"rows_kept":12,"merged":[[4,34,4,38]]}
["ZÁZNAM DOCHÁDZKY ŠTUDENTA",{"$nulls":36},"Začiatok školského roka:",2012]
[]
[null,null,{"$f":"TextKľúčaFarieb","v":"KĽÚČ FARIEB"},{"$f":"Kód1","v":"N"},{"$f":"TextKódu1","v":"Neskorý príchod"},null,null,{"$f":"Kód2","v":"O"},{"$f":"TextKódu2","v":"Ospravedlnené"},null,null,{"$f":"Kód3","v":"Ne"},{"$f":"TextKódu3","v":"Neospravedlnené"},{"$nulls":3},{"$f":"Kód4","v":"Na"},{"$f":"TextKódu4","v":"Na vyučovaní"},null,null,{"$f":"Kód5","v":"Ž"},{"$f":"TextKódu5","v":"Žiadne vyučovanie"}]
[]
[null,{"$f":"DATE(KalendárnyRok,12,1)","v":"2012-12-01"},null,{"$f":"TEXT(WEEKDAY(DATE(KalendárnyRok,12,1),1),\"aaa\")","v":"so"},{"$f":"TEXT(WEEKDAY(DATE(KalendárnyRok,12,2),1),\"aaa\")","v":"ne"},{"$f":"TEXT(WEEKDAY(DATE(KalendárnyRok,12,3),1),\"aaa\")","v":"po"},{"$f":"TEXT(WEEKDAY(DATE(KalendárnyRok,12,4),1),\"aaa\")","v":"ut"},{"$f":"TEXT(WEEKDAY(DATE(KalendárnyRok,12,5),1),\"aaa\")","v":"st"},{"$f":"TEXT(WEEKDAY(DATE(KalendárnyRok,12,6),1),\"aaa\")","v":"št"},{"$f":"TEXT(WEEKDAY(DATE(KalendárnyRok,12,7),1),\"aaa\")","v":"pi"},{"$f":"TEXT(WEEKDAY(DATE(KalendárnyRok,12,8),1),\"aaa\")","v":"so"},{"$f":"TEXT(WEEKDAY(DATE(KalendárnyRok,12,9),1),\"aaa\")","v":"ne"},{"$f":"TEXT(WEEKDAY(DATE(KalendárnyRok,12,10),1),\"aaa\")","v":"po"},{"$f":"TEXT(WEEKDAY(DATE(KalendárnyRok,12,11),1),\"aaa\")","v":"ut"},{"$f":"TEXT(WEEKDAY(DATE(KalendárnyRok,12,12),1),\"aaa\")","v":"st"},{"$f":"TEXT(WEEKDAY(DATE(KalendárnyRok,12,13),1),\"aaa\")","v":"št"},{"$f":"TEXT(WEEKDAY(DATE(KalendárnyRok,12,14),1),\"aaa\")","v":"pi"},{"$f":"TEXT(WEEKDAY(DATE(KalendárnyRok,12,15),1),\"aaa\")","v":"so"},{"$f":"TEXT(WEEKDAY(DATE(KalendárnyRok,12,16),1),\"aaa\")","v":"ne"},{"$f":"TEXT(WEEKDAY(DATE(KalendárnyRok,12,17),1),\"aaa\")","v":"po"},{"$f":"TEXT(WEEKDAY(DATE(KalendárnyRok,12,18),1),\"aaa\")","v":"ut"},{"$f":"TEXT(WEEKDAY(DATE(KalendárnyRok,12,19),1),\"aaa\")","v":"st"},{"$f":"TEXT(WEEKDAY(DATE(KalendárnyRok,12,20),1),\"aaa\")","v":"št"},{"$f":"TEXT(WEEKDAY(DATE(KalendárnyRok,12,21),1),\"aaa\")","v":"pi"},{"$f":"TEXT(WEEKDAY(DATE(KalendárnyRok,12,22),1),\"aaa\")","v":"so"},{"$f":"TEXT(WEEKDAY(DATE(KalendárnyRok,12,23),1),\"aaa\")","v":"ne"},{"$f":"TEXT(WEEKDAY(DATE(KalendárnyRok,12,24),1),\"aaa\")","v":"po"},{"$f":"TEXT(WEEKDAY(DATE(KalendárnyRok,12,25),1),\"aaa\")","v":"ut"},{"$f":"TEXT(WEEKDAY(DATE(KalendárnyRok,12,26),1),\"aaa\")","v":"st"},{"$f":"TEXT(WEEKDAY(DATE(KalendárnyRok,12,27),1),\"aaa\")","v":"št"},{"$f":"TEXT(WEEKDAY(DATE(KalendárnyRok,12,28),1),\"aaa\")","v":"pi"},{"$f":"TEXT(WEEKDAY(DATE(KalendárnyRok,12,29),1),\"aaa\")","v":"so"},{"$f":"TEXT(WEEKDAY(DATE(KalendárnyRok,12,30),1),\"aaa\")","v":"ne"},{"$f":"TEXT(WEEKDAY(DATE(KalendárnyRok,12,31),1),\"aaa\")","v":"po"},"Súčet"]
[null,"Identifikácia študenta","Meno študenta","1","2","3","4","5","6","7","8","9","10","11","12","13","14","15","16","17","18","19","20","21","22","23","24","25","26","27","28","29","30","31","N","O","Ne","Ž","Dni neprítomnosti"]
[null,null,{"$f":"IFERROR(VLOOKUP(DochádzkaVDecembri[[#This Row],[Identifikácia študenta]],ZoznamŠtudentov[],18,FALSE),\"\")","v":""},{"$nulls":31},{"$f":"COUNTIF(DochádzkaVDecembri[[#This Row],[1]:[31]],Kód1)","v":0},{"$f":"COUNTIF(DochádzkaVDecembri[[#This Row],[1]:[31]],Kód2)","v":0},{"$f":"COUNTIF(DochádzkaVDecembri[[#This Row],[1]:[31]],Kód3)","v":0},{"$f":"COUNTIF(DochádzkaVDecembri[[#This Row],[1]:[31]],Kód4)","v":0},{"$f":"SUM(DochádzkaVSeptembri[[#This Row],[O]:[Ne]])","v":0}]
[null,null,{"$f":"IFERROR(VLOOKUP(DochádzkaVDecembri[[#This Row],[Identifikácia študenta]],ZoznamŠtudentov[],18,FALSE),\"\")","v":""},{"$nulls":31},{"$f":"COUNTIF(DochádzkaVDecembri[[#This Row],[1]:[31]],Kód1)","v":0},{"$f":"COUNTIF(DochádzkaVDecembri[[#This Row],[1]:[31]],Kód2)","v":0},{"$f":"COUNTIF(DochádzkaVDecembri[[#This Row],[1]:[31]],Kód3)","v":0},{"$f":"COUNTIF(DochádzkaVDecembri[[#This Row],[1]:[31]],Kód4)","v":0},{"$f":"SUM(DochádzkaVSeptembri[[#This Row],[O]:[Ne]])","v":0}]
[null,null,{"$f":"IFERROR(VLOOKUP(DochádzkaVDecembri[[#This Row],[Identifikácia študenta]],ZoznamŠtudentov[],18,FALSE),\"\")","v":""},{"$nulls":31},{"$f":"COUNTIF(DochádzkaVDecembri[[#This Row],[1]:[31]],Kód1)","v":0},{"$f":"COUNTIF(DochádzkaVDecembri[[#This Row],[1]:[31]],Kód2)","v":0},{"$f":"COUNTIF(DochádzkaVDecembri[[#This Row],[1]:[31]],Kód3)","v":0},{"$f":"COUNTIF(DochádzkaVDecembri[[#This Row],[1]:[31]],Kód4)","v":0},{"$f":"SUM(DochádzkaVSeptembri[[#This Row],[O]:[Ne]])","v":0}]
[null,null,{"$f":"IFERROR(VLOOKUP(DochádzkaVDecembri[[#This Row],[Identifikácia študenta]],ZoznamŠtudentov[],18,FALSE),\"\")","v":""},{"$nulls":31},{"$f":"COUNTIF(DochádzkaVDecembri[[#This Row],[1]:[31]],Kód1)","v":0},{"$f":"COUNTIF(DochádzkaVDecembri[[#This Row],[1]:[31]],Kód2)","v":0},{"$f":"COUNTIF(DochádzkaVDecembri[[#This Row],[1]:[31]],Kód3)","v":0},{"$f":"COUNTIF(DochádzkaVDecembri[[#This Row],[1]:[31]],Kód4)","v":0},{"$f":"SUM(DochádzkaVSeptembri[[#This Row],[O]:[Ne]])","v":0}]
[null,null,{"$f":"IFERROR(VLOOKUP(DochádzkaVDecembri[[#This Row],[Identifikácia študenta]],ZoznamŠtudentov[],18,FALSE),\"\")","v":""},{"$nulls":31},{"$f":"COUNTIF(DochádzkaVDecembri[[#This Row],[1]:[31]],Kód1)","v":0},{"$f":"COUNTIF(DochádzkaVDecembri[[#This Row],[1]:[31]],Kód2)","v":0},{"$f":"COUNTIF(DochádzkaVDecembri[[#This Row],[1]:[31]],Kód3)","v":0},{"$f":"COUNTIF(DochádzkaVDecembri[[#This Row],[1]:[31]],Kód4)","v":0},{"$f":"SUM(DochádzkaVSeptembri[[#This Row],[O]:[Ne]])","v":0}]
[null,null,"Súčet dní neprítomnosti",{"$f":"COUNTIF(DochádzkaVDecembri[1],\"Ne\")+COUNTIF(DochádzkaVDecembri[1],\"O\")","v":0},{"$f":"COUNTIF(DochádzkaVDecembri[2],\"Ne\")+COUNTIF(DochádzkaVDecembri[2],\"O\")","v":0},{"$f":"COUNTIF(DochádzkaVDecembri[3],\"Ne\")+COUNTIF(DochádzkaVDecembri[3],\"O\")","v":0},{"$f":"COUNTIF(DochádzkaVDecembri[4],\"Ne\")+COUNTIF(DochádzkaVDecembri[4],\"O\")","v":0},{"$f":"COUNTIF(DochádzkaVDecembri[5],\"Ne\")+COUNTIF(DochádzkaVDecembri[5],\"O\")","v":0},{"$f":"COUNTIF(DochádzkaVDecembri[6],\"Ne\")+COUNTIF(DochádzkaVDecembri[6],\"O\")","v":0},{"$f":"COUNTIF(DochádzkaVDecembri[7],\"Ne\")+COUNTIF(DochádzkaVDecembri[7],\"O\")","v":0},{"$f":"COUNTIF(DochádzkaVDecembri[8],\"Ne\")+COUNTIF(DochádzkaVDecembri[8],\"O\")","v":0},{"$f":"COUNTIF(DochádzkaVDecembri[9],\"Ne\")+COUNTIF(DochádzkaVDecembri[9],\"O\")","v":0},{"$f":"COUNTIF(DochádzkaVDecembri[10],\"Ne\")+COUNTIF(DochádzkaVDecembri[10],\"O\")","v":0},{"$f":"COUNTIF(DochádzkaVDecembri[11],\"Ne\")+COUNTIF(DochádzkaVDecembri[11],\"O\")","v":0},{"$f":"COUNTIF(DochádzkaVDecembri[12],\"Ne\")+COUNTIF(DochádzkaVDecembri[12],\"O\")","v":0},{"$f":"COUNTIF(DochádzkaVDecembri[13],\"Ne\")+COUNTIF(DochádzkaVDecembri[13],\"O\")","v":0},{"$f":"COUNTIF(DochádzkaVDecembri[14],\"Ne\")+COUNTIF(DochádzkaVDecembri[14],\"O\")","v":0},{"$f":"COUNTIF(DochádzkaVDecembri[15],\"Ne\")+COUNTIF(DochádzkaVDecembri[15],\"O\")","v":0},{"$f":"COUNTIF(DochádzkaVDecembri[16],\"Ne\")+COUNTIF(DochádzkaVDecembri[16],\"O\")","v":0},{"$f":"COUNTIF(DochádzkaVDecembri[17],\"Ne\")+COUNTIF(DochádzkaVDecembri[17],\"O\")","v":0},{"$f":"COUNTIF(DochádzkaVDecembri[18],\"Ne\")+COUNTIF(DochádzkaVDecembri[18],\"O\")","v":0},{"$f":"COUNTIF(DochádzkaVDecembri[19],\"Ne\")+COUNTIF(DochádzkaVDecembri[19],\"O\")","v":0},{"$f":"COUNTIF(DochádzkaVDecembri[20],\"Ne\")+COUNTIF(DochádzkaVDecembri[20],\"O\")","v":0},{"$f":"COUNTIF(DochádzkaVDecembri[21],\"Ne\")+COUNTIF(DochádzkaVDecembri[21],\"O\")","v":0},{"$f":"COUNTIF(DochádzkaVDecembri[22],\"Ne\")+COUNTIF(DochádzkaVDecembri[22],\"O\")","v":0},{"$f":"COUNTIF(DochádzkaVDecembri[23],\"Ne\")+COUNTIF(DochádzkaVDecembri[23],\"O\")","v":0},{"$f":"COUNTIF(DochádzkaVDecembri[24],\"Ne\")+COUNTIF(DochádzkaVDecembri[24],\"O\")","v":0},{"$f":"COUNTIF(DochádzkaVDecembri[25],\"Ne\")+COUNTIF(DochádzkaVDecembri[25],\"O\")","v":0},{"$f":"COUNTIF(DochádzkaVDecembri[26],\"Ne\")+COUNTIF(DochádzkaVDecembri[26],\"O\")","v":0},{"$f":"COUNTIF(DochádzkaVDecembri[27],\"Ne\")+COUNTIF(DochádzkaVDecembri[27],\"O\")","v":0},{"$f":"COUNTIF(DochádzkaVDecembri[28],\"Ne\")+COUNTIF(DochádzkaVDecembri[28],\"O\")","v":0},{"$f":"COUNTIF(DochádzkaVDecembri[29],\"Ne\")+COUNTIF(DochádzkaVDecembri[29],\"O\")","v":0},{"$f":"COUNTIF(DochádzkaVDecembri[30],\"Ne\")+COUNTIF(DochádzkaVDecembri[30],\"O\")","v":0},{"$f":"COUNTIF(DochádzkaVDecembri[31],\"Ne\")+COUNTIF(DochádzkaVDecembri[31],\"O\")","v":0},{"$f":"SUBTOTAL(109,DochádzkaVDecembri[N])","v":0},{"$f":"SUBTOTAL(109,DochádzkaVDecembri[O])","v":0},{"$f":"SUBTOTAL(109,DochádzkaVDecembri[Ne])","v":0},{"$f":"SUBTOTAL(109,DochádzkaVDecembri[Ž])","v":0},{"$f":"SUBTOTAL(109,DochádzkaVDecembri[Dni neprítomnosti])","v":0}]

{"sheet":"Január","index":7,"n_rows":12,"n_cols":39,"rows_kept":12,"merged":[[4,34,4,38]]}
["ZÁZNAM DOCHÁDZKY ŠTUDENTA",{"$nulls":36},"Začiatok školského roka:",2012]
[]
[null,null,{"$f":"TextKľúčaFarieb","v":"KĽÚČ FARIEB"},{"$f":"Kód1","v":"N"},{"$f":"TextKódu1","v":"Neskorý príchod"},null,null,{"$f":"Kód2","v":"O"},{"$f":"TextKódu2","v":"Ospravedlnené"},null,null,{"$f":"Kód3","v":"Ne"},{"$f":"TextKódu3","v":"Neospravedlnené"},{"$nulls":3},{"$f":"Kód4","v":"Na"},{"$f":"TextKódu4","v":"Na vyučovaní"},null,null,{"$f":"Kód5","v":"Ž"},{"$f":"TextKódu5","v":"Žiadne vyučovanie"}]
[]
[null,{"$f":"DATE(KalendárnyRok+1,1,1)","v":"2013-01-01"},null,{"$f":"TEXT(WEEKDAY(DATE(KalendárnyRok+1,1,1),1),\"aaa\")","v":"ut"},{"$f":"TEXT(WEEKDAY(DATE(KalendárnyRok+1,1,2),1),\"aaa\")","v":"st"},{"$f":"TEXT(WEEKDAY(DATE(KalendárnyRok+1,1,3),1),\"aaa\")","v":"št"},{"$f":"TEXT(WEEKDAY(DATE(KalendárnyRok+1,1,4),1),\"aaa\")","v":"pi"},{"$f":"TEXT(WEEKDAY(DATE(KalendárnyRok+1,1,5),1),\"aaa\")","v":"so"},{"$f":"TEXT(WEEKDAY(DATE(KalendárnyRok+1,1,6),1),\"aaa\")","v":"ne"},{"$f":"TEXT(WEEKDAY(DATE(KalendárnyRok+1,1,7),1),\"aaa\")","v":"po"},{"$f":"TEXT(WEEKDAY(DATE(KalendárnyRok+1,1,8),1),\"aaa\")","v":"ut"},{"$f":"TEXT(WEEKDAY(DATE(KalendárnyRok+1,1,9),1),\"aaa\")","v":"st"},{"$f":"TEXT(WEEKDAY(DATE(KalendárnyRok+1,1,10),1),\"aaa\")","v":"št"},{"$f":"TEXT(WEEKDAY(DATE(KalendárnyRok+1,1,11),1),\"aaa\")","v":"pi"},{"$f":"TEXT(WEEKDAY(DATE(KalendárnyRok+1,1,12),1),\"aaa\")","v":"so"},{"$f":"TEXT(WEEKDAY(DATE(KalendárnyRok+1,1,13),1),\"aaa\")","v":"ne"},{"$f":"TEXT(WEEKDAY(DATE(KalendárnyRok+1,1,14),1),\"aaa\")","v":"po"},{"$f":"TEXT(WEEKDAY(DATE(KalendárnyRok+1,1,15),1),\"aaa\")","v":"ut"},{"$f":"TEXT(WEEKDAY(DATE(KalendárnyRok+1,1,16),1),\"aaa\")","v":"st"},{"$f":"TEXT(WEEKDAY(DATE(KalendárnyRok+1,1,17),1),\"aaa\")","v":"št"},{"$f":"TEXT(WEEKDAY(DATE(KalendárnyRok+1,1,18),1),\"aaa\")","v":"pi"},{"$f":"TEXT(WEEKDAY(DATE(KalendárnyRok+1,1,19),1),\"aaa\")","v":"so"},{"$f":"TEXT(WEEKDAY(DATE(KalendárnyRok+1,1,20),1),\"aaa\")","v":"ne"},{"$f":"TEXT(WEEKDAY(DATE(KalendárnyRok+1,1,21),1),\"aaa\")","v":"po"},{"$f":"TEXT(WEEKDAY(DATE(KalendárnyRok+1,1,22),1),\"aaa\")","v":"ut"},{"$f":"TEXT(WEEKDAY(DATE(KalendárnyRok+1,1,23),1),\"aaa\")","v":"st"},{"$f":"TEXT(WEEKDAY(DATE(KalendárnyRok+1,1,24),1),\"aaa\")","v":"št"},{"$f":"TEXT(WEEKDAY(DATE(KalendárnyRok+1,1,25),1),\"aaa\")","v":"pi"},{"$f":"TEXT(WEEKDAY(DATE(KalendárnyRok+1,1,26),1),\"aaa\")","v":"so"},{"$f":"TEXT(WEEKDAY(DATE(KalendárnyRok+1,1,27),1),\"aaa\")","v":"ne"},{"$f":"TEXT(WEEKDAY(DATE(KalendárnyRok+1,1,28),1),\"aaa\")","v":"po"},{"$f":"TEXT(WEEKDAY(DATE(KalendárnyRok+1,1,29),1),\"aaa\")","v":"ut"},{"$f":"TEXT(WEEKDAY(DATE(KalendárnyRok+1,1,30),1),\"aaa\")","v":"st"},{"$f":"TEXT(WEEKDAY(DATE(KalendárnyRok+1,1,31),1),\"aaa\")","v":"št"},"Súčet"]
[null,"Identifikácia študenta","Meno študenta","1","2","3","4","5","6","7","8","9","10","11","12","13","14","15","16","17","18","19","20","21","22","23","24","25","26","27","28","29","30","31","N","O","Ne","Ž","Dni neprítomnosti"]
[null,null,{"$f":"IFERROR(VLOOKUP(DochádzkaVJanuári[[#This Row],[Identifikácia študenta]],ZoznamŠtudentov[],18,FALSE),\"\")","v":""},{"$nulls":31},{"$f":"COUNTIF(DochádzkaVJanuári[[#This Row],[1]:[31]],Kód1)","v":0},{"$f":"COUNTIF(DochádzkaVJanuári[[#This Row],[1]:[31]],Kód2)","v":0},{"$f":"COUNTIF(DochádzkaVJanuári[[#This Row],[1]:[31]],Kód3)","v":0},{"$f":"COUNTIF(DochádzkaVJanuári[[#This Row],[1]:[31]],Kód4)","v":0},{"$f":"SUM(DochádzkaVSeptembri[[#This Row],[O]:[Ne]])","v":0}]
[null,null,{"$f":"IFERROR(VLOOKUP(DochádzkaVJanuári[[#This Row],[Identifikácia študenta]],ZoznamŠtudentov[],18,FALSE),\"\")","v":""},{"$nulls":31},{"$f":"COUNTIF(DochádzkaVJanuári[[#This Row],[1]:[31]],Kód1)","v":0},{"$f":"COUNTIF(DochádzkaVJanuári[[#This Row],[1]:[31]],Kód2)","v":0},{"$f":"COUNTIF(DochádzkaVJanuári[[#This Row],[1]:[31]],Kód3)","v":0},{"$f":"COUNTIF(DochádzkaVJanuári[[#This Row],[1]:[31]],Kód4)","v":0},{"$f":"SUM(DochádzkaVSeptembri[[#This Row],[O]:[Ne]])","v":0}]
[null,null,{"$f":"IFERROR(VLOOKUP(DochádzkaVJanuári[[#This Row],[Identifikácia študenta]],ZoznamŠtudentov[],18,FALSE),\"\")","v":""},{"$nulls":31},{"$f":"COUNTIF(DochádzkaVJanuári[[#This Row],[1]:[31]],Kód1)","v":0},{"$f":"COUNTIF(DochádzkaVJanuári[[#This Row],[1]:[31]],Kód2)","v":0},{"$f":"COUNTIF(DochádzkaVJanuári[[#This Row],[1]:[31]],Kód3)","v":0},{"$f":"COUNTIF(DochádzkaVJanuári[[#This Row],[1]:[31]],Kód4)","v":0},{"$f":"SUM(DochádzkaVSeptembri[[#This Row],[O]:[Ne]])","v":0}]
[null,null,{"$f":"IFERROR(VLOOKUP(DochádzkaVJanuári[[#This Row],[Identifikácia študenta]],ZoznamŠtudentov[],18,FALSE),\"\")","v":""},{"$nulls":31},{"$f":"COUNTIF(DochádzkaVJanuári[[#This Row],[1]:[31]],Kód1)","v":0},{"$f":"COUNTIF(DochádzkaVJanuári[[#This Row],[1]:[31]],Kód2)","v":0},{"$f":"COUNTIF(DochádzkaVJanuári[[#This Row],[1]:[31]],Kód3)","v":0},{"$f":"COUNTIF(DochádzkaVJanuári[[#This Row],[1]:[31]],Kód4)","v":0},{"$f":"SUM(DochádzkaVSeptembri[[#This Row],[O]:[Ne]])","v":0}]
[null,null,{"$f":"IFERROR(VLOOKUP(DochádzkaVJanuári[[#This Row],[Identifikácia študenta]],ZoznamŠtudentov[],18,FALSE),\"\")","v":""},{"$nulls":31},{"$f":"COUNTIF(DochádzkaVJanuári[[#This Row],[1]:[31]],Kód1)","v":0},{"$f":"COUNTIF(DochádzkaVJanuári[[#This Row],[1]:[31]],Kód2)","v":0},{"$f":"COUNTIF(DochádzkaVJanuári[[#This Row],[1]:[31]],Kód3)","v":0},{"$f":"COUNTIF(DochádzkaVJanuári[[#This Row],[1]:[31]],Kód4)","v":0},{"$f":"SUM(DochádzkaVSeptembri[[#This Row],[O]:[Ne]])","v":0}]
[null,null,"Súčet dní neprítomnosti",{"$f":"COUNTIF(DochádzkaVJanuári[1],\"Ne\")+COUNTIF(DochádzkaVJanuári[1],\"O\")","v":0},{"$f":"COUNTIF(DochádzkaVJanuári[2],\"Ne\")+COUNTIF(DochádzkaVJanuári[2],\"O\")","v":0},{"$f":"COUNTIF(DochádzkaVJanuári[3],\"Ne\")+COUNTIF(DochádzkaVJanuári[3],\"O\")","v":0},{"$f":"COUNTIF(DochádzkaVJanuári[4],\"Ne\")+COUNTIF(DochádzkaVJanuári[4],\"O\")","v":0},{"$f":"COUNTIF(DochádzkaVJanuári[5],\"Ne\")+COUNTIF(DochádzkaVJanuári[5],\"O\")","v":0},{"$f":"COUNTIF(DochádzkaVJanuári[6],\"Ne\")+COUNTIF(DochádzkaVJanuári[6],\"O\")","v":0},{"$f":"COUNTIF(DochádzkaVJanuári[7],\"Ne\")+COUNTIF(DochádzkaVJanuári[7],\"O\")","v":0},{"$f":"COUNTIF(DochádzkaVJanuári[8],\"Ne\")+COUNTIF(DochádzkaVJanuári[8],\"O\")","v":0},{"$f":"COUNTIF(DochádzkaVJanuári[9],\"Ne\")+COUNTIF(DochádzkaVJanuári[9],\"O\")","v":0},{"$f":"COUNTIF(DochádzkaVJanuári[10],\"Ne\")+COUNTIF(DochádzkaVJanuári[10],\"O\")","v":0},{"$f":"COUNTIF(DochádzkaVJanuári[11],\"Ne\")+COUNTIF(DochádzkaVJanuári[11],\"O\")","v":0},{"$f":"COUNTIF(DochádzkaVJanuári[12],\"Ne\")+COUNTIF(DochádzkaVJanuári[12],\"O\")","v":0},{"$f":"COUNTIF(DochádzkaVJanuári[13],\"Ne\")+COUNTIF(DochádzkaVJanuári[13],\"O\")","v":0},{"$f":"COUNTIF(DochádzkaVJanuári[14],\"Ne\")+COUNTIF(DochádzkaVJanuári[14],\"O\")","v":0},{"$f":"COUNTIF(DochádzkaVJanuári[15],\"Ne\")+COUNTIF(DochádzkaVJanuári[15],\"O\")","v":0},{"$f":"COUNTIF(DochádzkaVJanuári[16],\"Ne\")+COUNTIF(DochádzkaVJanuári[16],\"O\")","v":0},{"$f":"COUNTIF(DochádzkaVJanuári[17],\"Ne\")+COUNTIF(DochádzkaVJanuári[17],\"O\")","v":0},{"$f":"COUNTIF(DochádzkaVJanuári[18],\"Ne\")+COUNTIF(DochádzkaVJanuári[18],\"O\")","v":0},{"$f":"COUNTIF(DochádzkaVJanuári[19],\"Ne\")+COUNTIF(DochádzkaVJanuári[19],\"O\")","v":0},{"$f":"COUNTIF(DochádzkaVJanuári[20],\"Ne\")+COUNTIF(DochádzkaVJanuári[20],\"O\")","v":0},{"$f":"COUNTIF(DochádzkaVJanuári[21],\"Ne\")+COUNTIF(DochádzkaVJanuári[21],\"O\")","v":0},{"$f":"COUNTIF(DochádzkaVJanuári[22],\"Ne\")+COUNTIF(DochádzkaVJanuári[22],\"O\")","v":0},{"$f":"COUNTIF(DochádzkaVJanuári[23],\"Ne\")+COUNTIF(DochádzkaVJanuári[23],\"O\")","v":0},{"$f":"COUNTIF(DochádzkaVJanuári[24],\"Ne\")+COUNTIF(DochádzkaVJanuári[24],\"O\")","v":0},{"$f":"COUNTIF(DochádzkaVJanuári[25],\"Ne\")+COUNTIF(DochádzkaVJanuári[25],\"O\")","v":0},{"$f":"COUNTIF(DochádzkaVJanuári[26],\"Ne\")+COUNTIF(DochádzkaVJanuári[26],\"O\")","v":0},{"$f":"COUNTIF(DochádzkaVJanuári[27],\"Ne\")+COUNTIF(DochádzkaVJanuári[27],\"O\")","v":0},{"$f":"COUNTIF(DochádzkaVJanuári[28],\"Ne\")+COUNTIF(DochádzkaVJanuári[28],\"O\")","v":0},{"$f":"COUNTIF(DochádzkaVJanuári[29],\"Ne\")+COUNTIF(DochádzkaVJanuári[29],\"O\")","v":0},{"$f":"COUNTIF(DochádzkaVJanuári[30],\"Ne\")+COUNTIF(DochádzkaVJanuári[30],\"O\")","v":0},{"$f":"COUNTIF(DochádzkaVJanuári[31],\"Ne\")+COUNTIF(DochádzkaVJanuári[31],\"O\")","v":0},{"$f":"SUBTOTAL(109,DochádzkaVJanuári[N])","v":0},{"$f":"SUBTOTAL(109,DochádzkaVJanuári[O])","v":0},{"$f":"SUBTOTAL(109,DochádzkaVJanuári[Ne])","v":0},{"$f":"SUBTOTAL(109,DochádzkaVJanuári[Ž])","v":0},{"$f":"SUBTOTAL(109,DochádzkaVJanuári[Dni neprítomnosti])","v":0}]

{"sheet":"Február","index":8,"n_rows":12,"n_cols":39,"rows_kept":12,"merged":[[4,34,4,38]]}
["ZÁZNAM DOCHÁDZKY ŠTUDENTA",{"$nulls":36},"Začiatok školského roka:",2012]
[]
[null,null,{"$f":"TextKľúčaFarieb","v":"KĽÚČ FARIEB"},{"$f":"Kód1","v":"N"},{"$f":"TextKódu1","v":"Neskorý príchod"},null,null,{"$f":"Kód2","v":"O"},{"$f":"TextKódu2","v":"Ospravedlnené"},null,null,{"$f":"Kód3","v":"Ne"},{"$f":"TextKódu3","v":"Neospravedlnené"},{"$nulls":3},{"$f":"Kód4","v":"Na"},{"$f":"TextKódu4","v":"Na vyučovaní"},null,null,{"$f":"Kód5","v":"Ž"},{"$f":"TextKódu5","v":"Žiadne vyučovanie"}]
[]
[null,{"$f":"DATE(KalendárnyRok+1,2,1)","v":"2013-02-01"},null,{"$f":"TEXT(WEEKDAY(DATE(KalendárnyRok+1,2,1),1),\"aaa\")","v":"pi"},{"$f":"TEXT(WEEKDAY(DATE(KalendárnyRok+1,2,2),1),\"aaa\")","v":"so"},{"$f":"TEXT(WEEKDAY(DATE(KalendárnyRok+1,2,3),1),\"aaa\")","v":"ne"},{"$f":"TEXT(WEEKDAY(DATE(KalendárnyRok+1,2,4),1),\"aaa\")","v":"po"},{"$f":"TEXT(WEEKDAY(DATE(KalendárnyRok+1,2,5),1),\"aaa\")","v":"ut"},{"$f":"TEXT(WEEKDAY(DATE(KalendárnyRok+1,2,6),1),\"aaa\")","v":"st"},{"$f":"TEXT(WEEKDAY(DATE(KalendárnyRok+1,2,7),1),\"aaa\")","v":"št"},{"$f":"TEXT(WEEKDAY(DATE(KalendárnyRok+1,2,8),1),\"aaa\")","v":"pi"},{"$f":"TEXT(WEEKDAY(DATE(KalendárnyRok+1,2,9),1),\"aaa\")","v":"so"},{"$f":"TEXT(WEEKDAY(DATE(KalendárnyRok+1,2,10),1),\"aaa\")","v":"ne"},{"$f":"TEXT(WEEKDAY(DATE(KalendárnyRok+1,2,11),1),\"aaa\")","v":"po"},{"$f":"TEXT(WEEKDAY(DATE(KalendárnyRok+1,2,12),1),\"aaa\")","v":"ut"},{"$f":"TEXT(WEEKDAY(DATE(KalendárnyRok+1,2,13),1),\"aaa\")","v":"st"},{"$f":"TEXT(WEEKDAY(DATE(KalendárnyRok+1,2,14),1),\"aaa\")","v":"št"},{"$f":"TEXT(WEEKDAY(DATE(KalendárnyRok+1,2,15),1),\"aaa\")","v":"pi"},{"$f":"TEXT(WEEKDAY(DATE(KalendárnyRok+1,2,16),1),\"aaa\")","v":"so"},{"$f":"TEXT(WEEKDAY(DATE(KalendárnyRok+1,2,17),1),\"aaa\")","v":"ne"},{"$f":"TEXT(WEEKDAY(DATE(KalendárnyRok+1,2,18),1),\"aaa\")","v":"po"},{"$f":"TEXT(WEEKDAY(DATE(KalendárnyRok+1,2,19),1),\"aaa\")","v":"ut"},{"$f":"TEXT(WEEKDAY(DATE(KalendárnyRok+1,2,20),1),\"aaa\")","v":"st"},{"$f":"TEXT(WEEKDAY(DATE(KalendárnyRok+1,2,21),1),\"aaa\")","v":"št"},{"$f":"TEXT(WEEKDAY(DATE(KalendárnyRok+1,2,22),1),\"aaa\")","v":"pi"},{"$f":"TEXT(WEEKDAY(DATE(KalendárnyRok+1,2,23),1),\"aaa\")","v":"so"},{"$f":"TEXT(WEEKDAY(DATE(KalendárnyRok+1,2,24),1),\"aaa\")","v":"ne"},{"$f":"TEXT(WEEKDAY(DATE(KalendárnyRok+1,2,25),1),\"aaa\")","v":"po"},{"$f":"TEXT(WEEKDAY(DATE(KalendárnyRok+1,2,26),1),\"aaa\")","v":"ut"},{"$f":"TEXT(WEEKDAY(DATE(KalendárnyRok+1,2,27),1),\"aaa\")","v":"st"},{"$f":"TEXT(WEEKDAY(DATE(KalendárnyRok+1,2,28),1),\"aaa\")","v":"št"},{"$f":"TEXT(WEEKDAY(DATE(KalendárnyRok+1,2,29),1),\"aaa\")","v":"pi"},null,null,"Súčet"]
[null,"Identifikácia študenta","Meno študenta","1","2","3","4","5","6","7","8","9","10","11","12","13","14","15","16","17","18","19","20","21","22","23","24","25","26","27","28","29","30","31","N","O","Ne","Ž","Dni neprítomnosti"]
[null,null,{"$f":"IFERROR(VLOOKUP(DochádzkaVoFebruári[[#This Row],[Identifikácia študenta]],ZoznamŠtudentov[],18,FALSE),\"\")","v":""},{"$nulls":31},{"$f":"COUNTIF(DochádzkaVoFebruári[[#This Row],[1]:[31]],Kód1)","v":0},{"$f":"COUNTIF(DochádzkaVoFebruári[[#This Row],[1]:[31]],Kód2)","v":0},{"$f":"COUNTIF(DochádzkaVoFebruári[[#This Row],[1]:[31]],Kód3)","v":0},{"$f":"COUNTIF(DochádzkaVoFebruári[[#This Row],[1]:[31]],Kód4)","v":0},{"$f":"SUM(DochádzkaVSeptembri[[#This Row],[O]:[Ne]])","v":0}]
[null,null,{"$f":"IFERROR(VLOOKUP(DochádzkaVoFebruári[[#This Row],[Identifikácia študenta]],ZoznamŠtudentov[],18,FALSE),\"\")","v":""},{"$nulls":31},{"$f":"COUNTIF(DochádzkaVoFebruári[[#This Row],[1]:[31]],Kód1)","v":0},{"$f":"COUNTIF(DochádzkaVoFebruári[[#This Row],[1]:[31]],Kód2)","v":0},{"$f":"COUNTIF(DochádzkaVoFebruári[[#This Row],[1]:[31]],Kód3)","v":0},{"$f":"COUNTIF(DochádzkaVoFebruári[[#This Row],[1]:[31]],Kód4)","v":0},{"$f":"SUM(DochádzkaVSeptembri[[#This Row],[O]:[Ne]])","v":0}]
[null,null,{"$f":"IFERROR(VLOOKUP(DochádzkaVoFebruári[[#This Row],[Identifikácia študenta]],ZoznamŠtudentov[],18,FALSE),\"\")","v":""},{"$nulls":31},{"$f":"COUNTIF(DochádzkaVoFebruári[[#This Row],[1]:[31]],Kód1)","v":0},{"$f":"COUNTIF(DochádzkaVoFebruári[[#This Row],[1]:[31]],Kód2)","v":0},{"$f":"COUNTIF(DochádzkaVoFebruári[[#This Row],[1]:[31]],Kód3)","v":0},{"$f":"COUNTIF(DochádzkaVoFebruári[[#This Row],[1]:[31]],Kód4)","v":0},{"$f":"SUM(DochádzkaVSeptembri[[#This Row],[O]:[Ne]])","v":0}]
[null,null,{"$f":"IFERROR(VLOOKUP(DochádzkaVoFebruári[[#This Row],[Identifikácia študenta]],ZoznamŠtudentov[],18,FALSE),\"\")","v":""},{"$nulls":31},{"$f":"COUNTIF(DochádzkaVoFebruári[[#This Row],[1]:[31]],Kód1)","v":0},{"$f":"COUNTIF(DochádzkaVoFebruári[[#This Row],[1]:[31]],Kód2)","v":0},{"$f":"COUNTIF(DochádzkaVoFebruári[[#This Row],[1]:[31]],Kód3)","v":0},{"$f":"COUNTIF(DochádzkaVoFebruári[[#This Row],[1]:[31]],Kód4)","v":0},{"$f":"SUM(DochádzkaVSeptembri[[#This Row],[O]:[Ne]])","v":0}]
[null,null,{"$f":"IFERROR(VLOOKUP(DochádzkaVoFebruári[[#This Row],[Identifikácia študenta]],ZoznamŠtudentov[],18,FALSE),\"\")","v":""},{"$nulls":31},{"$f":"COUNTIF(DochádzkaVoFebruári[[#This Row],[1]:[31]],Kód1)","v":0},{"$f":"COUNTIF(DochádzkaVoFebruári[[#This Row],[1]:[31]],Kód2)","v":0},{"$f":"COUNTIF(DochádzkaVoFebruári[[#This Row],[1]:[31]],Kód3)","v":0},{"$f":"COUNTIF(DochádzkaVoFebruári[[#This Row],[1]:[31]],Kód4)","v":0},{"$f":"SUM(DochádzkaVSeptembri[[#This Row],[O]:[Ne]])","v":0}]
[null,null,"Súčet dní neprítomnosti",{"$f":"COUNTIF(DochádzkaVoFebruári[1],\"Ne\")+COUNTIF(DochádzkaVoFebruári[1],\"O\")","v":0},{"$f":"COUNTIF(DochádzkaVoFebruári[2],\"Ne\")+COUNTIF(DochádzkaVoFebruári[2],\"O\")","v":0},{"$f":"COUNTIF(DochádzkaVoFebruári[3],\"Ne\")+COUNTIF(DochádzkaVoFebruári[3],\"O\")","v":0},{"$f":"COUNTIF(DochádzkaVoFebruári[4],\"Ne\")+COUNTIF(DochádzkaVoFebruári[4],\"O\")","v":0},{"$f":"COUNTIF(DochádzkaVoFebruári[5],\"Ne\")+COUNTIF(DochádzkaVoFebruári[5],\"O\")","v":0},{"$f":"COUNTIF(DochádzkaVoFebruári[6],\"Ne\")+COUNTIF(DochádzkaVoFebruári[6],\"O\")","v":0},{"$f":"COUNTIF(DochádzkaVoFebruári[7],\"Ne\")+COUNTIF(DochádzkaVoFebruári[7],\"O\")","v":0},{"$f":"COUNTIF(DochádzkaVoFebruári[8],\"Ne\")+COUNTIF(DochádzkaVoFebruári[8],\"O\")","v":0},{"$f":"COUNTIF(DochádzkaVoFebruári[9],\"Ne\")+COUNTIF(DochádzkaVoFebruári[9],\"O\")","v":0},{"$f":"COUNTIF(DochádzkaVoFebruári[10],\"Ne\")+COUNTIF(DochádzkaVoFebruári[10],\"O\")","v":0},{"$f":"COUNTIF(DochádzkaVoFebruári[11],\"Ne\")+COUNTIF(DochádzkaVoFebruári[11],\"O\")","v":0},{"$f":"COUNTIF(DochádzkaVoFebruári[12],\"Ne\")+COUNTIF(DochádzkaVoFebruári[12],\"O\")","v":0},{"$f":"COUNTIF(DochádzkaVoFebruári[13],\"Ne\")+COUNTIF(DochádzkaVoFebruári[13],\"O\")","v":0},{"$f":"COUNTIF(DochádzkaVoFebruári[14],\"Ne\")+COUNTIF(DochádzkaVoFebruári[14],\"O\")","v":0},{"$f":"COUNTIF(DochádzkaVoFebruári[15],\"Ne\")+COUNTIF(DochádzkaVoFebruári[15],\"O\")","v":0},{"$f":"COUNTIF(DochádzkaVoFebruári[16],\"Ne\")+COUNTIF(DochádzkaVoFebruári[16],\"O\")","v":0},{"$f":"COUNTIF(DochádzkaVoFebruári[17],\"Ne\")+COUNTIF(DochádzkaVoFebruári[17],\"O\")","v":0},{"$f":"COUNTIF(DochádzkaVoFebruári[18],\"Ne\")+COUNTIF(DochádzkaVoFebruári[18],\"O\")","v":0},{"$f":"COUNTIF(DochádzkaVoFebruári[19],\"Ne\")+COUNTIF(DochádzkaVoFebruári[19],\"O\")","v":0},{"$f":"COUNTIF(DochádzkaVoFebruári[20],\"Ne\")+COUNTIF(DochádzkaVoFebruári[20],\"O\")","v":0},{"$f":"COUNTIF(DochádzkaVoFebruári[21],\"Ne\")+COUNTIF(DochádzkaVoFebruári[21],\"O\")","v":0},{"$f":"COUNTIF(DochádzkaVoFebruári[22],\"Ne\")+COUNTIF(DochádzkaVoFebruári[22],\"O\")","v":0},{"$f":"COUNTIF(DochádzkaVoFebruári[23],\"Ne\")+COUNTIF(DochádzkaVoFebruári[23],\"O\")","v":0},{"$f":"COUNTIF(DochádzkaVoFebruári[24],\"Ne\")+COUNTIF(DochádzkaVoFebruári[24],\"O\")","v":0},{"$f":"COUNTIF(DochádzkaVoFebruári[25],\"Ne\")+COUNTIF(DochádzkaVoFebruári[25],\"O\")","v":0},{"$f":"COUNTIF(DochádzkaVoFebruári[26],\"Ne\")+COUNTIF(DochádzkaVoFebruári[26],\"O\")","v":0},{"$f":"COUNTIF(DochádzkaVoFebruári[27],\"Ne\")+COUNTIF(DochádzkaVoFebruári[27],\"O\")","v":0},{"$f":"COUNTIF(DochádzkaVoFebruári[28],\"Ne\")+COUNTIF(DochádzkaVoFebruári[28],\"O\")","v":0},{"$f":"COUNTIF(DochádzkaVoFebruári[29],\"Ne\")+COUNTIF(DochádzkaVoFebruári[29],\"O\")","v":0},{"$f":"COUNTIF(DochádzkaVoFebruári[30],\"Ne\")+COUNTIF(DochádzkaVoFebruári[30],\"O\")","v":0},{"$f":"COUNTIF(DochádzkaVoFebruári[31],\"Ne\")+COUNTIF(DochádzkaVoFebruári[31],\"O\")","v":0},{"$f":"SUBTOTAL(109,DochádzkaVoFebruári[N])","v":0},{"$f":"SUBTOTAL(109,DochádzkaVoFebruári[O])","v":0},{"$f":"SUBTOTAL(109,DochádzkaVoFebruári[Ne])","v":0},{"$f":"SUBTOTAL(109,DochádzkaVoFebruári[Ž])","v":0},{"$f":"SUBTOTAL(109,DochádzkaVoFebruári[Dni neprítomnosti])","v":0}]

{"sheet":"Marec","index":9,"n_rows":12,"n_cols":39,"rows_kept":12,"merged":[[4,34,4,38]]}
["ZÁZNAM DOCHÁDZKY ŠTUDENTA",{"$nulls":36},"Začiatok školského roka:",2012]
[]
[null,null,{"$f":"TextKľúčaFarieb","v":"KĽÚČ FARIEB"},{"$f":"Kód1","v":"N"},{"$f":"TextKódu1","v":"Neskorý príchod"},null,null,{"$f":"Kód2","v":"O"},{"$f":"TextKódu2","v":"Ospravedlnené"},null,null,{"$f":"Kód3","v":"Ne"},{"$f":"TextKódu3","v":"Neospravedlnené"},{"$nulls":3},{"$f":"Kód4","v":"Na"},{"$f":"TextKódu4","v":"Na vyučovaní"},null,null,{"$f":"Kód5","v":"Ž"},{"$f":"TextKódu5","v":"Žiadne vyučovanie"}]
[]
[null,{"$f":"DATE(KalendárnyRok+1,3,1)","v":"2013-03-01"},null,{"$f":"TEXT(WEEKDAY(DATE(KalendárnyRok+1,3,1),1),\"aaa\")","v":"pi"},{"$f":"TEXT(WEEKDAY(DATE(KalendárnyRok+1,3,2),1),\"aaa\")","v":"so"},{"$f":"TEXT(WEEKDAY(DATE(KalendárnyRok+1,3,3),1),\"aaa\")","v":"ne"},{"$f":"TEXT(WEEKDAY(DATE(KalendárnyRok+1,3,4),1),\"aaa\")","v":"po"},{"$f":"TEXT(WEEKDAY(DATE(KalendárnyRok+1,3,5),1),\"aaa\")","v":"ut"},{"$f":"TEXT(WEEKDAY(DATE(KalendárnyRok+1,3,6),1),\"aaa\")","v":"st"},{"$f":"TEXT(WEEKDAY(DATE(KalendárnyRok+1,3,7),1),\"aaa\")","v":"št"},{"$f":"TEXT(WEEKDAY(DATE(KalendárnyRok+1,3,8),1),\"aaa\")","v":"pi"},{"$f":"TEXT(WEEKDAY(DATE(KalendárnyRok+1,3,9),1),\"aaa\")","v":"so"},{"$f":"TEXT(WEEKDAY(DATE(KalendárnyRok+1,3,10),1),\"aaa\")","v":"ne"},{"$f":"TEXT(WEEKDAY(DATE(KalendárnyRok+1,3,11),1),\"aaa\")","v":"po"},{"$f":"TEXT(WEEKDAY(DATE(KalendárnyRok+1,3,12),1),\"aaa\")","v":"ut"},{"$f":"TEXT(WEEKDAY(DATE(KalendárnyRok+1,3,13),1),\"aaa\")","v":"st"},{"$f":"TEXT(WEEKDAY(DATE(KalendárnyRok+1,3,14),1),\"aaa\")","v":"št"},{"$f":"TEXT(WEEKDAY(DATE(KalendárnyRok+1,3,15),1),\"aaa\")","v":"pi"},{"$f":"TEXT(WEEKDAY(DATE(KalendárnyRok+1,3,16),1),\"aaa\")","v":"so"},{"$f":"TEXT(WEEKDAY(DATE(KalendárnyRok+1,3,17),1),\"aaa\")","v":"ne"},{"$f":"TEXT(WEEKDAY(DATE(KalendárnyRok+1,3,18),1),\"aaa\")","v":"po"},{"$f":"TEXT(WEEKDAY(DATE(KalendárnyRok+1,3,19),1),\"aaa\")","v":"ut"},{"$f":"TEXT(WEEKDAY(DATE(KalendárnyRok+1,3,20),1),\"aaa\")","v":"st"},{"$f":"TEXT(WEEKDAY(DATE(KalendárnyRok+1,3,21),1),\"aaa\")","v":"št"},{"$f":"TEXT(WEEKDAY(DATE(KalendárnyRok+1,3,22),1),\"aaa\")","v":"pi"},{"$f":"TEXT(WEEKDAY(DATE(KalendárnyRok+1,3,23),1),\"aaa\")","v":"so"},{"$f":"TEXT(WEEKDAY(DATE(KalendárnyRok+1,3,24),1),\"aaa\")","v":"ne"},{"$f":"TEXT(WEEKDAY(DATE(KalendárnyRok+1,3,25),1),\"aaa\")","v":"po"},{"$f":"TEXT(WEEKDAY(DATE(KalendárnyRok+1,3,26),1),\"aaa\")","v":"ut"},{"$f":"TEXT(WEEKDAY(DATE(KalendárnyRok+1,3,27),1),\"aaa\")","v":"st"},{"$f":"TEXT(WEEKDAY(DATE(KalendárnyRok+1,3,28),1),\"aaa\")","v":"št"},{"$f":"TEXT(WEEKDAY(DATE(KalendárnyRok+1,3,29),1),\"aaa\")","v":"pi"},{"$f":"TEXT(WEEKDAY(DATE(KalendárnyRok+1,3,30),1),\"aaa\")","v":"so"},{"$f":"TEXT(WEEKDAY(DATE(KalendárnyRok+1,3,31),1),\"aaa\")","v":"ne"},"Súčet"]
[null,"Identifikácia študenta","Meno študenta","1","2","3","4","5","6","7","8","9","10","11","12","13","14","15","16","17","18","19","20","21","22","23","24","25","26","27","28","29","30","31","N","O","Ne","Ž","Dni neprítomnosti"]
[null,null,{"$f":"IFERROR(VLOOKUP(DochádzkaVMarci[[#This Row],[Identifikácia študenta]],ZoznamŠtudentov[],18,FALSE),\"\")","v":""},{"$nulls":31},{"$f":"COUNTIF(DochádzkaVMarci[[#This Row],[1]:[31]],Kód1)","v":0},{"$f":"COUNTIF(DochádzkaVMarci[[#This Row],[1]:[31]],Kód2)","v":0},{"$f":"COUNTIF(DochádzkaVMarci[[#This Row],[1]:[31]],Kód3)","v":0},{"$f":"COUNTIF(DochádzkaVMarci[[#This Row],[1]:[31]],Kód4)","v":0},{"$f":"SUM(DochádzkaVSeptembri[[#This Row],[O]:[Ne]])","v":0}]
[null,null,{"$f":"IFERROR(VLOOKUP(DochádzkaVMarci[[#This Row],[Identifikácia študenta]],ZoznamŠtudentov[],18,FALSE),\"\")","v":""},{"$nulls":31},{"$f":"COUNTIF(DochádzkaVMarci[[#This Row],[1]:[31]],Kód1)","v":0},{"$f":"COUNTIF(DochádzkaVMarci[[#This Row],[1]:[31]],Kód2)","v":0},{"$f":"COUNTIF(DochádzkaVMarci[[#This Row],[1]:[31]],Kód3)","v":0},{"$f":"COUNTIF(DochádzkaVMarci[[#This Row],[1]:[31]],Kód4)","v":0},{"$f":"SUM(DochádzkaVSeptembri[[#This Row],[O]:[Ne]])","v":0}]
[null,null,{"$f":"IFERROR(VLOOKUP(DochádzkaVMarci[[#This Row],[Identifikácia študenta]],ZoznamŠtudentov[],18,FALSE),\"\")","v":""},{"$nulls":31},{"$f":"COUNTIF(DochádzkaVMarci[[#This Row],[1]:[31]],Kód1)","v":0},{"$f":"COUNTIF(DochádzkaVMarci[[#This Row],[1]:[31]],Kód2)","v":0},{"$f":"COUNTIF(DochádzkaVMarci[[#This Row],[1]:[31]],Kód3)","v":0},{"$f":"COUNTIF(DochádzkaVMarci[[#This Row],[1]:[31]],Kód4)","v":0},{"$f":"SUM(DochádzkaVSeptembri[[#This Row],[O]:[Ne]])","v":0}]
[null,null,{"$f":"IFERROR(VLOOKUP(DochádzkaVMarci[[#This Row],[Identifikácia študenta]],ZoznamŠtudentov[],18,FALSE),\"\")","v":""},{"$nulls":31},{"$f":"COUNTIF(DochádzkaVMarci[[#This Row],[1]:[31]],Kód1)","v":0},{"$f":"COUNTIF(DochádzkaVMarci[[#This Row],[1]:[31]],Kód2)","v":0},{"$f":"COUNTIF(DochádzkaVMarci[[#This Row],[1]:[31]],Kód3)","v":0},{"$f":"COUNTIF(DochádzkaVMarci[[#This Row],[1]:[31]],Kód4)","v":0},{"$f":"SUM(DochádzkaVSeptembri[[#This Row],[O]:[Ne]])","v":0}]
[null,null,{"$f":"IFERROR(VLOOKUP(DochádzkaVMarci[[#This Row],[Identifikácia študenta]],ZoznamŠtudentov[],18,FALSE),\"\")","v":""},{"$nulls":31},{"$f":"COUNTIF(DochádzkaVMarci[[#This Row],[1]:[31]],Kód1)","v":0},{"$f":"COUNTIF(DochádzkaVMarci[[#This Row],[1]:[31]],Kód2)","v":0},{"$f":"COUNTIF(DochádzkaVMarci[[#This Row],[1]:[31]],Kód3)","v":0},{"$f":"COUNTIF(DochádzkaVMarci[[#This Row],[1]:[31]],Kód4)","v":0},{"$f":"SUM(DochádzkaVSeptembri[[#This Row],[O]:[Ne]])","v":0}]
[null,null,"Súčet dní neprítomnosti",{"$f":"COUNTIF(DochádzkaVMarci[1],\"Ne\")+COUNTIF(DochádzkaVMarci[1],\"O\")","v":0},{"$f":"COUNTIF(DochádzkaVMarci[2],\"Ne\")+COUNTIF(DochádzkaVMarci[2],\"O\")","v":0},{"$f":"COUNTIF(DochádzkaVMarci[3],\"Ne\")+COUNTIF(DochádzkaVMarci[3],\"O\")","v":0},{"$f":"COUNTIF(DochádzkaVMarci[4],\"Ne\")+COUNTIF(DochádzkaVMarci[4],\"O\")","v":0},{"$f":"COUNTIF(DochádzkaVMarci[5],\"Ne\")+COUNTIF(DochádzkaVMarci[5],\"O\")","v":0},{"$f":"COUNTIF(DochádzkaVMarci[6],\"Ne\")+COUNTIF(DochádzkaVMarci[6],\"O\")","v":0},{"$f":"COUNTIF(DochádzkaVMarci[7],\"Ne\")+COUNTIF(DochádzkaVMarci[7],\"O\")","v":0},{"$f":"COUNTIF(DochádzkaVMarci[8],\"Ne\")+COUNTIF(DochádzkaVMarci[8],\"O\")","v":0},{"$f":"COUNTIF(DochádzkaVMarci[9],\"Ne\")+COUNTIF(DochádzkaVMarci[9],\"O\")","v":0},{"$f":"COUNTIF(DochádzkaVMarci[10],\"Ne\")+COUNTIF(DochádzkaVMarci[10],\"O\")","v":0},{"$f":"COUNTIF(DochádzkaVMarci[11],\"Ne\")+COUNTIF(DochádzkaVMarci[11],\"O\")","v":0},{"$f":"COUNTIF(DochádzkaVMarci[12],\"Ne\")+COUNTIF(DochádzkaVMarci[12],\"O\")","v":0},{"$f":"COUNTIF(DochádzkaVMarci[13],\"Ne\")+COUNTIF(DochádzkaVMarci[13],\"O\")","v":0},{"$f":"COUNTIF(DochádzkaVMarci[14],\"Ne\")+COUNTIF(DochádzkaVMarci[14],\"O\")","v":0},{"$f":"COUNTIF(DochádzkaVMarci[15],\"Ne\")+COUNTIF(DochádzkaVMarci[15],\"O\")","v":0},{"$f":"COUNTIF(DochádzkaVMarci[16],\"Ne\")+COUNTIF(DochádzkaVMarci[16],\"O\")","v":0},{"$f":"COUNTIF(DochádzkaVMarci[17],\"Ne\")+COUNTIF(DochádzkaVMarci[17],\"O\")","v":0},{"$f":"COUNTIF(DochádzkaVMarci[18],\"Ne\")+COUNTIF(DochádzkaVMarci[18],\"O\")","v":0},{"$f":"COUNTIF(DochádzkaVMarci[19],\"Ne\")+COUNTIF(DochádzkaVMarci[19],\"O\")","v":0},{"$f":"COUNTIF(DochádzkaVMarci[20],\"Ne\")+COUNTIF(DochádzkaVMarci[20],\"O\")","v":0},{"$f":"COUNTIF(DochádzkaVMarci[21],\"Ne\")+COUNTIF(DochádzkaVMarci[21],\"O\")","v":0},{"$f":"COUNTIF(DochádzkaVMarci[22],\"Ne\")+COUNTIF(DochádzkaVMarci[22],\"O\")","v":0},{"$f":"COUNTIF(DochádzkaVMarci[23],\"Ne\")+COUNTIF(DochádzkaVMarci[23],\"O\")","v":0},{"$f":"COUNTIF(DochádzkaVMarci[24],\"Ne\")+COUNTIF(DochádzkaVMarci[24],\"O\")","v":0},{"$f":"COUNTIF(DochádzkaVMarci[25],\"Ne\")+COUNTIF(DochádzkaVMarci[25],\"O\")","v":0},{"$f":"COUNTIF(DochádzkaVMarci[26],\"Ne\")+COUNTIF(DochádzkaVMarci[26],\"O\")","v":0},{"$f":"COUNTIF(DochádzkaVMarci[27],\"Ne\")+COUNTIF(DochádzkaVMarci[27],\"O\")","v":0},{"$f":"COUNTIF(DochádzkaVMarci[28],\"Ne\")+COUNTIF(DochádzkaVMarci[28],\"O\")","v":0},{"$f":"COUNTIF(DochádzkaVMarci[29],\"Ne\")+COUNTIF(DochádzkaVMarci[29],\"O\")","v":0},{"$f":"COUNTIF(DochádzkaVMarci[30],\"Ne\")+COUNTIF(DochádzkaVMarci[30],\"O\")","v":0},{"$f":"COUNTIF(DochádzkaVMarci[31],\"Ne\")+COUNTIF(DochádzkaVMarci[31],\"O\")","v":0},{"$f":"SUBTOTAL(109,DochádzkaVMarci[N])","v":0},{"$f":"SUBTOTAL(109,DochádzkaVMarci[O])","v":0},{"$f":"SUBTOTAL(109,DochádzkaVMarci[Ne])","v":0},{"$f":"SUBTOTAL(109,DochádzkaVMarci[Ž])","v":0},{"$f":"SUBTOTAL(109,DochádzkaVMarci[Dni neprítomnosti])","v":0}]

{"sheet":"Apríl","index":10,"n_rows":12,"n_cols":39,"rows_kept":12,"merged":[[4,34,4,38]]}
["ZÁZNAM DOCHÁDZKY ŠTUDENTA",{"$nulls":36},"Začiatok školského roka:",2012]
[]
[null,null,{"$f":"TextKľúčaFarieb","v":"KĽÚČ FARIEB"},{"$f":"Kód1","v":"N"},{"$f":"TextKódu1","v":"Neskorý príchod"},null,null,{"$f":"Kód2","v":"O"},{"$f":"TextKódu2","v":"Ospravedlnené"},null,null,{"$f":"Kód3","v":"Ne"},{"$f":"TextKódu3","v":"Neospravedlnené"},{"$nulls":3},{"$f":"Kód4","v":"Na"},{"$f":"TextKódu4","v":"Na vyučovaní"},null,null,{"$f":"Kód5","v":"Ž"},{"$f":"TextKódu5","v":"Žiadne vyučovanie"}]
[]
[null,{"$f":"DATE(KalendárnyRok+1,4,1)","v":"2013-04-01"},null,{"$f":"TEXT(WEEKDAY(DATE(KalendárnyRok+1,4,1),1),\"aaa\")","v":"po"},{"$f":"TEXT(WEEKDAY(DATE(KalendárnyRok+1,4,2),1),\"aaa\")","v":"ut"},{"$f":"TEXT(WEEKDAY(DATE(KalendárnyRok+1,4,3),1),\"aaa\")","v":"st"},{"$f":"TEXT(WEEKDAY(DATE(KalendárnyRok+1,4,4),1),\"aaa\")","v":"št"},{"$f":"TEXT(WEEKDAY(DATE(KalendárnyRok+1,4,5),1),\"aaa\")","v":"pi"},{"$f":"TEXT(WEEKDAY(DATE(KalendárnyRok+1,4,6),1),\"aaa\")","v":"so"},{"$f":"TEXT(WEEKDAY(DATE(KalendárnyRok+1,4,7),1),\"aaa\")","v":"ne"},{"$f":"TEXT(WEEKDAY(DATE(KalendárnyRok+1,4,8),1),\"aaa\")","v":"po"},{"$f":"TEXT(WEEKDAY(DATE(KalendárnyRok+1,4,9),1),\"aaa\")","v":"ut"},{"$f":"TEXT(WEEKDAY(DATE(KalendárnyRok+1,4,10),1),\"aaa\")","v":"st"},{"$f":"TEXT(WEEKDAY(DATE(KalendárnyRok+1,4,11),1),\"aaa\")","v":"št"},{"$f":"TEXT(WEEKDAY(DATE(KalendárnyRok+1,4,12),1),\"aaa\")","v":"pi"},{"$f":"TEXT(WEEKDAY(DATE(KalendárnyRok+1,4,13),1),\"aaa\")","v":"so"},{"$f":"TEXT(WEEKDAY(DATE(KalendárnyRok+1,4,14),1),\"aaa\")","v":"ne"},{"$f":"TEXT(WEEKDAY(DATE(KalendárnyRok+1,4,15),1),\"aaa\")","v":"po"},{"$f":"TEXT(WEEKDAY(DATE(KalendárnyRok+1,4,16),1),\"aaa\")","v":"ut"},{"$f":"TEXT(WEEKDAY(DATE(KalendárnyRok+1,4,17),1),\"aaa\")","v":"st"},{"$f":"TEXT(WEEKDAY(DATE(KalendárnyRok+1,4,18),1),\"aaa\")","v":"št"},{"$f":"TEXT(WEEKDAY(DATE(KalendárnyRok+1,4,19),1),\"aaa\")","v":"pi"},{"$f":"TEXT(WEEKDAY(DATE(KalendárnyRok+1,4,20),1),\"aaa\")","v":"so"},{"$f":"TEXT(WEEKDAY(DATE(KalendárnyRok+1,4,21),1),\"aaa\")","v":"ne"},{"$f":"TEXT(WEEKDAY(DATE(KalendárnyRok+1,4,22),1),\"aaa\")","v":"po"},{"$f":"TEXT(WEEKDAY(DATE(KalendárnyRok+1,4,23),1),\"aaa\")","v":"ut"},{"$f":"TEXT(WEEKDAY(DATE(KalendárnyRok+1,4,24),1),\"aaa\")","v":"st"},{"$f":"TEXT(WEEKDAY(DATE(KalendárnyRok+1,4,25),1),\"aaa\")","v":"št"},{"$f":"TEXT(WEEKDAY(DATE(KalendárnyRok+1,4,26),1),\"aaa\")","v":"pi"},{"$f":"TEXT(WEEKDAY(DATE(KalendárnyRok+1,4,27),1),\"aaa\")","v":"so"},{"$f":"TEXT(WEEKDAY(DATE(KalendárnyRok+1,4,28),1),\"aaa\")","v":"ne"},{"$f":"TEXT(WEEKDAY(DATE(KalendárnyRok+1,4,29),1),\"aaa\")","v":"po"},{"$f":"TEXT(WEEKDAY(DATE(KalendárnyRok+1,4,30),1),\"aaa\")","v":"ut"},null,"Súčet"]
[null,"Identifikácia študenta","Meno študenta","1","2","3","4","5","6","7","8","9","10","11","12","13","14","15","16","17","18","19","20","21","22","23","24","25","26","27","28","29","30","31","N","O","Ne","Ž","Dni neprítomnosti"]
[null,null,{"$f":"IFERROR(VLOOKUP(DochádzkaVApríli[[#This Row],[Identifikácia študenta]],ZoznamŠtudentov[],18,FALSE),\"\")","v":""},{"$nulls":31},{"$f":"COUNTIF(DochádzkaVApríli[[#This Row],[1]:[31]],Kód1)","v":0},{"$f":"COUNTIF(DochádzkaVApríli[[#This Row],[1]:[31]],Kód2)","v":0},{"$f":"COUNTIF(DochádzkaVApríli[[#This Row],[1]:[31]],Kód3)","v":0},{"$f":"COUNTIF(DochádzkaVApríli[[#This Row],[1]:[31]],Kód4)","v":0},{"$f":"SUM(DochádzkaVSeptembri[[#This Row],[O]:[Ne]])","v":0}]
[null,null,{"$f":"IFERROR(VLOOKUP(DochádzkaVApríli[[#This Row],[Identifikácia študenta]],ZoznamŠtudentov[],18,FALSE),\"\")","v":""},{"$nulls":31},{"$f":"COUNTIF(DochádzkaVApríli[[#This Row],[1]:[31]],Kód1)","v":0},{"$f":"COUNTIF(DochádzkaVApríli[[#This Row],[1]:[31]],Kód2)","v":0},{"$f":"COUNTIF(DochádzkaVApríli[[#This Row],[1]:[31]],Kód3)","v":0},{"$f":"COUNTIF(DochádzkaVApríli[[#This Row],[1]:[31]],Kód4)","v":0},{"$f":"SUM(DochádzkaVSeptembri[[#This Row],[O]:[Ne]])","v":0}]
[null,null,{"$f":"IFERROR(VLOOKUP(DochádzkaVApríli[[#This Row],[Identifikácia študenta]],ZoznamŠtudentov[],18,FALSE),\"\")","v":""},{"$nulls":31},{"$f":"COUNTIF(DochádzkaVApríli[[#This Row],[1]:[31]],Kód1)","v":0},{"$f":"COUNTIF(DochádzkaVApríli[[#This Row],[1]:[31]],Kód2)","v":0},{"$f":"COUNTIF(DochádzkaVApríli[[#This Row],[1]:[31]],Kód3)","v":0},{"$f":"COUNTIF(DochádzkaVApríli[[#This Row],[1]:[31]],Kód4)","v":0},{"$f":"SUM(DochádzkaVSeptembri[[#This Row],[O]:[Ne]])","v":0}]
[null,null,{"$f":"IFERROR(VLOOKUP(DochádzkaVApríli[[#This Row],[Identifikácia študenta]],ZoznamŠtudentov[],18,FALSE),\"\")","v":""},{"$nulls":31},{"$f":"COUNTIF(DochádzkaVApríli[[#This Row],[1]:[31]],Kód1)","v":0},{"$f":"COUNTIF(DochádzkaVApríli[[#This Row],[1]:[31]],Kód2)","v":0},{"$f":"COUNTIF(DochádzkaVApríli[[#This Row],[1]:[31]],Kód3)","v":0},{"$f":"COUNTIF(DochádzkaVApríli[[#This Row],[1]:[31]],Kód4)","v":0},{"$f":"SUM(DochádzkaVSeptembri[[#This Row],[O]:[Ne]])","v":0}]
[null,null,{"$f":"IFERROR(VLOOKUP(DochádzkaVApríli[[#This Row],[Identifikácia študenta]],ZoznamŠtudentov[],18,FALSE),\"\")","v":""},{"$nulls":31},{"$f":"COUNTIF(DochádzkaVApríli[[#This Row],[1]:[31]],Kód1)","v":0},{"$f":"COUNTIF(DochádzkaVApríli[[#This Row],[1]:[31]],Kód2)","v":0},{"$f":"COUNTIF(DochádzkaVApríli[[#This Row],[1]:[31]],Kód3)","v":0},{"$f":"COUNTIF(DochádzkaVApríli[[#This Row],[1]:[31]],Kód4)","v":0},{"$f":"SUM(DochádzkaVSeptembri[[#This Row],[O]:[Ne]])","v":0}]
[null,null,"Súčet dní neprítomnosti",{"$f":"COUNTIF(DochádzkaVApríli[1],\"Ne\")+COUNTIF(DochádzkaVApríli[1],\"O\")","v":0},{"$f":"COUNTIF(DochádzkaVApríli[2],\"Ne\")+COUNTIF(DochádzkaVApríli[2],\"O\")","v":0},{"$f":"COUNTIF(DochádzkaVApríli[3],\"Ne\")+COUNTIF(DochádzkaVApríli[3],\"O\")","v":0},{"$f":"COUNTIF(DochádzkaVApríli[4],\"Ne\")+COUNTIF(DochádzkaVApríli[4],\"O\")","v":0},{"$f":"COUNTIF(DochádzkaVApríli[5],\"Ne\")+COUNTIF(DochádzkaVApríli[5],\"O\")","v":0},{"$f":"COUNTIF(DochádzkaVApríli[6],\"Ne\")+COUNTIF(DochádzkaVApríli[6],\"O\")","v":0},{"$f":"COUNTIF(DochádzkaVApríli[7],\"Ne\")+COUNTIF(DochádzkaVApríli[7],\"O\")","v":0},{"$f":"COUNTIF(DochádzkaVApríli[8],\"Ne\")+COUNTIF(DochádzkaVApríli[8],\"O\")","v":0},{"$f":"COUNTIF(DochádzkaVApríli[9],\"Ne\")+COUNTIF(DochádzkaVApríli[9],\"O\")","v":0},{"$f":"COUNTIF(DochádzkaVApríli[10],\"Ne\")+COUNTIF(DochádzkaVApríli[10],\"O\")","v":0},{"$f":"COUNTIF(DochádzkaVApríli[11],\"Ne\")+COUNTIF(DochádzkaVApríli[11],\"O\")","v":0},{"$f":"COUNTIF(DochádzkaVApríli[12],\"Ne\")+COUNTIF(DochádzkaVApríli[12],\"O\")","v":0},{"$f":"COUNTIF(DochádzkaVApríli[13],\"Ne\")+COUNTIF(DochádzkaVApríli[13],\"O\")","v":0},{"$f":"COUNTIF(DochádzkaVApríli[14],\"Ne\")+COUNTIF(DochádzkaVApríli[14],\"O\")","v":0},{"$f":"COUNTIF(DochádzkaVApríli[15],\"Ne\")+COUNTIF(DochádzkaVApríli[15],\"O\")","v":0},{"$f":"COUNTIF(DochádzkaVApríli[16],\"Ne\")+COUNTIF(DochádzkaVApríli[16],\"O\")","v":0},{"$f":"COUNTIF(DochádzkaVApríli[17],\"Ne\")+COUNTIF(DochádzkaVApríli[17],\"O\")","v":0},{"$f":"COUNTIF(DochádzkaVApríli[18],\"Ne\")+COUNTIF(DochádzkaVApríli[18],\"O\")","v":0},{"$f":"COUNTIF(DochádzkaVApríli[19],\"Ne\")+COUNTIF(DochádzkaVApríli[19],\"O\")","v":0},{"$f":"COUNTIF(DochádzkaVApríli[20],\"Ne\")+COUNTIF(DochádzkaVApríli[20],\"O\")","v":0},{"$f":"COUNTIF(DochádzkaVApríli[21],\"Ne\")+COUNTIF(DochádzkaVApríli[21],\"O\")","v":0},{"$f":"COUNTIF(DochádzkaVApríli[22],\"Ne\")+COUNTIF(DochádzkaVApríli[22],\"O\")","v":0},{"$f":"COUNTIF(DochádzkaVApríli[23],\"Ne\")+COUNTIF(DochádzkaVApríli[23],\"O\")","v":0},{"$f":"COUNTIF(DochádzkaVApríli[24],\"Ne\")+COUNTIF(DochádzkaVApríli[24],\"O\")","v":0},{"$f":"COUNTIF(DochádzkaVApríli[25],\"Ne\")+COUNTIF(DochádzkaVApríli[25],\"O\")","v":0},{"$f":"COUNTIF(DochádzkaVApríli[26],\"Ne\")+COUNTIF(DochádzkaVApríli[26],\"O\")","v":0},{"$f":"COUNTIF(DochádzkaVApríli[27],\"Ne\")+COUNTIF(DochádzkaVApríli[27],\"O\")","v":0},{"$f":"COUNTIF(DochádzkaVApríli[28],\"Ne\")+COUNTIF(DochádzkaVApríli[28],\"O\")","v":0},{"$f":"COUNTIF(DochádzkaVApríli[29],\"Ne\")+COUNTIF(DochádzkaVApríli[29],\"O\")","v":0},{"$f":"COUNTIF(DochádzkaVApríli[30],\"Ne\")+COUNTIF(DochádzkaVApríli[30],\"O\")","v":0},{"$f":"COUNTIF(DochádzkaVApríli[31],\"Ne\")+COUNTIF(DochádzkaVApríli[31],\"O\")","v":0},{"$f":"SUBTOTAL(109,DochádzkaVApríli[N])","v":0},{"$f":"SUBTOTAL(109,DochádzkaVApríli[O])","v":0},{"$f":"SUBTOTAL(109,DochádzkaVApríli[Ne])","v":0},{"$f":"SUBTOTAL(109,DochádzkaVApríli[Ž])","v":0},{"$f":"SUBTOTAL(109,DochádzkaVApríli[Dni neprítomnosti])","v":0}]

{"sheet":"Máj","index":11,"n_rows":13,"n_cols":39,"rows_kept":13,"merged":[[4,34,4,38]]}
["ZÁZNAM DOCHÁDZKY ŠTUDENTA",{"$nulls":36},"Začiatok školského roka:",2012]
[]
[null,null,{"$f":"TextKľúčaFarieb","v":"KĽÚČ FARIEB"},{"$f":"Kód1","v":"N"},{"$f":"TextKódu1","v":"Neskorý príchod"},null,null,{"$f":"Kód2","v":"O"},{"$f":"TextKódu2","v":"Ospravedlnené"},null,null,{"$f":"Kód3","v":"Ne"},{"$f":"TextKódu3","v":"Neospravedlnené"},{"$nulls":3},{"$f":"Kód4","v":"Na"},{"$f":"TextKódu4","v":"Na vyučovaní"},null,null,{"$f":"Kód5","v":"Ž"},{"$f":"TextKódu5","v":"Žiadne vyučovanie"}]
[]
[null,{"$f":"DATE(KalendárnyRok+1,5,1)","v":"2013-05-01"},null,{"$f":"TEXT(WEEKDAY(DATE(KalendárnyRok+1,5,1),1),\"aaa\")","v":"st"},{"$f":"TEXT(WEEKDAY(DATE(KalendárnyRok+1,5,2),1),\"aaa\")","v":"št"},{"$f":"TEXT(WEEKDAY(DATE(KalendárnyRok+1,5,3),1),\"aaa\")","v":"pi"},{"$f":"TEXT(WEEKDAY(DATE(KalendárnyRok+1,5,4),1),\"aaa\")","v":"so"},{"$f":"TEXT(WEEKDAY(DATE(KalendárnyRok+1,5,5),1),\"aaa\")","v":"ne"},{"$f":"TEXT(WEEKDAY(DATE(KalendárnyRok+1,5,6),1),\"aaa\")","v":"po"},{"$f":"TEXT(WEEKDAY(DATE(KalendárnyRok+1,5,7),1),\"aaa\")","v":"ut"},{"$f":"TEXT(WEEKDAY(DATE(KalendárnyRok+1,5,8),1),\"aaa\")","v":"st"},{"$f":"TEXT(WEEKDAY(DATE(KalendárnyRok+1,5,9),1),\"aaa\")","v":"št"},{"$f":"TEXT(WEEKDAY(DATE(KalendárnyRok+1,5,10),1),\"aaa\")","v":"pi"},{"$f":"TEXT(WEEKDAY(DATE(KalendárnyRok+1,5,11),1),\"aaa\")","v":"so"},{"$f":"TEXT(WEEKDAY(DATE(KalendárnyRok+1,5,12),1),\"aaa\")","v":"ne"},{"$f":"TEXT(WEEKDAY(DATE(KalendárnyRok+1,5,13),1),\"aaa\")","v":"po"},{"$f":"TEXT(WEEKDAY(DATE(KalendárnyRok+1,5,14),1),\"aaa\")","v":"ut"},{"$f":"TEXT(WEEKDAY(DATE(KalendárnyRok+1,5,15),1),\"aaa\")","v":"st"},{"$f":"TEXT(WEEKDAY(DATE(KalendárnyRok+1,5,16),1),\"aaa\")","v":"št"},{"$f":"TEXT(WEEKDAY(DATE(KalendárnyRok+1,5,17),1),\"aaa\")","v":"pi"},{"$f":"TEXT(WEEKDAY(DATE(KalendárnyRok+1,5,18),1),\"aaa\")","v":"so"},{"$f":"TEXT(WEEKDAY(DATE(KalendárnyRok+1,5,19),1),\"aaa\")","v":"ne"},{"$f":"TEXT(WEEKDAY(DATE(KalendárnyRok+1,5,20),1),\"aaa\")","v":"po"},{"$f":"TEXT(WEEKDAY(DATE(KalendárnyRok+1,5,21),1),\"aaa\")","v":"ut"},{"$f":"TEXT(WEEKDAY(DATE(KalendárnyRok+1,5,22),1),\"aaa\")","v":"st"},{"$f":"TEXT(WEEKDAY(DATE(KalendárnyRok+1,5,23),1),\"aaa\")","v":"št"},{"$f":"TEXT(WEEKDAY(DATE(KalendárnyRok+1,5,24),1),\"aaa\")","v":"pi"},{"$f":"TEXT(WEEKDAY(DATE(KalendárnyRok+1,5,25),1),\"aaa\")","v":"so"},{"$f":"TEXT(WEEKDAY(DATE(KalendárnyRok+1,5,26),1),\"aaa\")","v":"ne"},{"$f":"TEXT(WEEKDAY(DATE(KalendárnyRok+1,5,27),1),\"aaa\")","v":"po"},{"$f":"TEXT(WEEKDAY(DATE(KalendárnyRok+1,5,28),1),\"aaa\")","v":"ut"},{"$f":"TEXT(WEEKDAY(DATE(KalendárnyRok+1,5,29),1),\"aaa\")","v":"st"},{"$f":"TEXT(WEEKDAY(DATE(KalendárnyRok+1,5,30),1),\"aaa\")","v":"št"},{"$f":"TEXT(WEEKDAY(DATE(KalendárnyRok+1,5,31),1),\"aaa\")","v":"pi"},"Súčet"]
[null,"Identifikácia študenta","Meno študenta","1","2","3","4","5","6","7","8","9","10","11","12","13","14","15","16","17","18","19","20","21","22","23","24","25","26","27","28","29","30","31","N","O","Ne","Ž","Dni neprítomnosti"]
[null,null,{"$f":"IFERROR(VLOOKUP(DochádzkaVMáji[[#This Row],[Identifikácia študenta]],ZoznamŠtudentov[],18,FALSE),\"\")","v":""},{"$nulls":31},{"$f":"COUNTIF(DochádzkaVMáji[[#This Row],[1]:[31]],Kód1)","v":0},{"$f":"COUNTIF(DochádzkaVMáji[[#This Row],[1]:[31]],Kód2)","v":0},{"$f":"COUNTIF(DochádzkaVMáji[[#This Row],[1]:[31]],Kód3)","v":0},{"$f":"COUNTIF(DochádzkaVMáji[[#This Row],[1]:[31]],Kód4)","v":0},{"$f":"SUM(DochádzkaVSeptembri[[#This Row],[O]:[Ne]])","v":0}]
[null,null,{"$f":"IFERROR(VLOOKUP(DochádzkaVMáji[[#This Row],[Identifikácia študenta]],ZoznamŠtudentov[],18,FALSE),\"\")","v":""},{"$nulls":31},{"$f":"COUNTIF(DochádzkaVMáji[[#This Row],[1]:[31]],Kód1)","v":0},{"$f":"COUNTIF(DochádzkaVMáji[[#This Row],[1]:[31]],Kód2)","v":0},{"$f":"COUNTIF(DochádzkaVMáji[[#This Row],[1]:[31]],Kód3)","v":0},{"$f":"COUNTIF(DochádzkaVMáji[[#This Row],[1]:[31]],Kód4)","v":0},{"$f":"SUM(DochádzkaVSeptembri[[#This Row],[O]:[Ne]])","v":0}]
[null,null,{"$f":"IFERROR(VLOOKUP(DochádzkaVMáji[[#This Row],[Identifikácia študenta]],ZoznamŠtudentov[],18,FALSE),\"\")","v":""},{"$nulls":31},{"$f":"COUNTIF(DochádzkaVMáji[[#This Row],[1]:[31]],Kód1)","v":0},{"$f":"COUNTIF(DochádzkaVMáji[[#This Row],[1]:[31]],Kód2)","v":0},{"$f":"COUNTIF(DochádzkaVMáji[[#This Row],[1]:[31]],Kód3)","v":0},{"$f":"COUNTIF(DochádzkaVMáji[[#This Row],[1]:[31]],Kód4)","v":0},{"$f":"SUM(DochádzkaVSeptembri[[#This Row],[O]:[Ne]])","v":0}]
[null,null,{"$f":"IFERROR(VLOOKUP(DochádzkaVMáji[[#This Row],[Identifikácia študenta]],ZoznamŠtudentov[],18,FALSE),\"\")","v":""},{"$nulls":31},{"$f":"COUNTIF(DochádzkaVMáji[[#This Row],[1]:[31]],Kód1)","v":0},{"$f":"COUNTIF(DochádzkaVMáji[[#This Row],[1]:[31]],Kód2)","v":0},{"$f":"COUNTIF(DochádzkaVMáji[[#This Row],[1]:[31]],Kód3)","v":0},{"$f":"COUNTIF(DochádzkaVMáji[[#This Row],[1]:[31]],Kód4)","v":0},{"$f":"SUM(DochádzkaVSeptembri[[#This Row],[O]:[Ne]])","v":0}]
[null,null,{"$f":"IFERROR(VLOOKUP(DochádzkaVMáji[[#This Row],[Identifikácia študenta]],ZoznamŠtudentov[],18,FALSE),\"\")","v":""},{"$nulls":31},{"$f":"COUNTIF(DochádzkaVMáji[[#This Row],[1]:[31]],Kód1)","v":0},{"$f":"COUNTIF(DochádzkaVMáji[[#This Row],[1]:[31]],Kód2)","v":0},{"$f":"COUNTIF(DochádzkaVMáji[[#This Row],[1]:[31]],Kód3)","v":0},{"$f":"COUNTIF(DochádzkaVMáji[[#This Row],[1]:[31]],Kód4)","v":0},{"$f":"SUM(DochádzkaVSeptembri[[#This Row],[O]:[Ne]])","v":0}]
[null,null,"Súčet dní neprítomnosti",{"$f":"COUNTIF(DochádzkaVMáji[1],\"Ne\")+COUNTIF(DochádzkaVMáji[1],\"O\")","v":0},{"$f":"COUNTIF(DochádzkaVMáji[2],\"Ne\")+COUNTIF(DochádzkaVMáji[2],\"O\")","v":0},{"$f":"COUNTIF(DochádzkaVMáji[3],\"Ne\")+COUNTIF(DochádzkaVMáji[3],\"O\")","v":0},{"$f":"COUNTIF(DochádzkaVMáji[4],\"Ne\")+COUNTIF(DochádzkaVMáji[4],\"O\")","v":0},{"$f":"COUNTIF(DochádzkaVMáji[5],\"Ne\")+COUNTIF(DochádzkaVMáji[5],\"O\")","v":0},{"$f":"COUNTIF(DochádzkaVMáji[6],\"Ne\")+COUNTIF(DochádzkaVMáji[6],\"O\")","v":0},{"$f":"COUNTIF(DochádzkaVMáji[7],\"Ne\")+COUNTIF(DochádzkaVMáji[7],\"O\")","v":0},{"$f":"COUNTIF(DochádzkaVMáji[8],\"Ne\")+COUNTIF(DochádzkaVMáji[8],\"O\")","v":0},{"$f":"COUNTIF(DochádzkaVMáji[9],\"Ne\")+COUNTIF(DochádzkaVMáji[9],\"O\")","v":0},{"$f":"COUNTIF(DochádzkaVMáji[10],\"Ne\")+COUNTIF(DochádzkaVMáji[10],\"O\")","v":0},{"$f":"COUNTIF(DochádzkaVMáji[11],\"Ne\")+COUNTIF(DochádzkaVMáji[11],\"O\")","v":0},{"$f":"COUNTIF(DochádzkaVMáji[12],\"Ne\")+COUNTIF(DochádzkaVMáji[12],\"O\")","v":0},{"$f":"COUNTIF(DochádzkaVMáji[13],\"Ne\")+COUNTIF(DochádzkaVMáji[13],\"O\")","v":0},{"$f":"COUNTIF(DochádzkaVMáji[14],\"Ne\")+COUNTIF(DochádzkaVMáji[14],\"O\")","v":0},{"$f":"COUNTIF(DochádzkaVMáji[15],\"Ne\")+COUNTIF(DochádzkaVMáji[15],\"O\")","v":0},{"$f":"COUNTIF(DochádzkaVMáji[16],\"Ne\")+COUNTIF(DochádzkaVMáji[16],\"O\")","v":0},{"$f":"COUNTIF(DochádzkaVMáji[17],\"Ne\")+COUNTIF(DochádzkaVMáji[17],\"O\")","v":0},{"$f":"COUNTIF(DochádzkaVMáji[18],\"Ne\")+COUNTIF(DochádzkaVMáji[18],\"O\")","v":0},{"$f":"COUNTIF(DochádzkaVMáji[19],\"Ne\")+COUNTIF(DochádzkaVMáji[19],\"O\")","v":0},{"$f":"COUNTIF(DochádzkaVMáji[20],\"Ne\")+COUNTIF(DochádzkaVMáji[20],\"O\")","v":0},{"$f":"COUNTIF(DochádzkaVMáji[21],\"Ne\")+COUNTIF(DochádzkaVMáji[21],\"O\")","v":0},{"$f":"COUNTIF(DochádzkaVMáji[22],\"Ne\")+COUNTIF(DochádzkaVMáji[22],\"O\")","v":0},{"$f":"COUNTIF(DochádzkaVMáji[23],\"Ne\")+COUNTIF(DochádzkaVMáji[23],\"O\")","v":0},{"$f":"COUNTIF(DochádzkaVMáji[24],\"Ne\")+COUNTIF(DochádzkaVMáji[24],\"O\")","v":0},{"$f":"COUNTIF(DochádzkaVMáji[25],\"Ne\")+COUNTIF(DochádzkaVMáji[25],\"O\")","v":0},{"$f":"COUNTIF(DochádzkaVMáji[26],\"Ne\")+COUNTIF(DochádzkaVMáji[26],\"O\")","v":0},{"$f":"COUNTIF(DochádzkaVMáji[27],\"Ne\")+COUNTIF(DochádzkaVMáji[27],\"O\")","v":0},{"$f":"COUNTIF(DochádzkaVMáji[28],\"Ne\")+COUNTIF(DochádzkaVMáji[28],\"O\")","v":0},{"$f":"COUNTIF(DochádzkaVMáji[29],\"Ne\")+COUNTIF(DochádzkaVMáji[29],\"O\")","v":0},{"$f":"COUNTIF(DochádzkaVMáji[30],\"Ne\")+COUNTIF(DochádzkaVMáji[30],\"O\")","v":0},{"$f":"COUNTIF(DochádzkaVMáji[31],\"Ne\")+COUNTIF(DochádzkaVMáji[31],\"O\")","v":0},{"$f":"SUBTOTAL(109,DochádzkaVMáji[N])","v":0},{"$f":"SUBTOTAL(109,DochádzkaVMáji[O])","v":0},{"$f":"SUBTOTAL(109,DochádzkaVMáji[Ne])","v":0},{"$f":"SUBTOTAL(109,DochádzkaVMáji[Ž])","v":0},{"$f":"SUBTOTAL(109,DochádzkaVMáji[Dni neprítomnosti])","v":0}]
[{"$nulls":3},{"$f":"COUNTIF(DochádzkaVMáji[1],\"U\")+COUNTIF(DochádzkaVMáji[1],\"E\")","v":0},{"$f":"COUNTIF(DochádzkaVMáji[2],\"U\")+COUNTIF(DochádzkaVMáji[2],\"E\")","v":0},{"$f":"COUNTIF(DochádzkaVMáji[3],\"U\")+COUNTIF(DochádzkaVMáji[3],\"E\")","v":0},{"$f":"COUNTIF(DochádzkaVMáji[4],\"U\")+COUNTIF(DochádzkaVMáji[4],\"E\")","v":0},{"$f":"COUNTIF(DochádzkaVMáji[5],\"U\")+COUNTIF(DochádzkaVMáji[5],\"E\")","v":0},{"$f":"COUNTIF(DochádzkaVMáji[6],\"U\")+COUNTIF(DochádzkaVMáji[6],\"E\")","v":0},{"$f":"COUNTIF(DochádzkaVMáji[7],\"U\")+COUNTIF(DochádzkaVMáji[7],\"E\")","v":0},{"$f":"COUNTIF(DochádzkaVMáji[8],\"U\")+COUNTIF(DochádzkaVMáji[8],\"E\")","v":0},{"$f":"COUNTIF(DochádzkaVMáji[9],\"U\")+COUNTIF(DochádzkaVMáji[9],\"E\")","v":0},{"$f":"COUNTIF(DochádzkaVMáji[10],\"U\")+COUNTIF(DochádzkaVMáji[10],\"E\")","v":0},{"$f":"COUNTIF(DochádzkaVMáji[11],\"U\")+COUNTIF(DochádzkaVMáji[11],\"E\")","v":0},{"$f":"COUNTIF(DochádzkaVMáji[12],\"U\")+COUNTIF(DochádzkaVMáji[12],\"E\")","v":0},{"$f":"COUNTIF(DochádzkaVMáji[13],\"U\")+COUNTIF(DochádzkaVMáji[13],\"E\")","v":0},{"$f":"COUNTIF(DochádzkaVMáji[14],\"U\")+COUNTIF(DochádzkaVMáji[14],\"E\")","v":0},{"$f":"COUNTIF(DochádzkaVMáji[15],\"U\")+COUNTIF(DochádzkaVMáji[15],\"E\")","v":0},{"$f":"COUNTIF(DochádzkaVMáji[16],\"U\")+COUNTIF(DochádzkaVMáji[16],\"E\")","v":0},{"$f":"COUNTIF(DochádzkaVMáji[17],\"U\")+COUNTIF(DochádzkaVMáji[17],\"E\")","v":0},{"$f":"COUNTIF(DochádzkaVMáji[18],\"U\")+COUNTIF(DochádzkaVMáji[18],\"E\")","v":0},{"$f":"COUNTIF(DochádzkaVMáji[19],\"U\")+COUNTIF(DochádzkaVMáji[19],\"E\")","v":0},{"$f":"COUNTIF(DochádzkaVMáji[20],\"U\")+COUNTIF(DochádzkaVMáji[20],\"E\")","v":0},{"$f":"COUNTIF(DochádzkaVMáji[21],\"U\")+COUNTIF(DochádzkaVMáji[21],\"E\")","v":0},{"$f":"COUNTIF(DochádzkaVMáji[22],\"U\")+COUNTIF(DochádzkaVMáji[22],\"E\")","v":0},{"$f":"COUNTIF(DochádzkaVMáji[23],\"U\")+COUNTIF(DochádzkaVMáji[23],\"E\")","v":0},{"$f":"COUNTIF(DochádzkaVMáji[24],\"U\")+COUNTIF(DochádzkaVMáji[24],\"E\")","v":0},{"$f":"COUNTIF(DochádzkaVMáji[25],\"U\")+COUNTIF(DochádzkaVMáji[25],\"E\")","v":0},{"$f":"COUNTIF(DochádzkaVMáji[26],\"U\")+COUNTIF(DochádzkaVMáji[26],\"E\")","v":0},{"$f":"COUNTIF(DochádzkaVMáji[27],\"U\")+COUNTIF(DochádzkaVMáji[27],\"E\")","v":0},{"$f":"COUNTIF(DochádzkaVMáji[28],\"U\")+COUNTIF(DochádzkaVMáji[28],\"E\")","v":0},{"$f":"COUNTIF(DochádzkaVMáji[29],\"U\")+COUNTIF(DochádzkaVMáji[29],\"E\")","v":0}]

{"sheet":"Jún","index":12,"n_rows":12,"n_cols":39,"rows_kept":12,"merged":[[4,34,4,38]]}
["ZÁZNAM DOCHÁDZKY ŠTUDENTA",{"$nulls":36},"Začiatok školského roka:",2012]
[]
[null,null,{"$f":"TextKľúčaFarieb","v":"KĽÚČ FARIEB"},{"$f":"Kód1","v":"N"},{"$f":"TextKódu1","v":"Neskorý príchod"},null,null,{"$f":"Kód2","v":"O"},{"$f":"TextKódu2","v":"Ospravedlnené"},null,null,{"$f":"Kód3","v":"Ne"},{"$f":"TextKódu3","v":"Neospravedlnené"},{"$nulls":3},{"$f":"Kód4","v":"Na"},{"$f":"TextKódu4","v":"Na vyučovaní"},null,null,{"$f":"Kód5","v":"Ž"},{"$f":"TextKódu5","v":"Žiadne vyučovanie"}]
[]
[null,{"$f":"DATE(KalendárnyRok+1,6,1)","v":"2013-06-01"},null,{"$f":"TEXT(WEEKDAY(DATE(KalendárnyRok+1,6,1),1),\"aaa\")","v":"so"},{"$f":"TEXT(WEEKDAY(DATE(KalendárnyRok+1,6,2),1),\"aaa\")","v":"ne"},{"$f":"TEXT(WEEKDAY(DATE(KalendárnyRok+1,6,3),1),\"aaa\")","v":"po"},{"$f":"TEXT(WEEKDAY(DATE(KalendárnyRok+1,6,4),1),\"aaa\")","v":"ut"},{"$f":"TEXT(WEEKDAY(DATE(KalendárnyRok+1,6,5),1),\"aaa\")","v":"st"},{"$f":"TEXT(WEEKDAY(DATE(KalendárnyRok+1,6,6),1),\"aaa\")","v":"št"},{"$f":"TEXT(WEEKDAY(DATE(KalendárnyRok+1,6,7),1),\"aaa\")","v":"pi"},{"$f":"TEXT(WEEKDAY(DATE(KalendárnyRok+1,6,8),1),\"aaa\")","v":"so"},{"$f":"TEXT(WEEKDAY(DATE(KalendárnyRok+1,6,9),1),\"aaa\")","v":"ne"},{"$f":"TEXT(WEEKDAY(DATE(KalendárnyRok+1,6,10),1),\"aaa\")","v":"po"},{"$f":"TEXT(WEEKDAY(DATE(KalendárnyRok+1,6,11),1),\"aaa\")","v":"ut"},{"$f":"TEXT(WEEKDAY(DATE(KalendárnyRok+1,6,12),1),\"aaa\")","v":"st"},{"$f":"TEXT(WEEKDAY(DATE(KalendárnyRok+1,6,13),1),\"aaa\")","v":"št"},{"$f":"TEXT(WEEKDAY(DATE(KalendárnyRok+1,6,14),1),\"aaa\")","v":"pi"},{"$f":"TEXT(WEEKDAY(DATE(KalendárnyRok+1,6,15),1),\"aaa\")","v":"so"},{"$f":"TEXT(WEEKDAY(DATE(KalendárnyRok+1,6,16),1),\"aaa\")","v":"ne"},{"$f":"TEXT(WEEKDAY(DATE(KalendárnyRok+1,6,17),1),\"aaa\")","v":"po"},{"$f":"TEXT(WEEKDAY(DATE(KalendárnyRok+1,6,18),1),\"aaa\")","v":"ut"},{"$f":"TEXT(WEEKDAY(DATE(KalendárnyRok+1,6,19),1),\"aaa\")","v":"st"},{"$f":"TEXT(WEEKDAY(DATE(KalendárnyRok+1,6,20),1),\"aaa\")","v":"št"},{"$f":"TEXT(WEEKDAY(DATE(KalendárnyRok+1,6,21),1),\"aaa\")","v":"pi"},{"$f":"TEXT(WEEKDAY(DATE(KalendárnyRok+1,6,22),1),\"aaa\")","v":"so"},{"$f":"TEXT(WEEKDAY(DATE(KalendárnyRok+1,6,23),1),\"aaa\")","v":"ne"},{"$f":"TEXT(WEEKDAY(DATE(KalendárnyRok+1,6,24),1),\"aaa\")","v":"po"},{"$f":"TEXT(WEEKDAY(DATE(KalendárnyRok+1,6,25),1),\"aaa\")","v":"ut"},{"$f":"TEXT(WEEKDAY(DATE(KalendárnyRok+1,6,26),1),\"aaa\")","v":"st"},{"$f":"TEXT(WEEKDAY(DATE(KalendárnyRok+1,6,27),1),\"aaa\")","v":"št"},{"$f":"TEXT(WEEKDAY(DATE(KalendárnyRok+1,6,28),1),\"aaa\")","v":"pi"},{"$f":"TEXT(WEEKDAY(DATE(KalendárnyRok+1,6,29),1),\"aaa\")","v":"so"},{"$f":"TEXT(WEEKDAY(DATE(KalendárnyRok+1,6,30),1),\"aaa\")","v":"ne"},null,"Súčet"]
[null,"Identifikácia študenta","Meno študenta","1","2","3","4","5","6","7","8","9","10","11","12","13","14","15","16","17","18","19","20","21","22","23","24","25","26","27","28","29","30","31","N","O","Ne","Ž","Dni neprítomnosti"]
[null,null,{"$f":"IFERROR(VLOOKUP(DochádzkaVJúni[[#This Row],[Identifikácia študenta]],ZoznamŠtudentov[],18,FALSE),\"\")","v":""},{"$nulls":31},{"$f":"COUNTIF(DochádzkaVJúni[[#This Row],[1]:[31]],Kód1)","v":0},{"$f":"COUNTIF(DochádzkaVJúni[[#This Row],[1]:[31]],Kód2)","v":0},{"$f":"COUNTIF(DochádzkaVJúni[[#This Row],[1]:[31]],Kód3)","v":0},{"$f":"COUNTIF(DochádzkaVJúni[[#This Row],[1]:[31]],Kód4)","v":0},{"$f":"SUM(DochádzkaVSeptembri[[#This Row],[O]:[Ne]])","v":0}]
[null,null,{"$f":"IFERROR(VLOOKUP(DochádzkaVJúni[[#This Row],[Identifikácia študenta]],ZoznamŠtudentov[],18,FALSE),\"\")","v":""},{"$nulls":31},{"$f":"COUNTIF(DochádzkaVJúni[[#This Row],[1]:[31]],Kód1)","v":0},{"$f":"COUNTIF(DochádzkaVJúni[[#This Row],[1]:[31]],Kód2)","v":0},{"$f":"COUNTIF(DochádzkaVJúni[[#This Row],[1]:[31]],Kód3)","v":0},{"$f":"COUNTIF(DochádzkaVJúni[[#This Row],[1]:[31]],Kód4)","v":0},{"$f":"SUM(DochádzkaVSeptembri[[#This Row],[O]:[Ne]])","v":0}]
[null,null,{"$f":"IFERROR(VLOOKUP(DochádzkaVJúni[[#This Row],[Identifikácia študenta]],ZoznamŠtudentov[],18,FALSE),\"\")","v":""},{"$nulls":31},{"$f":"COUNTIF(DochádzkaVJúni[[#This Row],[1]:[31]],Kód1)","v":0},{"$f":"COUNTIF(DochádzkaVJúni[[#This Row],[1]:[31]],Kód2)","v":0},{"$f":"COUNTIF(DochádzkaVJúni[[#This Row],[1]:[31]],Kód3)","v":0},{"$f":"COUNTIF(DochádzkaVJúni[[#This Row],[1]:[31]],Kód4)","v":0},{"$f":"SUM(DochádzkaVSeptembri[[#This Row],[O]:[Ne]])","v":0}]
[null,null,{"$f":"IFERROR(VLOOKUP(DochádzkaVJúni[[#This Row],[Identifikácia študenta]],ZoznamŠtudentov[],18,FALSE),\"\")","v":""},{"$nulls":31},{"$f":"COUNTIF(DochádzkaVJúni[[#This Row],[1]:[31]],Kód1)","v":0},{"$f":"COUNTIF(DochádzkaVJúni[[#This Row],[1]:[31]],Kód2)","v":0},{"$f":"COUNTIF(DochádzkaVJúni[[#This Row],[1]:[31]],Kód3)","v":0},{"$f":"COUNTIF(DochádzkaVJúni[[#This Row],[1]:[31]],Kód4)","v":0},{"$f":"SUM(DochádzkaVSeptembri[[#This Row],[O]:[Ne]])","v":0}]
[null,null,{"$f":"IFERROR(VLOOKUP(DochádzkaVJúni[[#This Row],[Identifikácia študenta]],ZoznamŠtudentov[],18,FALSE),\"\")","v":""},{"$nulls":31},{"$f":"COUNTIF(DochádzkaVJúni[[#This Row],[1]:[31]],Kód1)","v":0},{"$f":"COUNTIF(DochádzkaVJúni[[#This Row],[1]:[31]],Kód2)","v":0},{"$f":"COUNTIF(DochádzkaVJúni[[#This Row],[1]:[31]],Kód3)","v":0},{"$f":"COUNTIF(DochádzkaVJúni[[#This Row],[1]:[31]],Kód4)","v":0},{"$f":"SUM(DochádzkaVSeptembri[[#This Row],[O]:[Ne]])","v":0}]
[null,null,"Súčet dní neprítomnosti",{"$f":"COUNTIF(DochádzkaVJúni[1],\"Ne\")+COUNTIF(DochádzkaVJúni[1],\"O\")","v":0},{"$f":"COUNTIF(DochádzkaVJúni[2],\"Ne\")+COUNTIF(DochádzkaVJúni[2],\"O\")","v":0},{"$f":"COUNTIF(DochádzkaVJúni[3],\"Ne\")+COUNTIF(DochádzkaVJúni[3],\"O\")","v":0},{"$f":"COUNTIF(DochádzkaVJúni[4],\"Ne\")+COUNTIF(DochádzkaVJúni[4],\"O\")","v":0},{"$f":"COUNTIF(DochádzkaVJúni[5],\"Ne\")+COUNTIF(DochádzkaVJúni[5],\"O\")","v":0},{"$f":"COUNTIF(DochádzkaVJúni[6],\"Ne\")+COUNTIF(DochádzkaVJúni[6],\"O\")","v":0},{"$f":"COUNTIF(DochádzkaVJúni[7],\"Ne\")+COUNTIF(DochádzkaVJúni[7],\"O\")","v":0},{"$f":"COUNTIF(DochádzkaVJúni[8],\"Ne\")+COUNTIF(DochádzkaVJúni[8],\"O\")","v":0},{"$f":"COUNTIF(DochádzkaVJúni[9],\"Ne\")+COUNTIF(DochádzkaVJúni[9],\"O\")","v":0},{"$f":"COUNTIF(DochádzkaVJúni[10],\"Ne\")+COUNTIF(DochádzkaVJúni[10],\"O\")","v":0},{"$f":"COUNTIF(DochádzkaVJúni[11],\"Ne\")+COUNTIF(DochádzkaVJúni[11],\"O\")","v":0},{"$f":"COUNTIF(DochádzkaVJúni[12],\"Ne\")+COUNTIF(DochádzkaVJúni[12],\"O\")","v":0},{"$f":"COUNTIF(DochádzkaVJúni[13],\"Ne\")+COUNTIF(DochádzkaVJúni[13],\"O\")","v":0},{"$f":"COUNTIF(DochádzkaVJúni[14],\"Ne\")+COUNTIF(DochádzkaVJúni[14],\"O\")","v":0},{"$f":"COUNTIF(DochádzkaVJúni[15],\"Ne\")+COUNTIF(DochádzkaVJúni[15],\"O\")","v":0},{"$f":"COUNTIF(DochádzkaVJúni[16],\"Ne\")+COUNTIF(DochádzkaVJúni[16],\"O\")","v":0},{"$f":"COUNTIF(DochádzkaVJúni[17],\"Ne\")+COUNTIF(DochádzkaVJúni[17],\"O\")","v":0},{"$f":"COUNTIF(DochádzkaVJúni[18],\"Ne\")+COUNTIF(DochádzkaVJúni[18],\"O\")","v":0},{"$f":"COUNTIF(DochádzkaVJúni[19],\"Ne\")+COUNTIF(DochádzkaVJúni[19],\"O\")","v":0},{"$f":"COUNTIF(DochádzkaVJúni[20],\"Ne\")+COUNTIF(DochádzkaVJúni[20],\"O\")","v":0},{"$f":"COUNTIF(DochádzkaVJúni[21],\"Ne\")+COUNTIF(DochádzkaVJúni[21],\"O\")","v":0},{"$f":"COUNTIF(DochádzkaVJúni[22],\"Ne\")+COUNTIF(DochádzkaVJúni[22],\"O\")","v":0},{"$f":"COUNTIF(DochádzkaVJúni[23],\"Ne\")+COUNTIF(DochádzkaVJúni[23],\"O\")","v":0},{"$f":"COUNTIF(DochádzkaVJúni[24],\"Ne\")+COUNTIF(DochádzkaVJúni[24],\"O\")","v":0},{"$f":"COUNTIF(DochádzkaVJúni[25],\"Ne\")+COUNTIF(DochádzkaVJúni[25],\"O\")","v":0},{"$f":"COUNTIF(DochádzkaVJúni[26],\"Ne\")+COUNTIF(DochádzkaVJúni[26],\"O\")","v":0},{"$f":"COUNTIF(DochádzkaVJúni[27],\"Ne\")+COUNTIF(DochádzkaVJúni[27],\"O\")","v":0},{"$f":"COUNTIF(DochádzkaVJúni[28],\"Ne\")+COUNTIF(DochádzkaVJúni[28],\"O\")","v":0},{"$f":"COUNTIF(DochádzkaVJúni[29],\"Ne\")+COUNTIF(DochádzkaVJúni[29],\"O\")","v":0},{"$f":"COUNTIF(DochádzkaVJúni[30],\"Ne\")+COUNTIF(DochádzkaVJúni[30],\"O\")","v":0},{"$f":"COUNTIF(DochádzkaVJúni[31],\"Ne\")+COUNTIF(DochádzkaVJúni[31],\"O\")","v":0},{"$f":"SUBTOTAL(109,DochádzkaVJúni[N])","v":0},{"$f":"SUBTOTAL(109,DochádzkaVJúni[O])","v":0},{"$f":"SUBTOTAL(109,DochádzkaVJúni[Ne])","v":0},{"$f":"SUBTOTAL(109,DochádzkaVJúni[Ž])","v":0},{"$f":"SUBTOTAL(109,DochádzkaVJúni[Dni neprítomnosti])","v":0}]

{"sheet":"Júl","index":13,"n_rows":12,"n_cols":39,"rows_kept":12,"merged":[[4,34,4,38]]}
["ZÁZNAM DOCHÁDZKY ŠTUDENTA",{"$nulls":36},"Začiatok školského roka:",2012]
[]
[null,null,{"$f":"TextKľúčaFarieb","v":"KĽÚČ FARIEB"},{"$f":"Kód1","v":"N"},{"$f":"TextKódu1","v":"Neskorý príchod"},null,null,{"$f":"Kód2","v":"O"},{"$f":"TextKódu2","v":"Ospravedlnené"},null,null,{"$f":"Kód3","v":"Ne"},{"$f":"TextKódu3","v":"Neospravedlnené"},{"$nulls":3},{"$f":"Kód4","v":"Na"},{"$f":"TextKódu4","v":"Na vyučovaní"},null,null,{"$f":"Kód5","v":"Ž"},{"$f":"TextKódu5","v":"Žiadne vyučovanie"}]
[]
[null,{"$f":"DATE(KalendárnyRok+1,7,1)","v":"2013-07-01"},null,{"$f":"TEXT(WEEKDAY(DATE(KalendárnyRok+1,7,1),1),\"aaa\")","v":"po"},{"$f":"TEXT(WEEKDAY(DATE(KalendárnyRok+1,7,2),1),\"aaa\")","v":"ut"},{"$f":"TEXT(WEEKDAY(DATE(KalendárnyRok+1,7,3),1),\"aaa\")","v":"st"},{"$f":"TEXT(WEEKDAY(DATE(KalendárnyRok+1,7,4),1),\"aaa\")","v":"št"},{"$f":"TEXT(WEEKDAY(DATE(KalendárnyRok+1,7,5),1),\"aaa\")","v":"pi"},{"$f":"TEXT(WEEKDAY(DATE(KalendárnyRok+1,7,6),1),\"aaa\")","v":"so"},{"$f":"TEXT(WEEKDAY(DATE(KalendárnyRok+1,7,7),1),\"aaa\")","v":"ne"},{"$f":"TEXT(WEEKDAY(DATE(KalendárnyRok+1,7,8),1),\"aaa\")","v":"po"},{"$f":"TEXT(WEEKDAY(DATE(KalendárnyRok+1,7,9),1),\"aaa\")","v":"ut"},{"$f":"TEXT(WEEKDAY(DATE(KalendárnyRok+1,7,10),1),\"aaa\")","v":"st"},{"$f":"TEXT(WEEKDAY(DATE(KalendárnyRok+1,7,11),1),\"aaa\")","v":"št"},{"$f":"TEXT(WEEKDAY(DATE(KalendárnyRok+1,7,12),1),\"aaa\")","v":"pi"},{"$f":"TEXT(WEEKDAY(DATE(KalendárnyRok+1,7,13),1),\"aaa\")","v":"so"},{"$f":"TEXT(WEEKDAY(DATE(KalendárnyRok+1,7,14),1),\"aaa\")","v":"ne"},{"$f":"TEXT(WEEKDAY(DATE(KalendárnyRok+1,7,15),1),\"aaa\")","v":"po"},{"$f":"TEXT(WEEKDAY(DATE(KalendárnyRok+1,7,16),1),\"aaa\")","v":"ut"},{"$f":"TEXT(WEEKDAY(DATE(KalendárnyRok+1,7,17),1),\"aaa\")","v":"st"},{"$f":"TEXT(WEEKDAY(DATE(KalendárnyRok+1,7,18),1),\"aaa\")","v":"št"},{"$f":"TEXT(WEEKDAY(DATE(KalendárnyRok+1,7,19),1),\"aaa\")","v":"pi"},{"$f":"TEXT(WEEKDAY(DATE(KalendárnyRok+1,7,20),1),\"aaa\")","v":"so"},{"$f":"TEXT(WEEKDAY(DATE(KalendárnyRok+1,7,21),1),\"aaa\")","v":"ne"},{"$f":"TEXT(WEEKDAY(DATE(KalendárnyRok+1,7,22),1),\"aaa\")","v":"po"},{"$f":"TEXT(WEEKDAY(DATE(KalendárnyRok+1,7,23),1),\"aaa\")","v":"ut"},{"$f":"TEXT(WEEKDAY(DATE(KalendárnyRok+1,7,24),1),\"aaa\")","v":"st"},{"$f":"TEXT(WEEKDAY(DATE(KalendárnyRok+1,7,25),1),\"aaa\")","v":"št"},{"$f":"TEXT(WEEKDAY(DATE(KalendárnyRok+1,7,26),1),\"aaa\")","v":"pi"},{"$f":"TEXT(WEEKDAY(DATE(KalendárnyRok+1,7,27),1),\"aaa\")","v":"so"},{"$f":"TEXT(WEEKDAY(DATE(KalendárnyRok+1,7,28),1),\"aaa\")","v":"ne"},{"$f":"TEXT(WEEKDAY(DATE(KalendárnyRok+1,7,29),1),\"aaa\")","v":"po"},{"$f":"TEXT(WEEKDAY(DATE(KalendárnyRok+1,7,30),1),\"aaa\")","v":"ut"},{"$f":"TEXT(WEEKDAY(DATE(KalendárnyRok+1,7,31),1),\"aaa\")","v":"st"},"Súčet"]
[null,"Identifikácia študenta","Meno študenta","1","2","3","4","5","6","7","8","9","10","11","12","13","14","15","16","17","18","19","20","21","22","23","24","25","26","27","28","29","30","31","N","O","Ne","Ž","Dni neprítomnosti"]
[null,null,{"$f":"IFERROR(VLOOKUP(DochádzkaVJúli[[#This Row],[Identifikácia študenta]],ZoznamŠtudentov[],18,FALSE),\"\")","v":""},{"$nulls":31},{"$f":"COUNTIF(DochádzkaVJúli[[#This Row],[1]:[31]],Kód1)","v":0},{"$f":"COUNTIF(DochádzkaVJúli[[#This Row],[1]:[31]],Kód2)","v":0},{"$f":"COUNTIF(DochádzkaVJúli[[#This Row],[1]:[31]],Kód3)","v":0},{"$f":"COUNTIF(DochádzkaVJúli[[#This Row],[1]:[31]],Kód4)","v":0},{"$f":"SUM(DochádzkaVSeptembri[[#This Row],[O]:[Ne]])","v":0}]
[null,null,{"$f":"IFERROR(VLOOKUP(DochádzkaVJúli[[#This Row],[Identifikácia študenta]],ZoznamŠtudentov[],18,FALSE),\"\")","v":""},{"$nulls":31},{"$f":"COUNTIF(DochádzkaVJúli[[#This Row],[1]:[31]],Kód1)","v":0},{"$f":"COUNTIF(DochádzkaVJúli[[#This Row],[1]:[31]],Kód2)","v":0},{"$f":"COUNTIF(DochádzkaVJúli[[#This Row],[1]:[31]],Kód3)","v":0},{"$f":"COUNTIF(DochádzkaVJúli[[#This Row],[1]:[31]],Kód4)","v":0},{"$f":"SUM(DochádzkaVSeptembri[[#This Row],[O]:[Ne]])","v":0}]
[null,null,{"$f":"IFERROR(VLOOKUP(DochádzkaVJúli[[#This Row],[Identifikácia študenta]],ZoznamŠtudentov[],18,FALSE),\"\")","v":""},{"$nulls":31},{"$f":"COUNTIF(DochádzkaVJúli[[#This Row],[1]:[31]],Kód1)","v":0},{"$f":"COUNTIF(DochádzkaVJúli[[#This Row],[1]:[31]],Kód2)","v":0},{"$f":"COUNTIF(DochádzkaVJúli[[#This Row],[1]:[31]],Kód3)","v":0},{"$f":"COUNTIF(DochádzkaVJúli[[#This Row],[1]:[31]],Kód4)","v":0},{"$f":"SUM(DochádzkaVSeptembri[[#This Row],[O]:[Ne]])","v":0}]
[null,null,{"$f":"IFERROR(VLOOKUP(DochádzkaVJúli[[#This Row],[Identifikácia študenta]],ZoznamŠtudentov[],18,FALSE),\"\")","v":""},{"$nulls":31},{"$f":"COUNTIF(DochádzkaVJúli[[#This Row],[1]:[31]],Kód1)","v":0},{"$f":"COUNTIF(DochádzkaVJúli[[#This Row],[1]:[31]],Kód2)","v":0},{"$f":"COUNTIF(DochádzkaVJúli[[#This Row],[1]:[31]],Kód3)","v":0},{"$f":"COUNTIF(DochádzkaVJúli[[#This Row],[1]:[31]],Kód4)","v":0},{"$f":"SUM(DochádzkaVSeptembri[[#This Row],[O]:[Ne]])","v":0}]
[null,null,{"$f":"IFERROR(VLOOKUP(DochádzkaVJúli[[#This Row],[Identifikácia študenta]],ZoznamŠtudentov[],18,FALSE),\"\")","v":""},{"$nulls":31},{"$f":"COUNTIF(DochádzkaVJúli[[#This Row],[1]:[31]],Kód1)","v":0},{"$f":"COUNTIF(DochádzkaVJúli[[#This Row],[1]:[31]],Kód2)","v":0},{"$f":"COUNTIF(DochádzkaVJúli[[#This Row],[1]:[31]],Kód3)","v":0},{"$f":"COUNTIF(DochádzkaVJúli[[#This Row],[1]:[31]],Kód4)","v":0},{"$f":"SUM(DochádzkaVSeptembri[[#This Row],[O]:[Ne]])","v":0}]
[null,null,"Súčet dní neprítomnosti",{"$f":"COUNTIF(DochádzkaVJúli[1],\"Ne\")+COUNTIF(DochádzkaVJúli[1],\"O\")","v":0},{"$f":"COUNTIF(DochádzkaVJúli[2],\"Ne\")+COUNTIF(DochádzkaVJúli[2],\"O\")","v":0},{"$f":"COUNTIF(DochádzkaVJúli[3],\"Ne\")+COUNTIF(DochádzkaVJúli[3],\"O\")","v":0},{"$f":"COUNTIF(DochádzkaVJúli[4],\"Ne\")+COUNTIF(DochádzkaVJúli[4],\"O\")","v":0},{"$f":"COUNTIF(DochádzkaVJúli[5],\"Ne\")+COUNTIF(DochádzkaVJúli[5],\"O\")","v":0},{"$f":"COUNTIF(DochádzkaVJúli[6],\"Ne\")+COUNTIF(DochádzkaVJúli[6],\"O\")","v":0},{"$f":"COUNTIF(DochádzkaVJúli[7],\"Ne\")+COUNTIF(DochádzkaVJúli[7],\"O\")","v":0},{"$f":"COUNTIF(DochádzkaVJúli[8],\"Ne\")+COUNTIF(DochádzkaVJúli[8],\"O\")","v":0},{"$f":"COUNTIF(DochádzkaVJúli[9],\"Ne\")+COUNTIF(DochádzkaVJúli[9],\"O\")","v":0},{"$f":"COUNTIF(DochádzkaVJúli[10],\"Ne\")+COUNTIF(DochádzkaVJúli[10],\"O\")","v":0},{"$f":"COUNTIF(DochádzkaVJúli[11],\"Ne\")+COUNTIF(DochádzkaVJúli[11],\"O\")","v":0},{"$f":"COUNTIF(DochádzkaVJúli[12],\"Ne\")+COUNTIF(DochádzkaVJúli[12],\"O\")","v":0},{"$f":"COUNTIF(DochádzkaVJúli[13],\"Ne\")+COUNTIF(DochádzkaVJúli[13],\"O\")","v":0},{"$f":"COUNTIF(DochádzkaVJúli[14],\"Ne\")+COUNTIF(DochádzkaVJúli[14],\"O\")","v":0},{"$f":"COUNTIF(DochádzkaVJúli[15],\"Ne\")+COUNTIF(DochádzkaVJúli[15],\"O\")","v":0},{"$f":"COUNTIF(DochádzkaVJúli[16],\"Ne\")+COUNTIF(DochádzkaVJúli[16],\"O\")","v":0},{"$f":"COUNTIF(DochádzkaVJúli[17],\"Ne\")+COUNTIF(DochádzkaVJúli[17],\"O\")","v":0},{"$f":"COUNTIF(DochádzkaVJúli[18],\"Ne\")+COUNTIF(DochádzkaVJúli[18],\"O\")","v":0},{"$f":"COUNTIF(DochádzkaVJúli[19],\"Ne\")+COUNTIF(DochádzkaVJúli[19],\"O\")","v":0},{"$f":"COUNTIF(DochádzkaVJúli[20],\"Ne\")+COUNTIF(DochádzkaVJúli[20],\"O\")","v":0},{"$f":"COUNTIF(DochádzkaVJúli[21],\"Ne\")+COUNTIF(DochádzkaVJúli[21],\"O\")","v":0},{"$f":"COUNTIF(DochádzkaVJúli[22],\"Ne\")+COUNTIF(DochádzkaVJúli[22],\"O\")","v":0},{"$f":"COUNTIF(DochádzkaVJúli[23],\"Ne\")+COUNTIF(DochádzkaVJúli[23],\"O\")","v":0},{"$f":"COUNTIF(DochádzkaVJúli[24],\"Ne\")+COUNTIF(DochádzkaVJúli[24],\"O\")","v":0},{"$f":"COUNTIF(DochádzkaVJúli[25],\"Ne\")+COUNTIF(DochádzkaVJúli[25],\"O\")","v":0},{"$f":"COUNTIF(DochádzkaVJúli[26],\"Ne\")+COUNTIF(DochádzkaVJúli[26],\"O\")","v":0},{"$f":"COUNTIF(DochádzkaVJúli[27],\"Ne\")+COUNTIF(DochádzkaVJúli[27],\"O\")","v":0},{"$f":"COUNTIF(DochádzkaVJúli[28],\"Ne\")+COUNTIF(DochádzkaVJúli[28],\"O\")","v":0},{"$f":"COUNTIF(DochádzkaVJúli[29],\"Ne\")+COUNTIF(DochádzkaVJúli[29],\"O\")","v":0},{"$f":"COUNTIF(DochádzkaVJúli[30],\"Ne\")+COUNTIF(DochádzkaVJúli[30],\"O\")","v":0},{"$f":"COUNTIF(DochádzkaVJúli[31],\"Ne\")+COUNTIF(DochádzkaVJúli[31],\"O\")","v":0},{"$f":"SUBTOTAL(109,DochádzkaVJúli[N])","v":0},{"$f":"SUBTOTAL(109,DochádzkaVJúli[O])","v":0},{"$f":"SUBTOTAL(109,DochádzkaVJúli[Ne])","v":0},{"$f":"SUBTOTAL(109,DochádzkaVJúli[Ž])","v":0},{"$f":"SUBTOTAL(109,DochádzkaVJúli[Dni neprítomnosti])","v":0}]

{"sheet":"Správa o dochádzke študenta","index":14,"n_rows":40,"n_cols":37,"rows_kept":40,"merged":[[2,3,2,14],[2,15,2,17],[2,18,2,21],[2,22,2,29],[2,30,2,31],[2,32,2,35],[3,1,3,2],[3,3,3,14],[3,15,3,17],[3,18,3,21],[3,22,3,29],[3,30,3,31],[3,32,3,35],[4,1,4,9],[4,10,4,21],[4,22,4,29],[4,30,4,36],[5,1,5,9],[5,10,5,21],[5,22,5,29],[5,30,5,36],[6,1,6,9],[6,10,6,21],[6,22,6,29],[6,30,6,36],[7,1,7,9],[7,10,7,21],[7,22,7,29],[7,30,7,36],[8,1,8,9],[8,10,8,21],[8,22,8,29],[8,30,8,36],[9,1,9,9],[9,10,9,21],[9,22,9,29],[9,30,9,36],[13,1,14,32],[13,33,13,36],[15,1,16,1],[15,33,16,33],[15,34,16,34],[15,35,16,35],[15,36,16,36],[17,1,18,1],[17,33,18,33],[17,34,18,34],[17,35,18,35],[17,36,18,36],[19,1,20,1],[19,33,20,33],[19,34,20,34],[19,35,20,35],[19,36,20,36],[21,1,22,1],[21,33,22,33],[21,34,22,34],[21,35,22,35],[21,36,22,36],[23,1,24,1],[23,33,24,33],[23,34,24,34],[23,35,24,35],[23,36,24,36],[25,1,26,1],[25,33,26,33],[25,34,26,34],[25,35,26,35],[25,36,26,36],[27,1,28,1],[27,33,28,33],[27,34,28,34],[27,35,28,35],[27,36,28,36],[29,1,30,1],[29,33,30,33],[29,34,30,34],[29,35,30,35],[29,36,30,36],[31,1,32,1],[31,33,32,33],[31,34,32,34],[31,35,32,35],[31,36,32,36],[33,1,34,1],[33,33,34,33],[33,34,34,34],[33,35,34,35],[33,36,34,36],[35,1,36,1],[35,33,36,33],[35,34,36,34],[35,35,36,35],[35,36,36,36],[37,1,38,1],[37,33,38,33],[37,34,38,34],[37,35,38,35],[37,36,38,36],[39,30,39,32]]}
[{"$f":"\"Záznam dochádzky pre študenta \"","v":"Záznam dochádzky pre študenta "},{"$nulls":10},{"$f":"D4","v":"Michal Horváth"}]
[]
[null,"Identifikácia študenta",null,"Meno študenta",{"$nulls":11},"Pohlavie",null,null,"Dátum narodenia",{"$nulls":3},"Škola",{"$nulls":7},"Známka",null,"Vyučujúci",{"$nulls":3},"Miestnosť"]
[null,"S001",null,{"$f":"IFERROR(VLOOKUP(VyhľadanieŠtudenta,ZoznamŠtudentov[],18,FALSE),\"\")","v":"Michal Horváth"},{"$nulls":11},{"$f":"IFERROR(VLOOKUP(VyhľadanieŠtudenta,ZoznamŠtudentov[],4,FALSE),\"\")","v":"M"},null,null,{"$f":"IFERROR(VLOOKUP(VyhľadanieŠtudenta,ZoznamŠtudentov[],5,FALSE),\"\")","v":"1997-03-28"},{"$nulls":3},"Umelecká škola ",{"$nulls":7},7,null,"Katarína Nagyová",{"$nulls":3},123]
[null,"Meno rodiča alebo opatrovníka 1",{"$nulls":8},"Vzťah",{"$nulls":11},"Číslo do práce",{"$nulls":7},"Číslo domov "]
[null,{"$f":"IFERROR(VLOOKUP(VyhľadanieŠtudenta,ZoznamŠtudentov[],6,FALSE),\"\")","v":"Martina Horváthová"},{"$nulls":8},{"$f":"IFERROR(VLOOKUP(VyhľadanieŠtudenta,ZoznamŠtudentov[],7,FALSE),\"\")","v":"Matka"},{"$nulls":11},{"$f":"IFERROR(VLOOKUP(VyhľadanieŠtudenta,ZoznamŠtudentov[],8,FALSE),\"\")","v":1235550134},{"$nulls":7},{"$f":"IFERROR(VLOOKUP(VyhľadanieŠtudenta,ZoznamŠtudentov[],9,FALSE),\"\")","v":2345550134}]
[null,"Meno rodiča alebo opatrovníka 2",{"$nulls":8},"Vzťah",{"$nulls":11},"Číslo do práce",{"$nulls":7},"Číslo domov "]
[null,{"$f":"IFERROR(VLOOKUP(VyhľadanieŠtudenta,ZoznamŠtudentov[],10,FALSE),\"\")","v":"Peter Horváth"},{"$nulls":8},{"$f":"IFERROR(VLOOKUP(VyhľadanieŠtudenta,ZoznamŠtudentov[],11,FALSE),\"\")","v":"Otec"},{"$nulls":11},{"$f":"IFERROR(VLOOKUP(VyhľadanieŠtudenta,ZoznamŠtudentov[],12,FALSE),\"\")","v":1235550134},{"$nulls":7},{"$f":"IFERROR(VLOOKUP(VyhľadanieŠtudenta,ZoznamŠtudentov[],13,FALSE),\"\")","v":2345550134}]
[null,"Kontakt pre naliehavé prípady",{"$nulls":8},"Vzťah",{"$nulls":11},"Číslo do práce",{"$nulls":7},"Číslo domov "]
[null,{"$f":"IFERROR(VLOOKUP(VyhľadanieŠtudenta,ZoznamŠtudentov[],14,FALSE),\"\")","v":"Tomáš Novák"},{"$nulls":8},{"$f":"IFERROR(VLOOKUP(VyhľadanieŠtudenta,ZoznamŠtudentov[],15,FALSE),\"\")","v":"Starý otec"},{"$nulls":11},{"$f":"IFERROR(VLOOKUP(VyhľadanieŠtudenta,ZoznamŠtudentov[],16,FALSE),\"\")","v":7895550189},{"$nulls":7},{"$f":"IFERROR(VLOOKUP(VyhľadanieŠtudenta,ZoznamŠtudentov[],17,FALSE),\"\")","v":7895550134}]
[]
[null,{"$f":"August!C3","v":"KĽÚČ FARIEB"},{"$f":"August!D3","v":"N"},{"$f":"August!E3","v":"Neskorý príchod"},{"$nulls":4},{"$f":"August!H3","v":"O"},{"$f":"August!I3","v":"Ospravedlnené"},{"$nulls":4},{"$f":"August!L3","v":"Ne"},{"$f":"August!M3","v":"Neospravedlnené"},{"$nulls":4},{"$f":"August!Q3","v":"Na"},{"$f":"August!R3","v":"Na vyučovaní"},{"$nulls":3},{"$f":"August!U3","v":"Ž"},{"$f":"August!V3","v":"Žiadne vyučovanie"}]
[]
[null,"Dochádzka",{"$nulls":31},"Súčet dochádzky"]
[{"$nulls":33},"N","O","Ne","Na"]
[null,"August",1,2,3,4,5,6,7,8,9,10,11,12,13,14,15,16,17,18,19,20,21,22,23,24,25,26,27,28,29,30,31,{"$f":"COUNTIF($D17:$AH17,Kód1)","v":2},{"$f":"COUNTIF($D17:$AH17,Kód2)","v":1},{"$f":"COUNTIF($D17:$AH17,Kód3)","v":0},{"$f":"COUNTIF($D17:$AH17,Kód4)","v":19}]
[null,null,{"$f":"IFERROR(VLOOKUP(VyhľadanieŠtudenta,DochádzkaVAuguste[],3,FALSE),\"\")","v":"Na"},{"$f":"IFERROR(VLOOKUP(VyhľadanieŠtudenta,DochádzkaVAuguste[],4,FALSE),\"\")","v":"Na"},{"$f":"IFERROR(VLOOKUP(VyhľadanieŠtudenta,DochádzkaVAuguste[],5,FALSE),\"\")","v":"N"},{"$f":"IFERROR(VLOOKUP(VyhľadanieŠtudenta,DochádzkaVAuguste[],6,FALSE),\"\")","v":"N"},{"$f":"IFERROR(VLOOKUP(VyhľadanieŠtudenta,DochádzkaVAuguste[],7,FALSE),\"\")","v":"Na"},{"$f":"IFERROR(VLOOKUP(VyhľadanieŠtudenta,DochádzkaVAuguste[],8,FALSE),\"\")","v":"Ž"},{"$f":"IFERROR(VLOOKUP(VyhľadanieŠtudenta,DochádzkaVAuguste[],9,FALSE),\"\")","v":"Ž"},{"$f":"IFERROR(VLOOKUP(VyhľadanieŠtudenta,DochádzkaVAuguste[],10,FALSE),\"\")","v":"Na"},{"$f":"IFERROR(VLOOKUP(VyhľadanieŠtudenta,DochádzkaVAuguste[],11,FALSE),\"\")","v":"Na"},{"$f":"IFERROR(VLOOKUP(VyhľadanieŠtudenta,DochádzkaVAuguste[],12,FALSE),\"\")","v":"O"},{"$f":"IFERROR(VLOOKUP(VyhľadanieŠtudenta,DochádzkaVAuguste[],13,FALSE),\"\")","v":"Na"},{"$f":"IFERROR(VLOOKUP(VyhľadanieŠtudenta,DochádzkaVAuguste[],14,FALSE),\"\")","v":"Na"},{"$f":"IFERROR(VLOOKUP(VyhľadanieŠtudenta,DochádzkaVAuguste[],15,FALSE),\"\")","v":"Ž"},{"$f":"IFERROR(VLOOKUP(VyhľadanieŠtudenta,DochádzkaVAuguste[],16,FALSE),\"\")","v":"Ž"},{"$f":"IFERROR(VLOOKUP(VyhľadanieŠtudenta,DochádzkaVAuguste[],17,FALSE),\"\")","v":"Na"},{"$f":"IFERROR(VLOOKUP(VyhľadanieŠtudenta,DochádzkaVAuguste[],18,FALSE),\"\")","v":"Na"},{"$f":"IFERROR(VLOOKUP(VyhľadanieŠtudenta,DochádzkaVAuguste[],19,FALSE),\"\")","v":"Na"},{"$f":"IFERROR(VLOOKUP(VyhľadanieŠtudenta,DochádzkaVAuguste[],20,FALSE),\"\")","v":"Na"},{"$f":"IFERROR(VLOOKUP(VyhľadanieŠtudenta,DochádzkaVAuguste[],21,FALSE),\"\")","v":"Na"},{"$f":"IFERROR(VLOOKUP(VyhľadanieŠtudenta,DochádzkaVAuguste[],22,FALSE),\"\")","v":"Ž"},{"$f":"IFERROR(VLOOKUP(VyhľadanieŠtudenta,DochádzkaVAuguste[],23,FALSE),\"\")","v":"Ž"},{"$f":"IFERROR(VLOOKUP(VyhľadanieŠtudenta,DochádzkaVAuguste[],24,FALSE),\"\")","v":"Na"},{"$f":"IFERROR(VLOOKUP(VyhľadanieŠtudenta,DochádzkaVAuguste[],25,FALSE),\"\")","v":"Na"},{"$f":"IFERROR(VLOOKUP(VyhľadanieŠtudenta,DochádzkaVAuguste[],26,FALSE),\"\")","v":"Na"},{"$f":"IFERROR(VLOOKUP(VyhľadanieŠtudenta,DochádzkaVAuguste[],27,FALSE),\"\")","v":"Na"},{"$f":"IFERROR(VLOOKUP(VyhľadanieŠtudenta,DochádzkaVAuguste[],28,FALSE),\"\")","v":"Na"},{"$f":"IFERROR(VLOOKUP(VyhľadanieŠtudenta,DochádzkaVAuguste[],29,FALSE),\"\")","v":"Ž"},{"$f":"IFERROR(VLOOKUP(VyhľadanieŠtudenta,DochádzkaVAuguste[],30,FALSE),\"\")","v":"Ž"},{"$f":"IFERROR(VLOOKUP(VyhľadanieŠtudenta,DochádzkaVAuguste[],31,FALSE),\"\")","v":"Na"},{"$f":"IFERROR(VLOOKUP(VyhľadanieŠtudenta,DochádzkaVAuguste[],32,FALSE),\"\")","v":"Na"},{"$f":"IFERROR(VLOOKUP(VyhľadanieŠtudenta,DochádzkaVAuguste[],33,FALSE),\"\")","v":"Na"}]
[null,"September",1,2,3,4,5,6,7,8,9,10,11,12,13,14,15,16,17,18,19,20,21,22,23,24,25,26,27,28,29,30,null,{"$f":"COUNTIF($D19:$AH19,Kód1)","v":0},{"$f":"COUNTIF($D19:$AH19,Kód2)","v":0},{"$f":"COUNTIF($D19:$AH19,Kód3)","v":0},{"$f":"COUNTIF($D19:$AH19,Kód4)","v":0}]
[null,null,{"$f":"IFERROR(VLOOKUP(VyhľadanieŠtudenta,DochádzkaVSeptembri[],3,FALSE),\"\")","v":""},{"$f":"IFERROR(VLOOKUP(VyhľadanieŠtudenta,DochádzkaVSeptembri[],4,FALSE),\"\")","v":""},{"$f":"IFERROR(VLOOKUP(VyhľadanieŠtudenta,DochádzkaVSeptembri[],5,FALSE),\"\")","v":""},{"$f":"IFERROR(VLOOKUP(VyhľadanieŠtudenta,DochádzkaVSeptembri[],6,FALSE),\"\")","v":""},{"$f":"IFERROR(VLOOKUP(VyhľadanieŠtudenta,DochádzkaVSeptembri[],7,FALSE),\"\")","v":""},{"$f":"IFERROR(VLOOKUP(VyhľadanieŠtudenta,DochádzkaVSeptembri[],8,FALSE),\"\")","v":""},{"$f":"IFERROR(VLOOKUP(VyhľadanieŠtudenta,DochádzkaVSeptembri[],9,FALSE),\"\")","v":""},{"$f":"IFERROR(VLOOKUP(VyhľadanieŠtudenta,DochádzkaVSeptembri[],10,FALSE),\"\")","v":""},{"$f":"IFERROR(VLOOKUP(VyhľadanieŠtudenta,DochádzkaVSeptembri[],11,FALSE),\"\")","v":""},{"$f":"IFERROR(VLOOKUP(VyhľadanieŠtudenta,DochádzkaVSeptembri[],12,FALSE),\"\")","v":""},{"$f":"IFERROR(VLOOKUP(VyhľadanieŠtudenta,DochádzkaVSeptembri[],13,FALSE),\"\")","v":""},{"$f":"IFERROR(VLOOKUP(VyhľadanieŠtudenta,DochádzkaVSeptembri[],14,FALSE),\"\")","v":""},{"$f":"IFERROR(VLOOKUP(VyhľadanieŠtudenta,DochádzkaVSeptembri[],15,FALSE),\"\")","v":""},{"$f":"IFERROR(VLOOKUP(VyhľadanieŠtudenta,DochádzkaVSeptembri[],16,FALSE),\"\")","v":""},{"$f":"IFERROR(VLOOKUP(VyhľadanieŠtudenta,DochádzkaVSeptembri[],17,FALSE),\"\")","v":""},{"$f":"IFERROR(VLOOKUP(VyhľadanieŠtudenta,DochádzkaVSeptembri[],18,FALSE),\"\")","v":""},{"$f":"IFERROR(VLOOKUP(VyhľadanieŠtudenta,DochádzkaVSeptembri[],19,FALSE),\"\")","v":""},{"$f":"IFERROR(VLOOKUP(VyhľadanieŠtudenta,DochádzkaVSeptembri[],20,FALSE),\"\")","v":""},{"$f":"IFERROR(VLOOKUP(VyhľadanieŠtudenta,DochádzkaVSeptembri[],21,FALSE),\"\")","v":""},{"$f":"IFERROR(VLOOKUP(VyhľadanieŠtudenta,DochádzkaVSeptembri[],22,FALSE),\"\")","v":""},{"$f":"IFERROR(VLOOKUP(VyhľadanieŠtudenta,DochádzkaVSeptembri[],23,FALSE),\"\")","v":""},{"$f":"IFERROR(VLOOKUP(VyhľadanieŠtudenta,DochádzkaVSeptembri[],24,FALSE),\"\")","v":""},{"$f":"IFERROR(VLOOKUP(VyhľadanieŠtudenta,DochádzkaVSeptembri[],25,FALSE),\"\")","v":""},{"$f":"IFERROR(VLOOKUP(VyhľadanieŠtudenta,DochádzkaVSeptembri[],26,FALSE),\"\")","v":""},{"$f":"IFERROR(VLOOKUP(VyhľadanieŠtudenta,DochádzkaVSeptembri[],27,FALSE),\"\")","v":""},{"$f":"IFERROR(VLOOKUP(VyhľadanieŠtudenta,DochádzkaVSeptembri[],28,FALSE),\"\")","v":""},{"$f":"IFERROR(VLOOKUP(VyhľadanieŠtudenta,DochádzkaVSeptembri[],29,FALSE),\"\")","v":""},{"$f":"IFERROR(VLOOKUP(VyhľadanieŠtudenta,DochádzkaVSeptembri[],30,FALSE),\"\")","v":""},{"$f":"IFERROR(VLOOKUP(VyhľadanieŠtudenta,DochádzkaVSeptembri[],31,FALSE),\"\")","v":""},{"$f":"IFERROR(VLOOKUP(VyhľadanieŠtudenta,DochádzkaVSeptembri[],32,FALSE),\"\")","v":""}]
[null,"Október",1,2,3,4,5,6,7,8,9,10,11,12,13,14,15,16,17,18,19,20,21,22,23,24,25,26,27,28,29,30,31,{"$f":"COUNTIF($D21:$AH21,Kód1)","v":0},{"$f":"COUNTIF($D21:$AH21,Kód2)","v":0},{"$f":"COUNTIF($D21:$AH21,Kód3)","v":0},{"$f":"COUNTIF($D21:$AH21,Kód4)","v":0}]
[null,null,{"$f":"IFERROR(VLOOKUP(VyhľadanieŠtudenta,DochádzkaVOktóbri[],3,FALSE),\"\")","v":""},{"$f":"IFERROR(VLOOKUP(VyhľadanieŠtudenta,DochádzkaVOktóbri[],4,FALSE),\"\")","v":""},{"$f":"IFERROR(VLOOKUP(VyhľadanieŠtudenta,DochádzkaVOktóbri[],5,FALSE),\"\")","v":""},{"$f":"IFERROR(VLOOKUP(VyhľadanieŠtudenta,DochádzkaVOktóbri[],6,FALSE),\"\")","v":""},{"$f":"IFERROR(VLOOKUP(VyhľadanieŠtudenta,DochádzkaVOktóbri[],7,FALSE),\"\")","v":""},{"$f":"IFERROR(VLOOKUP(VyhľadanieŠtudenta,DochádzkaVOktóbri[],8,FALSE),\"\")","v":""},{"$f":"IFERROR(VLOOKUP(VyhľadanieŠtudenta,DochádzkaVOktóbri[],9,FALSE),\"\")","v":""},{"$f":"IFERROR(VLOOKUP(VyhľadanieŠtudenta,DochádzkaVOktóbri[],10,FALSE),\"\")","v":""},{"$f":"IFERROR(VLOOKUP(VyhľadanieŠtudenta,DochádzkaVOktóbri[],11,FALSE),\"\")","v":""},{"$f":"IFERROR(VLOOKUP(VyhľadanieŠtudenta,DochádzkaVOktóbri[],12,FALSE),\"\")","v":""},{"$f":"IFERROR(VLOOKUP(VyhľadanieŠtudenta,DochádzkaVOktóbri[],13,FALSE),\"\")","v":""},{"$f":"IFERROR(VLOOKUP(VyhľadanieŠtudenta,DochádzkaVOktóbri[],14,FALSE),\"\")","v":""},{"$f":"IFERROR(VLOOKUP(VyhľadanieŠtudenta,DochádzkaVOktóbri[],15,FALSE),\"\")","v":""},{"$f":"IFERROR(VLOOKUP(VyhľadanieŠtudenta,DochádzkaVOktóbri[],16,FALSE),\"\")","v":""},{"$f":"IFERROR(VLOOKUP(VyhľadanieŠtudenta,DochádzkaVOktóbri[],17,FALSE),\"\")","v":""},{"$f":"IFERROR(VLOOKUP(VyhľadanieŠtudenta,DochádzkaVOktóbri[],18,FALSE),\"\")","v":""},{"$f":"IFERROR(VLOOKUP(VyhľadanieŠtudenta,DochádzkaVOktóbri[],19,FALSE),\"\")","v":""},{"$f":"IFERROR(VLOOKUP(VyhľadanieŠtudenta,DochádzkaVOktóbri[],20,FALSE),\"\")","v":""},{"$f":"IFERROR(VLOOKUP(VyhľadanieŠtudenta,DochádzkaVOktóbri[],21,FALSE),\"\")","v":""},{"$f":"IFERROR(VLOOKUP(VyhľadanieŠtudenta,DochádzkaVOktóbri[],22,FALSE),\"\")","v":""},{"$f":"IFERROR(VLOOKUP(VyhľadanieŠtudenta,DochádzkaVOktóbri[],23,FALSE),\"\")","v":""},{"$f":"IFERROR(VLOOKUP(VyhľadanieŠtudenta,DochádzkaVOktóbri[],24,FALSE),\"\")","v":""},{"$f":"IFERROR(VLOOKUP(VyhľadanieŠtudenta,DochádzkaVOktóbri[],25,FALSE),\"\")","v":""},{"$f":"IFERROR(VLOOKUP(VyhľadanieŠtudenta,DochádzkaVOktóbri[],26,FALSE),\"\")","v":""},{"$f":"IFERROR(VLOOKUP(VyhľadanieŠtudenta,DochádzkaVOktóbri[],27,FALSE),\"\")","v":""},{"$f":"IFERROR(VLOOKUP(VyhľadanieŠtudenta,DochádzkaVOktóbri[],28,FALSE),\"\")","v":""},{"$f":"IFERROR(VLOOKUP(VyhľadanieŠtudenta,DochádzkaVOktóbri[],29,FALSE),\"\")","v":""},{"$f":"IFERROR(VLOOKUP(VyhľadanieŠtudenta,DochádzkaVOktóbri[],30,FALSE),\"\")","v":""},{"$f":"IFERROR(VLOOKUP(VyhľadanieŠtudenta,DochádzkaVOktóbri[],31,FALSE),\"\")","v":""},{"$f":"IFERROR(VLOOKUP(VyhľadanieŠtudenta,DochádzkaVOktóbri[],32,FALSE),\"\")","v":""},{"$f":"IFERROR(VLOOKUP(VyhľadanieŠtudenta,DochádzkaVOktóbri[],33,FALSE),\"\")","v":""}]
[null,"November",1,2,3,4,5,6,7,8,9,10,11,12,13,14,15,16,17,18,19,20,21,22,23,24,25,26,27,28,29,30,null,{"$f":"COUNTIF($D23:$AH23,Kód1)","v":0},{"$f":"COUNTIF($D23:$AH23,Kód2)","v":0},{"$f":"COUNTIF($D23:$AH23,Kód3)","v":0},{"$f":"COUNTIF($D23:$AH23,Kód4)","v":0}]
[null,null,{"$f":"IFERROR(VLOOKUP(VyhľadanieŠtudenta,DochádzkaVNovembri[],3,FALSE),\"\")","v":""},{"$f":"IFERROR(VLOOKUP(VyhľadanieŠtudenta,DochádzkaVNovembri[],4,FALSE),\"\")","v":""},{"$f":"IFERROR(VLOOKUP(VyhľadanieŠtudenta,DochádzkaVNovembri[],5,FALSE),\"\")","v":""},{"$f":"IFERROR(VLOOKUP(VyhľadanieŠtudenta,DochádzkaVNovembri[],6,FALSE),\"\")","v":""},{"$f":"IFERROR(VLOOKUP(VyhľadanieŠtudenta,DochádzkaVNovembri[],7,FALSE),\"\")","v":""},{"$f":"IFERROR(VLOOKUP(VyhľadanieŠtudenta,DochádzkaVNovembri[],8,FALSE),\"\")","v":""},{"$f":"IFERROR(VLOOKUP(VyhľadanieŠtudenta,DochádzkaVNovembri[],9,FALSE),\"\")","v":""},{"$f":"IFERROR(VLOOKUP(VyhľadanieŠtudenta,DochádzkaVNovembri[],10,FALSE),\"\")","v":""},{"$f":"IFERROR(VLOOKUP(VyhľadanieŠtudenta,DochádzkaVNovembri[],11,FALSE),\"\")","v":""},{"$f":"IFERROR(VLOOKUP(VyhľadanieŠtudenta,DochádzkaVNovembri[],12,FALSE),\"\")","v":""},{"$f":"IFERROR(VLOOKUP(VyhľadanieŠtudenta,DochádzkaVNovembri[],13,FALSE),\"\")","v":""},{"$f":"IFERROR(VLOOKUP(VyhľadanieŠtudenta,DochádzkaVNovembri[],14,FALSE),\"\")","v":""},{"$f":"IFERROR(VLOOKUP(VyhľadanieŠtudenta,DochádzkaVNovembri[],15,FALSE),\"\")","v":""},{"$f":"IFERROR(VLOOKUP(VyhľadanieŠtudenta,DochádzkaVNovembri[],16,FALSE),\"\")","v":""},{"$f":"IFERROR(VLOOKUP(VyhľadanieŠtudenta,DochádzkaVNovembri[],17,FALSE),\"\")","v":""},{"$f":"IFERROR(VLOOKUP(VyhľadanieŠtudenta,DochádzkaVNovembri[],18,FALSE),\"\")","v":""},{"$f":"IFERROR(VLOOKUP(VyhľadanieŠtudenta,DochádzkaVNovembri[],19,FALSE),\"\")","v":""},{"$f":"IFERROR(VLOOKUP(VyhľadanieŠtudenta,DochádzkaVNovembri[],20,FALSE),\"\")","v":""},{"$f":"IFERROR(VLOOKUP(VyhľadanieŠtudenta,DochádzkaVNovembri[],21,FALSE),\"\")","v":""},{"$f":"IFERROR(VLOOKUP(VyhľadanieŠtudenta,DochádzkaVNovembri[],22,FALSE),\"\")","v":""},{"$f":"IFERROR(VLOOKUP(VyhľadanieŠtudenta,DochádzkaVNovembri[],23,FALSE),\"\")","v":""},{"$f":"IFERROR(VLOOKUP(VyhľadanieŠtudenta,DochádzkaVNovembri[],24,FALSE),\"\")","v":""},{"$f":"IFERROR(VLOOKUP(VyhľadanieŠtudenta,DochádzkaVNovembri[],25,FALSE),\"\")","v":""},{"$f":"IFERROR(VLOOKUP(VyhľadanieŠtudenta,DochádzkaVNovembri[],26,FALSE),\"\")","v":""},{"$f":"IFERROR(VLOOKUP(VyhľadanieŠtudenta,DochádzkaVNovembri[],27,FALSE),\"\")","v":""},{"$f":"IFERROR(VLOOKUP(VyhľadanieŠtudenta,DochádzkaVNovembri[],28,FALSE),\"\")","v":""},{"$f":"IFERROR(VLOOKUP(VyhľadanieŠtudenta,DochádzkaVNovembri[],29,FALSE),\"\")","v":""},{"$f":"IFERROR(VLOOKUP(VyhľadanieŠtudenta,DochádzkaVNovembri[],30,FALSE),\"\")","v":""},{"$f":"IFERROR(VLOOKUP(VyhľadanieŠtudenta,DochádzkaVNovembri[],31,FALSE),\"\")","v":""},{"$f":"IFERROR(VLOOKUP(VyhľadanieŠtudenta,DochádzkaVNovembri[],32,FALSE),\"\")","v":""}]
[null,"December",1,2,3,4,5,6,7,8,9,10,11,12,13,14,15,16,17,18,19,20,21,22,23,24,25,26,27,28,29,30,31,{"$f":"COUNTIF($D25:$AH25,Kód1)","v":0},{"$f":"COUNTIF($D25:$AH25,Kód2)","v":0},{"$f":"COUNTIF($D25:$AH25,Kód3)","v":0},{"$f":"COUNTIF($D25:$AH25,Kód4)","v":0}]
[null,null,{"$f":"IFERROR(VLOOKUP(VyhľadanieŠtudenta,DochádzkaVDecembri[],3,FALSE),\"\")","v":""},{"$f":"IFERROR(VLOOKUP(VyhľadanieŠtudenta,DochádzkaVDecembri[],4,FALSE),\"\")","v":""},{"$f":"IFERROR(VLOOKUP(VyhľadanieŠtudenta,DochádzkaVDecembri[],5,FALSE),\"\")","v":""},{"$f":"IFERROR(VLOOKUP(VyhľadanieŠtudenta,DochádzkaVDecembri[],6,FALSE),\"\")","v":""},{"$f":"IFERROR(VLOOKUP(VyhľadanieŠtudenta,DochádzkaVDecembri[],7,FALSE),\"\")","v":""},{"$f":"IFERROR(VLOOKUP(VyhľadanieŠtudenta,DochádzkaVDecembri[],8,FALSE),\"\")","v":""},{"$f":"IFERROR(VLOOKUP(VyhľadanieŠtudenta,DochádzkaVDecembri[],9,FALSE),\"\")","v":""},{"$f":"IFERROR(VLOOKUP(VyhľadanieŠtudenta,DochádzkaVDecembri[],10,FALSE),\"\")","v":""},{"$f":"IFERROR(VLOOKUP(VyhľadanieŠtudenta,DochádzkaVDecembri[],11,FALSE),\"\")","v":""},{"$f":"IFERROR(VLOOKUP(VyhľadanieŠtudenta,DochádzkaVDecembri[],12,FALSE),\"\")","v":""},{"$f":"IFERROR(VLOOKUP(VyhľadanieŠtudenta,DochádzkaVDecembri[],13,FALSE),\"\")","v":""},{"$f":"IFERROR(VLOOKUP(VyhľadanieŠtudenta,DochádzkaVDecembri[],14,FALSE),\"\")","v":""},{"$f":"IFERROR(VLOOKUP(VyhľadanieŠtudenta,DochádzkaVDecembri[],15,FALSE),\"\")","v":""},{"$f":"IFERROR(VLOOKUP(VyhľadanieŠtudenta,DochádzkaVDecembri[],16,FALSE),\"\")","v":""},{"$f":"IFERROR(VLOOKUP(VyhľadanieŠtudenta,DochádzkaVDecembri[],17,FALSE),\"\")","v":""},{"$f":"IFERROR(VLOOKUP(VyhľadanieŠtudenta,DochádzkaVDecembri[],18,FALSE),\"\")","v":""},{"$f":"IFERROR(VLOOKUP(VyhľadanieŠtudenta,DochádzkaVDecembri[],19,FALSE),\"\")","v":""},{"$f":"IFERROR(VLOOKUP(VyhľadanieŠtudenta,DochádzkaVDecembri[],20,FALSE),\"\")","v":""},{"$f":"IFERROR(VLOOKUP(VyhľadanieŠtudenta,DochádzkaVDecembri[],21,FALSE),\"\")","v":""},{"$f":"IFERROR(VLOOKUP(VyhľadanieŠtudenta,DochádzkaVDecembri[],22,FALSE),\"\")","v":""},{"$f":"IFERROR(VLOOKUP(VyhľadanieŠtudenta,DochádzkaVDecembri[],23,FALSE),\"\")","v":""},{"$f":"IFERROR(VLOOKUP(VyhľadanieŠtudenta,DochádzkaVDecembri[],24,FALSE),\"\")","v":""},{"$f":"IFERROR(VLOOKUP(VyhľadanieŠtudenta,DochádzkaVDecembri[],25,FALSE),\"\")","v":""},{"$f":"IFERROR(VLOOKUP(VyhľadanieŠtudenta,DochádzkaVDecembri[],26,FALSE),\"\")","v":""},{"$f":"IFERROR(VLOOKUP(VyhľadanieŠtudenta,DochádzkaVDecembri[],27,FALSE),\"\")","v":""},{"$f":"IFERROR(VLOOKUP(VyhľadanieŠtudenta,DochádzkaVDecembri[],28,FALSE),\"\")","v":""},{"$f":"IFERROR(VLOOKUP(VyhľadanieŠtudenta,DochádzkaVDecembri[],29,FALSE),\"\")","v":""},{"$f":"IFERROR(VLOOKUP(VyhľadanieŠtudenta,DochádzkaVDecembri[],30,FALSE),\"\")","v":""},{"$f":"IFERROR(VLOOKUP(VyhľadanieŠtudenta,DochádzkaVDecembri[],31,FALSE),\"\")","v":""},{"$f":"IFERROR(VLOOKUP(VyhľadanieŠtudenta,DochádzkaVDecembri[],32,FALSE),\"\")","v":""},{"$f":"IFERROR(VLOOKUP(VyhľadanieŠtudenta,DochádzkaVDecembri[],33,FALSE),\"\")","v":""}]
[null,"Január",1,2,3,4,5,6,7,8,9,10,11,12,13,14,15,16,17,18,19,20,21,22,23,24,25,26,27,28,29,30,31,{"$f":"COUNTIF($D27:$AH27,Kód1)","v":0},{"$f":"COUNTIF($D27:$AH27,Kód2)","v":0},{"$f":"COUNTIF($D27:$AH27,Kód3)","v":0},{"$f":"COUNTIF($D27:$AH27,Kód4)","v":0}]
[null,null,{"$f":"IFERROR(VLOOKUP(VyhľadanieŠtudenta,DochádzkaVJanuári[],3,FALSE),\"\")","v":""},{"$f":"IFERROR(VLOOKUP(VyhľadanieŠtudenta,DochádzkaVJanuári[],4,FALSE),\"\")","v":""},{"$f":"IFERROR(VLOOKUP(VyhľadanieŠtudenta,DochádzkaVJanuári[],5,FALSE),\"\")","v":""},{"$f":"IFERROR(VLOOKUP(VyhľadanieŠtudenta,DochádzkaVJanuári[],6,FALSE),\"\")","v":""},{"$f":"IFERROR(VLOOKUP(VyhľadanieŠtudenta,DochádzkaVJanuári[],7,FALSE),\"\")","v":""},{"$f":"IFERROR(VLOOKUP(VyhľadanieŠtudenta,DochádzkaVJanuári[],8,FALSE),\"\")","v":""},{"$f":"IFERROR(VLOOKUP(VyhľadanieŠtudenta,DochádzkaVJanuári[],9,FALSE),\"\")","v":""},{"$f":"IFERROR(VLOOKUP(VyhľadanieŠtudenta,DochádzkaVJanuári[],10,FALSE),\"\")","v":""},{"$f":"IFERROR(VLOOKUP(VyhľadanieŠtudenta,DochádzkaVJanuári[],11,FALSE),\"\")","v":""},{"$f":"IFERROR(VLOOKUP(VyhľadanieŠtudenta,DochádzkaVJanuári[],12,FALSE),\"\")","v":""},{"$f":"IFERROR(VLOOKUP(VyhľadanieŠtudenta,DochádzkaVJanuári[],13,FALSE),\"\")","v":""},{"$f":"IFERROR(VLOOKUP(VyhľadanieŠtudenta,DochádzkaVJanuári[],14,FALSE),\"\")","v":""},{"$f":"IFERROR(VLOOKUP(VyhľadanieŠtudenta,DochádzkaVJanuári[],15,FALSE),\"\")","v":""},{"$f":"IFERROR(VLOOKUP(VyhľadanieŠtudenta,DochádzkaVJanuári[],16,FALSE),\"\")","v":""},{"$f":"IFERROR(VLOOKUP(VyhľadanieŠtudenta,DochádzkaVJanuári[],17,FALSE),\"\")","v":""},{"$f":"IFERROR(VLOOKUP(VyhľadanieŠtudenta,DochádzkaVJanuári[],18,FALSE),\"\")","v":""},{"$f":"IFERROR(VLOOKUP(VyhľadanieŠtudenta,DochádzkaVJanuári[],19,FALSE),\"\")","v":""},{"$f":"IFERROR(VLOOKUP(VyhľadanieŠtudenta,DochádzkaVJanuári[],20,FALSE),\"\")","v":""},{"$f":"IFERROR(VLOOKUP(VyhľadanieŠtudenta,DochádzkaVJanuári[],21,FALSE),\"\")","v":""},{"$f":"IFERROR(VLOOKUP(VyhľadanieŠtudenta,DochádzkaVJanuári[],22,FALSE),\"\")","v":""},{"$f":"IFERROR(VLOOKUP(VyhľadanieŠtudenta,DochádzkaVJanuári[],23,FALSE),\"\")","v":""},{"$f":"IFERROR(VLOOKUP(VyhľadanieŠtudenta,DochádzkaVJanuári[],24,FALSE),\"\")","v":""},{"$f":"IFERROR(VLOOKUP(VyhľadanieŠtudenta,DochádzkaVJanuári[],25,FALSE),\"\")","v":""},{"$f":"IFERROR(VLOOKUP(VyhľadanieŠtudenta,DochádzkaVJanuári[],26,FALSE),\"\")","v":""},{"$f":"IFERROR(VLOOKUP(VyhľadanieŠtudenta,DochádzkaVJanuári[],27,FALSE),\"\")","v":""},{"$f":"IFERROR(VLOOKUP(VyhľadanieŠtudenta,DochádzkaVJanuári[],28,FALSE),\"\")","v":""},{"$f":"IFERROR(VLOOKUP(VyhľadanieŠtudenta,DochádzkaVJanuári[],29,FALSE),\"\")","v":""},{"$f":"IFERROR(VLOOKUP(VyhľadanieŠtudenta,DochádzkaVJanuári[],30,FALSE),\"\")","v":""},{"$f":"IFERROR(VLOOKUP(VyhľadanieŠtudenta,DochádzkaVJanuári[],31,FALSE),\"\")","v":""},{"$f":"IFERROR(VLOOKUP(VyhľadanieŠtudenta,DochádzkaVJanuári[],32,FALSE),\"\")","v":""},{"$f":"IFERROR(VLOOKUP(VyhľadanieŠtudenta,DochádzkaVJanuári[],33,FALSE),\"\")","v":""}]
[null,"Február",1,2,3,4,5,6,7,8,9,10,11,12,13,14,15,16,17,18,19,20,21,22,23,24,25,26,27,28,29,null,null,{"$f":"COUNTIF($D29:$AH29,Kód1)","v":0},{"$f":"COUNTIF($D29:$AH29,Kód2)","v":0},{"$f":"COUNTIF($D29:$AH29,Kód3)","v":0},{"$f":"COUNTIF($D29:$AH29,Kód4)","v":0}]
[null,null,{"$f":"IFERROR(VLOOKUP(VyhľadanieŠtudenta,DochádzkaVoFebruári[],3,FALSE),\"\")","v":""},{"$f":"IFERROR(VLOOKUP(VyhľadanieŠtudenta,DochádzkaVoFebruári[],4,FALSE),\"\")","v":""},{"$f":"IFERROR(VLOOKUP(VyhľadanieŠtudenta,DochádzkaVoFebruári[],5,FALSE),\"\")","v":""},{"$f":"IFERROR(VLOOKUP(VyhľadanieŠtudenta,DochádzkaVoFebruári[],6,FALSE),\"\")","v":""},{"$f":"IFERROR(VLOOKUP(VyhľadanieŠtudenta,DochádzkaVoFebruári[],7,FALSE),\"\")","v":""},{"$f":"IFERROR(VLOOKUP(VyhľadanieŠtudenta,DochádzkaVoFebruári[],8,FALSE),\"\")","v":""},{"$f":"IFERROR(VLOOKUP(VyhľadanieŠtudenta,DochádzkaVoFebruári[],9,FALSE),\"\")","v":""},{"$f":"IFERROR(VLOOKUP(VyhľadanieŠtudenta,DochádzkaVoFebruári[],10,FALSE),\"\")","v":""},{"$f":"IFERROR(VLOOKUP(VyhľadanieŠtudenta,DochádzkaVoFebruári[],11,FALSE),\"\")","v":""},{"$f":"IFERROR(VLOOKUP(VyhľadanieŠtudenta,DochádzkaVoFebruári[],12,FALSE),\"\")","v":""},{"$f":"IFERROR(VLOOKUP(VyhľadanieŠtudenta,DochádzkaVoFebruári[],13,FALSE),\"\")","v":""},{"$f":"IFERROR(VLOOKUP(VyhľadanieŠtudenta,DochádzkaVoFebruári[],14,FALSE),\"\")","v":""},{"$f":"IFERROR(VLOOKUP(VyhľadanieŠtudenta,DochádzkaVoFebruári[],15,FALSE),\"\")","v":""},{"$f":"IFERROR(VLOOKUP(VyhľadanieŠtudenta,DochádzkaVoFebruári[],16,FALSE),\"\")","v":""},{"$f":"IFERROR(VLOOKUP(VyhľadanieŠtudenta,DochádzkaVoFebruári[],17,FALSE),\"\")","v":""},{"$f":"IFERROR(VLOOKUP(VyhľadanieŠtudenta,DochádzkaVoFebruári[],18,FALSE),\"\")","v":""},{"$f":"IFERROR(VLOOKUP(VyhľadanieŠtudenta,DochádzkaVoFebruári[],19,FALSE),\"\")","v":""},{"$f":"IFERROR(VLOOKUP(VyhľadanieŠtudenta,DochádzkaVoFebruári[],20,FALSE),\"\")","v":""},{"$f":"IFERROR(VLOOKUP(VyhľadanieŠtudenta,DochádzkaVoFebruári[],21,FALSE),\"\")","v":""},{"$f":"IFERROR(VLOOKUP(VyhľadanieŠtudenta,DochádzkaVoFebruári[],22,FALSE),\"\")","v":""},{"$f":"IFERROR(VLOOKUP(VyhľadanieŠtudenta,DochádzkaVoFebruári[],23,FALSE),\"\")","v":""},{"$f":"IFERROR(VLOOKUP(VyhľadanieŠtudenta,DochádzkaVoFebruári[],24,FALSE),\"\")","v":""},{"$f":"IFERROR(VLOOKUP(VyhľadanieŠtudenta,DochádzkaVoFebruári[],25,FALSE),\"\")","v":""},{"$f":"IFERROR(VLOOKUP(VyhľadanieŠtudenta,DochádzkaVoFebruári[],26,FALSE),\"\")","v":""},{"$f":"IFERROR(VLOOKUP(VyhľadanieŠtudenta,DochádzkaVoFebruári[],27,FALSE),\"\")","v":""},{"$f":"IFERROR(VLOOKUP(VyhľadanieŠtudenta,DochádzkaVoFebruári[],28,FALSE),\"\")","v":""},{"$f":"IFERROR(VLOOKUP(VyhľadanieŠtudenta,DochádzkaVoFebruári[],29,FALSE),\"\")","v":""},{"$f":"IFERROR(VLOOKUP(VyhľadanieŠtudenta,DochádzkaVoFebruári[],30,FALSE),\"\")","v":""},{"$f":"IFERROR(VLOOKUP(VyhľadanieŠtudenta,DochádzkaVoFebruári[],31,FALSE),\"\")","v":""}]
[null,"Marec",1,2,3,4,5,6,7,8,9,10,11,12,13,14,15,16,17,18,19,20,21,22,23,24,25,26,27,28,29,30,31,{"$f":"COUNTIF($D31:$AH31,Kód1)","v":0},{"$f":"COUNTIF($D31:$AH31,Kód2)","v":0},{"$f":"COUNTIF($D31:$AH31,Kód3)","v":0},{"$f":"COUNTIF($D31:$AH31,Kód4)","v":0}]
[null,null,{"$f":"IFERROR(VLOOKUP(VyhľadanieŠtudenta,DochádzkaVMarci[],3,FALSE),\"\")","v":""},{"$f":"IFERROR(VLOOKUP(VyhľadanieŠtudenta,DochádzkaVMarci[],4,FALSE),\"\")","v":""},{"$f":"IFERROR(VLOOKUP(VyhľadanieŠtudenta,DochádzkaVMarci[],5,FALSE),\"\")","v":""},{"$f":"IFERROR(VLOOKUP(VyhľadanieŠtudenta,DochádzkaVMarci[],6,FALSE),\"\")","v":""},{"$f":"IFERROR(VLOOKUP(VyhľadanieŠtudenta,DochádzkaVMarci[],7,FALSE),\"\")","v":""},{"$f":"IFERROR(VLOOKUP(VyhľadanieŠtudenta,DochádzkaVMarci[],8,FALSE),\"\")","v":""},{"$f":"IFERROR(VLOOKUP(VyhľadanieŠtudenta,DochádzkaVMarci[],9,FALSE),\"\")","v":""},{"$f":"IFERROR(VLOOKUP(VyhľadanieŠtudenta,DochádzkaVMarci[],10,FALSE),\"\")","v":""},{"$f":"IFERROR(VLOOKUP(VyhľadanieŠtudenta,DochádzkaVMarci[],11,FALSE),\"\")","v":""},{"$f":"IFERROR(VLOOKUP(VyhľadanieŠtudenta,DochádzkaVMarci[],12,FALSE),\"\")","v":""},{"$f":"IFERROR(VLOOKUP(VyhľadanieŠtudenta,DochádzkaVMarci[],13,FALSE),\"\")","v":""},{"$f":"IFERROR(VLOOKUP(VyhľadanieŠtudenta,DochádzkaVMarci[],14,FALSE),\"\")","v":""},{"$f":"IFERROR(VLOOKUP(VyhľadanieŠtudenta,DochádzkaVMarci[],15,FALSE),\"\")","v":""},{"$f":"IFERROR(VLOOKUP(VyhľadanieŠtudenta,DochádzkaVMarci[],16,FALSE),\"\")","v":""},{"$f":"IFERROR(VLOOKUP(VyhľadanieŠtudenta,DochádzkaVMarci[],17,FALSE),\"\")","v":""},{"$f":"IFERROR(VLOOKUP(VyhľadanieŠtudenta,DochádzkaVMarci[],18,FALSE),\"\")","v":""},{"$f":"IFERROR(VLOOKUP(VyhľadanieŠtudenta,DochádzkaVMarci[],19,FALSE),\"\")","v":""},{"$f":"IFERROR(VLOOKUP(VyhľadanieŠtudenta,DochádzkaVMarci[],20,FALSE),\"\")","v":""},{"$f":"IFERROR(VLOOKUP(VyhľadanieŠtudenta,DochádzkaVMarci[],21,FALSE),\"\")","v":""},{"$f":"IFERROR(VLOOKUP(VyhľadanieŠtudenta,DochádzkaVMarci[],22,FALSE),\"\")","v":""},{"$f":"IFERROR(VLOOKUP(VyhľadanieŠtudenta,DochádzkaVMarci[],23,FALSE),\"\")","v":""},{"$f":"IFERROR(VLOOKUP(VyhľadanieŠtudenta,DochádzkaVMarci[],24,FALSE),\"\")","v":""},{"$f":"IFERROR(VLOOKUP(VyhľadanieŠtudenta,DochádzkaVMarci[],25,FALSE),\"\")","v":""},{"$f":"IFERROR(VLOOKUP(VyhľadanieŠtudenta,DochádzkaVMarci[],26,FALSE),\"\")","v":""},{"$f":"IFERROR(VLOOKUP(VyhľadanieŠtudenta,DochádzkaVMarci[],27,FALSE),\"\")","v":""},{"$f":"IFERROR(VLOOKUP(VyhľadanieŠtudenta,DochádzkaVMarci[],28,FALSE),\"\")","v":""},{"$f":"IFERROR(VLOOKUP(VyhľadanieŠtudenta,DochádzkaVMarci[],29,FALSE),\"\")","v":""},{"$f":"IFERROR(VLOOKUP(VyhľadanieŠtudenta,DochádzkaVMarci[],30,FALSE),\"\")","v":""},{"$f":"IFERROR(VLOOKUP(VyhľadanieŠtudenta,DochádzkaVMarci[],31,FALSE),\"\")","v":""},{"$f":"IFERROR(VLOOKUP(VyhľadanieŠtudenta,DochádzkaVMarci[],32,FALSE),\"\")","v":""},{"$f":"IFERROR(VLOOKUP(VyhľadanieŠtudenta,DochádzkaVMarci[],33,FALSE),\"\")","v":""}]
[null,"Apríl",1,2,3,4,5,6,7,8,9,10,11,12,13,14,15,16,17,18,19,20,21,22,23,24,25,26,27,28,29,30,null,{"$f":"COUNTIF($D33:$AH33,Kód1)","v":0},{"$f":"COUNTIF($D33:$AH33,Kód2)","v":0},{"$f":"COUNTIF($D33:$AH33,Kód3)","v":0},{"$f":"COUNTIF($D33:$AH33,Kód4)","v":0}]
[null,null,{"$f":"IFERROR(VLOOKUP(VyhľadanieŠtudenta,DochádzkaVApríli[],3,FALSE),\"\")","v":""},{"$f":"IFERROR(VLOOKUP(VyhľadanieŠtudenta,DochádzkaVApríli[],4,FALSE),\"\")","v":""},{"$f":"IFERROR(VLOOKUP(VyhľadanieŠtudenta,DochádzkaVApríli[],5,FALSE),\"\")","v":""},{"$f":"IFERROR(VLOOKUP(VyhľadanieŠtudenta,DochádzkaVApríli[],6,FALSE),\"\")","v":""},{"$f":"IFERROR(VLOOKUP(VyhľadanieŠtudenta,DochádzkaVApríli[],7,FALSE),\"\")","v":""},{"$f":"IFERROR(VLOOKUP(VyhľadanieŠtudenta,DochádzkaVApríli[],8,FALSE),\"\")","v":""},{"$f":"IFERROR(VLOOKUP(VyhľadanieŠtudenta,DochádzkaVApríli[],9,FALSE),\"\")","v":""},{"$f":"IFERROR(VLOOKUP(VyhľadanieŠtudenta,DochádzkaVApríli[],10,FALSE),\"\")","v":""},{"$f":"IFERROR(VLOOKUP(VyhľadanieŠtudenta,DochádzkaVApríli[],11,FALSE),\"\")","v":""},{"$f":"IFERROR(VLOOKUP(VyhľadanieŠtudenta,DochádzkaVApríli[],12,FALSE),\"\")","v":""},{"$f":"IFERROR(VLOOKUP(VyhľadanieŠtudenta,DochádzkaVApríli[],13,FALSE),\"\")","v":""},{"$f":"IFERROR(VLOOKUP(VyhľadanieŠtudenta,DochádzkaVApríli[],14,FALSE),\"\")","v":""},{"$f":"IFERROR(VLOOKUP(VyhľadanieŠtudenta,DochádzkaVApríli[],15,FALSE),\"\")","v":""},{"$f":"IFERROR(VLOOKUP(VyhľadanieŠtudenta,DochádzkaVApríli[],16,FALSE),\"\")","v":""},{"$f":"IFERROR(VLOOKUP(VyhľadanieŠtudenta,DochádzkaVApríli[],17,FALSE),\"\")","v":""},{"$f":"IFERROR(VLOOKUP(VyhľadanieŠtudenta,DochádzkaVApríli[],18,FALSE),\"\")","v":""},{"$f":"IFERROR(VLOOKUP(VyhľadanieŠtudenta,DochádzkaVApríli[],19,FALSE),\"\")","v":""},{"$f":"IFERROR(VLOOKUP(VyhľadanieŠtudenta,DochádzkaVApríli[],20,FALSE),\"\")","v":""},{"$f":"IFERROR(VLOOKUP(VyhľadanieŠtudenta,DochádzkaVApríli[],21,FALSE),\"\")","v":""},{"$f":"IFERROR(VLOOKUP(VyhľadanieŠtudenta,DochádzkaVApríli[],22,FALSE),\"\")","v":""},{"$f":"IFERROR(VLOOKUP(VyhľadanieŠtudenta,DochádzkaVApríli[],23,FALSE),\"\")","v":""},{"$f":"IFERROR(VLOOKUP(VyhľadanieŠtudenta,DochádzkaVApríli[],24,FALSE),\"\")","v":""},{"$f":"IFERROR(VLOOKUP(VyhľadanieŠtudenta,DochádzkaVApríli[],25,FALSE),\"\")","v":""},{"$f":"IFERROR(VLOOKUP(VyhľadanieŠtudenta,DochádzkaVApríli[],26,FALSE),\"\")","v":""},{"$f":"IFERROR(VLOOKUP(VyhľadanieŠtudenta,DochádzkaVApríli[],27,FALSE),\"\")","v":""},{"$f":"IFERROR(VLOOKUP(VyhľadanieŠtudenta,DochádzkaVApríli[],28,FALSE),\"\")","v":""},{"$f":"IFERROR(VLOOKUP(VyhľadanieŠtudenta,DochádzkaVApríli[],29,FALSE),\"\")","v":""},{"$f":"IFERROR(VLOOKUP(VyhľadanieŠtudenta,DochádzkaVApríli[],30,FALSE),\"\")","v":""},{"$f":"IFERROR(VLOOKUP(VyhľadanieŠtudenta,DochádzkaVApríli[],31,FALSE),\"\")","v":""},{"$f":"IFERROR(VLOOKUP(VyhľadanieŠtudenta,DochádzkaVApríli[],32,FALSE),\"\")","v":""}]
[null,"Máj",1,2,3,4,5,6,7,8,9,10,11,12,13,14,15,16,17,18,19,20,21,22,23,24,25,26,27,28,29,30,31,{"$f":"COUNTIF($D35:$AH35,Kód1)","v":0},{"$f":"COUNTIF($D35:$AH35,Kód2)","v":0},{"$f":"COUNTIF($D35:$AH35,Kód3)","v":0},{"$f":"COUNTIF($D35:$AH35,Kód4)","v":0}]
[null,null,{"$f":"IFERROR(VLOOKUP(VyhľadanieŠtudenta,DochádzkaVMáji[],3,FALSE),\"\")","v":""},{"$f":"IFERROR(VLOOKUP(VyhľadanieŠtudenta,DochádzkaVMáji[],4,FALSE),\"\")","v":""},{"$f":"IFERROR(VLOOKUP(VyhľadanieŠtudenta,DochádzkaVMáji[],5,FALSE),\"\")","v":""},{"$f":"IFERROR(VLOOKUP(VyhľadanieŠtudenta,DochádzkaVMáji[],6,FALSE),\"\")","v":""},{"$f":"IFERROR(VLOOKUP(VyhľadanieŠtudenta,DochádzkaVMáji[],7,FALSE),\"\")","v":""},{"$f":"IFERROR(VLOOKUP(VyhľadanieŠtudenta,DochádzkaVMáji[],8,FALSE),\"\")","v":""},{"$f":"IFERROR(VLOOKUP(VyhľadanieŠtudenta,DochádzkaVMáji[],9,FALSE),\"\")","v":""},{"$f":"IFERROR(VLOOKUP(VyhľadanieŠtudenta,DochádzkaVMáji[],10,FALSE),\"\")","v":""},{"$f":"IFERROR(VLOOKUP(VyhľadanieŠtudenta,DochádzkaVMáji[],11,FALSE),\"\")","v":""},{"$f":"IFERROR(VLOOKUP(VyhľadanieŠtudenta,DochádzkaVMáji[],12,FALSE),\"\")","v":""},{"$f":"IFERROR(VLOOKUP(VyhľadanieŠtudenta,DochádzkaVMáji[],13,FALSE),\"\")","v":""},{"$f":"IFERROR(VLOOKUP(VyhľadanieŠtudenta,DochádzkaVMáji[],14,FALSE),\"\")","v":""},{"$f":"IFERROR(VLOOKUP(VyhľadanieŠtudenta,DochádzkaVMáji[],15,FALSE),\"\")","v":""},{"$f":"IFERROR(VLOOKUP(VyhľadanieŠtudenta,DochádzkaVMáji[],16,FALSE),\"\")","v":""},{"$f":"IFERROR(VLOOKUP(VyhľadanieŠtudenta,DochádzkaVMáji[],17,FALSE),\"\")","v":""},{"$f":"IFERROR(VLOOKUP(VyhľadanieŠtudenta,DochádzkaVMáji[],18,FALSE),\"\")","v":""},{"$f":"IFERROR(VLOOKUP(VyhľadanieŠtudenta,DochádzkaVMáji[],19,FALSE),\"\")","v":""},{"$f":"IFERROR(VLOOKUP(VyhľadanieŠtudenta,DochádzkaVMáji[],20,FALSE),\"\")","v":""},{"$f":"IFERROR(VLOOKUP(VyhľadanieŠtudenta,DochádzkaVMáji[],21,FALSE),\"\")","v":""},{"$f":"IFERROR(VLOOKUP(VyhľadanieŠtudenta,DochádzkaVMáji[],22,FALSE),\"\")","v":""},{"$f":"IFERROR(VLOOKUP(VyhľadanieŠtudenta,DochádzkaVMáji[],23,FALSE),\"\")","v":""},{"$f":"IFERROR(VLOOKUP(VyhľadanieŠtudenta,DochádzkaVMáji[],24,FALSE),\"\")","v":""},{"$f":"IFERROR(VLOOKUP(VyhľadanieŠtudenta,DochádzkaVMáji[],25,FALSE),\"\")","v":""},{"$f":"IFERROR(VLOOKUP(VyhľadanieŠtudenta,DochádzkaVMáji[],26,FALSE),\"\")","v":""},{"$f":"IFERROR(VLOOKUP(VyhľadanieŠtudenta,DochádzkaVMáji[],27,FALSE),\"\")","v":""},{"$f":"IFERROR(VLOOKUP(VyhľadanieŠtudenta,DochádzkaVMáji[],28,FALSE),\"\")","v":""},{"$f":"IFERROR(VLOOKUP(VyhľadanieŠtudenta,DochádzkaVMáji[],29,FALSE),\"\")","v":""},{"$f":"IFERROR(VLOOKUP(VyhľadanieŠtudenta,DochádzkaVMáji[],30,FALSE),\"\")","v":""},{"$f":"IFERROR(VLOOKUP(VyhľadanieŠtudenta,DochádzkaVMáji[],31,FALSE),\"\")","v":""},{"$f":"IFERROR(VLOOKUP(VyhľadanieŠtudenta,DochádzkaVMáji[],32,FALSE),\"\")","v":""},{"$f":"IFERROR(VLOOKUP(VyhľadanieŠtudenta,DochádzkaVMáji[],33,FALSE),\"\")","v":""}]
[null,"Jún",1,2,3,4,5,6,7,8,9,10,11,12,13,14,15,16,17,18,19,20,21,22,23,24,25,26,27,28,29,30,null,{"$f":"COUNTIF($D37:$AH37,Kód1)","v":0},{"$f":"COUNTIF($D37:$AH37,Kód2)","v":0},{"$f":"COUNTIF($D37:$AH37,Kód3)","v":0},{"$f":"COUNTIF($D37:$AH37,Kód4)","v":0}]
[null,null,{"$f":"IFERROR(VLOOKUP(VyhľadanieŠtudenta,DochádzkaVJúni[],3,FALSE),\"\")","v":""},{"$f":"IFERROR(VLOOKUP(VyhľadanieŠtudenta,DochádzkaVJúni[],4,FALSE),\"\")","v":""},{"$f":"IFERROR(VLOOKUP(VyhľadanieŠtudenta,DochádzkaVJúni[],5,FALSE),\"\")","v":""},{"$f":"IFERROR(VLOOKUP(VyhľadanieŠtudenta,DochádzkaVJúni[],6,FALSE),\"\")","v":""},{"$f":"IFERROR(VLOOKUP(VyhľadanieŠtudenta,DochádzkaVJúni[],7,FALSE),\"\")","v":""},{"$f":"IFERROR(VLOOKUP(VyhľadanieŠtudenta,DochádzkaVJúni[],8,FALSE),\"\")","v":""},{"$f":"IFERROR(VLOOKUP(VyhľadanieŠtudenta,DochádzkaVJúni[],9,FALSE),\"\")","v":""},{"$f":"IFERROR(VLOOKUP(VyhľadanieŠtudenta,DochádzkaVJúni[],10,FALSE),\"\")","v":""},{"$f":"IFERROR(VLOOKUP(VyhľadanieŠtudenta,DochádzkaVJúni[],11,FALSE),\"\")","v":""},{"$f":"IFERROR(VLOOKUP(VyhľadanieŠtudenta,DochádzkaVJúni[],12,FALSE),\"\")","v":""},{"$f":"IFERROR(VLOOKUP(VyhľadanieŠtudenta,DochádzkaVJúni[],13,FALSE),\"\")","v":""},{"$f":"IFERROR(VLOOKUP(VyhľadanieŠtudenta,DochádzkaVJúni[],14,FALSE),\"\")","v":""},{"$f":"IFERROR(VLOOKUP(VyhľadanieŠtudenta,DochádzkaVJúni[],15,FALSE),\"\")","v":""},{"$f":"IFERROR(VLOOKUP(VyhľadanieŠtudenta,DochádzkaVJúni[],16,FALSE),\"\")","v":""},{"$f":"IFERROR(VLOOKUP(VyhľadanieŠtudenta,DochádzkaVJúni[],17,FALSE),\"\")","v":""},{"$f":"IFERROR(VLOOKUP(VyhľadanieŠtudenta,DochádzkaVJúni[],18,FALSE),\"\")","v":""},{"$f":"IFERROR(VLOOKUP(VyhľadanieŠtudenta,DochádzkaVJúni[],19,FALSE),\"\")","v":""},{"$f":"IFERROR(VLOOKUP(VyhľadanieŠtudenta,DochádzkaVJúni[],20,FALSE),\"\")","v":""},{"$f":"IFERROR(VLOOKUP(VyhľadanieŠtudenta,DochádzkaVJúni[],21,FALSE),\"\")","v":""},{"$f":"IFERROR(VLOOKUP(VyhľadanieŠtudenta,DochádzkaVJúni[],22,FALSE),\"\")","v":""},{"$f":"IFERROR(VLOOKUP(VyhľadanieŠtudenta,DochádzkaVJúni[],23,FALSE),\"\")","v":""},{"$f":"IFERROR(VLOOKUP(VyhľadanieŠtudenta,DochádzkaVJúni[],24,FALSE),\"\")","v":""},{"$f":"IFERROR(VLOOKUP(VyhľadanieŠtudenta,DochádzkaVJúni[],25,FALSE),\"\")","v":""},{"$f":"IFERROR(VLOOKUP(VyhľadanieŠtudenta,DochádzkaVJúni[],26,FALSE),\"\")","v":""},{"$f":"IFERROR(VLOOKUP(VyhľadanieŠtudenta,DochádzkaVJúni[],27,FALSE),\"\")","v":""},{"$f":"IFERROR(VLOOKUP(VyhľadanieŠtudenta,DochádzkaVJúni[],28,FALSE),\"\")","v":""},{"$f":"IFERROR(VLOOKUP(VyhľadanieŠtudenta,DochádzkaVJúni[],29,FALSE),\"\")","v":""},{"$f":"IFERROR(VLOOKUP(VyhľadanieŠtudenta,DochádzkaVJúni[],30,FALSE),\"\")","v":""},{"$f":"IFERROR(VLOOKUP(VyhľadanieŠtudenta,DochádzkaVJúni[],31,FALSE),\"\")","v":""},{"$f":"IFERROR(VLOOKUP(VyhľadanieŠtudenta,DochádzkaVJúni[],32,FALSE),\"\")","v":""}]
[null,"Júl",1,2,3,4,5,6,7,8,9,10,11,12,13,14,15,16,17,18,19,20,21,22,23,24,25,26,27,28,29,30,31,{"$f":"COUNTIF($D39:$AH39,Kód1)","v":0},{"$f":"COUNTIF($D39:$AH39,Kód2)","v":0},{"$f":"COUNTIF($D39:$AH39,Kód3)","v":0},{"$f":"COUNTIF($D39:$AH39,Kód4)","v":0}]
[null,null,{"$f":"IFERROR(VLOOKUP(VyhľadanieŠtudenta,DochádzkaVJúli[],3,FALSE),\"\")","v":""},{"$f":"IFERROR(VLOOKUP(VyhľadanieŠtudenta,DochádzkaVJúli[],4,FALSE),\"\")","v":""},{"$f":"IFERROR(VLOOKUP(VyhľadanieŠtudenta,DochádzkaVJúli[],5,FALSE),\"\")","v":""},{"$f":"IFERROR(VLOOKUP(VyhľadanieŠtudenta,DochádzkaVJúli[],6,FALSE),\"\")","v":""},{"$f":"IFERROR(VLOOKUP(VyhľadanieŠtudenta,DochádzkaVJúli[],7,FALSE),\"\")","v":""},{"$f":"IFERROR(VLOOKUP(VyhľadanieŠtudenta,DochádzkaVJúli[],8,FALSE),\"\")","v":""},{"$f":"IFERROR(VLOOKUP(VyhľadanieŠtudenta,DochádzkaVJúli[],9,FALSE),\"\")","v":""},{"$f":"IFERROR(VLOOKUP(VyhľadanieŠtudenta,DochádzkaVJúli[],10,FALSE),\"\")","v":""},{"$f":"IFERROR(VLOOKUP(VyhľadanieŠtudenta,DochádzkaVJúli[],11,FALSE),\"\")","v":""},{"$f":"IFERROR(VLOOKUP(VyhľadanieŠtudenta,DochádzkaVJúli[],12,FALSE),\"\")","v":""},{"$f":"IFERROR(VLOOKUP(VyhľadanieŠtudenta,DochádzkaVJúli[],13,FALSE),\"\")","v":""},{"$f":"IFERROR(VLOOKUP(VyhľadanieŠtudenta,DochádzkaVJúli[],14,FALSE),\"\")","v":""},{"$f":"IFERROR(VLOOKUP(VyhľadanieŠtudenta,DochádzkaVJúli[],15,FALSE),\"\")","v":""},{"$f":"IFERROR(VLOOKUP(VyhľadanieŠtudenta,DochádzkaVJúli[],16,FALSE),\"\")","v":""},{"$f":"IFERROR(VLOOKUP(VyhľadanieŠtudenta,DochádzkaVJúli[],17,FALSE),\"\")","v":""},{"$f":"IFERROR(VLOOKUP(VyhľadanieŠtudenta,DochádzkaVJúli[],18,FALSE),\"\")","v":""},{"$f":"IFERROR(VLOOKUP(VyhľadanieŠtudenta,DochádzkaVJúli[],19,FALSE),\"\")","v":""},{"$f":"IFERROR(VLOOKUP(VyhľadanieŠtudenta,DochádzkaVJúli[],20,FALSE),\"\")","v":""},{"$f":"IFERROR(VLOOKUP(VyhľadanieŠtudenta,DochádzkaVJúli[],21,FALSE),\"\")","v":""},{"$f":"IFERROR(VLOOKUP(VyhľadanieŠtudenta,DochádzkaVJúli[],22,FALSE),\"\")","v":""},{"$f":"IFERROR(VLOOKUP(VyhľadanieŠtudenta,DochádzkaVJúli[],23,FALSE),\"\")","v":""},{"$f":"IFERROR(VLOOKUP(VyhľadanieŠtudenta,DochádzkaVJúli[],24,FALSE),\"\")","v":""},{"$f":"IFERROR(VLOOKUP(VyhľadanieŠtudenta,DochádzkaVJúli[],25,FALSE),\"\")","v":""},{"$f":"IFERROR(VLOOKUP(VyhľadanieŠtudenta,DochádzkaVJúli[],26,FALSE),\"\")","v":""},{"$f":"IFERROR(VLOOKUP(VyhľadanieŠtudenta,DochádzkaVJúli[],27,FALSE),\"\")","v":""},{"$f":"IFERROR(VLOOKUP(VyhľadanieŠtudenta,DochádzkaVJúli[],28,FALSE),\"\")","v":""},{"$f":"IFERROR(VLOOKUP(VyhľadanieŠtudenta,DochádzkaVJúli[],29,FALSE),\"\")","v":""},{"$f":"IFERROR(VLOOKUP(VyhľadanieŠtudenta,DochádzkaVJúli[],30,FALSE),\"\")","v":""},{"$f":"IFERROR(VLOOKUP(VyhľadanieŠtudenta,DochádzkaVJúli[],31,FALSE),\"\")","v":""},{"$f":"IFERROR(VLOOKUP(VyhľadanieŠtudenta,DochádzkaVJúli[],32,FALSE),\"\")","v":""},{"$f":"IFERROR(VLOOKUP(VyhľadanieŠtudenta,DochádzkaVJúli[],33,FALSE),\"\")","v":""}]
[{"$nulls":30},"Súčet",null,null,{"$f":"SUM(AH16:AH39)","v":2},{"$f":"SUM(AI16:AI39)","v":1},{"$f":"SUM(AJ16:AJ39)","v":0},{"$f":"SUM(AK16:AK39)","v":19}]